Workbook

Sheet INFO
C2: FORSUM for Ruminant ver 4.0++
C3: (c) 2019 Department of Nutrition and Feed Technology - IPB University
B12: Instalasi FORSUM
B21: FORSUM Sheet
B31: Cara Penggunaan FORSUM

Sheet NUTRIEN SAPI PERAH
B2: FORSUM for Ruminant ver 4.0++
B3: (c) 2019 Department of Nutrition and Feed Technology - IPB University
B5: Tabel A1. Kebutuhan Nutrien pada Sapi Perah (SNI 3148-1:2017)
B6: Nutrien | C6: Unit | D6: Calf Starter 1 | F6: Calf Starter 2 | H6: Dara
D7: Min | E7: Max | F7: Min | G7: Max | H7: Min | I7: Max
B8: Bahan Kering | C8: % | D8: 86 | E8: - | F8: 86 | G8: - | H8: 86 | I8: -
B9: Abu | C9: % | D9: - | E9: 10 | F9: - | G9: 10 | H9: - | I9: 10
B10: Protein Kasar | C10: % | D10: 21 | E10: - | F10: 16 | G10: - | H10: 15 | I10: -
B11: Lemak Kasar | C11: % | D11: - | E11: 12 | F11: - | G11: 7 | H11: - | I11: 7
B12: Serat Kasar | C12: % | D12: - | E12: - | F12: - | G12: - | H12: - | I12: -
B13: NDF | C13: % | D13: - | E13: 15 | F13: - | G13: 20 | H13: - | I13: 30
B14: TDN | C14: % | D14: 80 | E14: - | F14: 70 | G14: - | H14: 70 (65) | I14: -
B15: Kalsium | C15: % | D15: 0.7 | E15: 0.9 | F15: 0.6 | G15: 0.8 | H15: 0.6 | I15: 1
B16: Pospor | C16: % | D16: 0.4 | E16: 0.6 | F16: 0.4 | G16: 0.6 | H16: 0.4 | I16: 0.6
B19: Tabel A2. Kebutuhan Nutrien pada Sapi Perah (SNI 3148-1:2017)
B20: Nutrien | C20: Unit | D20: Laktasi | F20: Laktasi Prod Tinggi | H20: Kering Bunting
D21: Min | E21: Max | F21: Min | G21: Max | H21: Min | I21: Max
B22: Bahan Kering | C22: % | D22: 86 | E22: - | F22: 86 | G22: - | H22: 86 | I22: -
B23: Abu | C23: % | D23: - | E23: 10 | F23: - | G23: 10 | H23: - | I23: 10
B24: Protein Kasar | C24: % | D24: 14 (16) | E24: - | F24: 18 | G24: - | H24: 16 | I24: -
B25: Lemak Kasar | C25: % | D25: - | E25: 7 | F25: - | G25: 7 | H25: - | I25: 7
B26: Serat Kasar | C26: % | D26: - | E26: - | F26: - | G26: - | H26: - | I26: -
B27: NDF | C27: % | D27: - | E27: 35 | F27: - | G27: 33 | H27: - | I27: 33
B28: TDN | C28: % | D28: 68 | E28: - | F28: 68 (70) | G28: - | H28: 68 | I28: -
B29: Kalsium | C29: % | D29: 0.8 | E29: 1.2 | F29: 0.8 | G29: 1.3 | H29: 0.8 | I29: 1.2
B30: Pospor | C30: % | D30: 0.4 | E30: 0.6 | F30: 0.4 | G30: 0.8 | H30: 0.4 | I30: 0.8
B33: Tabel A3. Kebutuhan Nutrien pada Sapi Perah (SNI 3148-1:2017)
B34: Nutrien | C34: Unit | D34: Jantan
D35: Min | E35: Max
B36: Bahan Kering | C36: % | D36: 86 | E36: -
B37: Abu | C37: % | D37: - | E37: 12
B38: Protein Kasar | C38: % | D38: 12 | E38: -
B39: Lemak Kasar | C39: % | D39: - | E39: 6
B40: Serat Kasar | C40: % | D40: - | E40: -
B41: NDF | C41: % | D41: - | E41: 35
B42: TDN | C42: % | D42: 65 | E42: -
B43: Kalsium | C43: % | D43: 0.6 | E43: 0.8
B44: Pospor | C44: % | D44: 0.3 | E44: 0.6

Sheet NUTRIEN SAPI POTONG
B2: FORSUM for Ruminant ver 4.0++
B3: (c) 2019 Department of Nutrition and Feed Technology - IPB University
B5: Tabel B1. Kebutuhan Nutrien pada Sapi Potong (SNI 3148-2:2017)
B6: Nutrien | C6: Unit | D6: Konst Penggemukan | F6: Konsentrat Induk | H6: Konsentrat Pejantan
D7: Min | E7: Max | F7: Min | G7: Max | H7: Min | I7: Max
B8: Bahan Kering | C8: % | D8: 86 | E8: - | F8: 86 | G8: - | H8: 86 | I8: -
B9: Abu | C9: % | D9: - | E9: 12 | F9: - | G9: 12 | H9: - | I9: 12
B10: Protein Kasar | C10: % | D10: 13 | E10: - | F10: 12 | G10: - | H10: 12 | I10: 15
B11: Lemak Kasar | C11: % | D11: - | E11: 7 | F11: - | G11: 6 | H11: - | I11: 6
B12: Serat Kasar | C12: % | D12: - | E12: - | F12: - | G12: - | H12: - | I12: -
B13: NDF | C13: % | D13: - | E13: 35 | F13: - | G13: 35 | H13: - | I13: 35
B14: TDN | C14: % | D14: 68 | E14: - | F14: 65 | G14: - | H14: 65 | I14: -
B15: Kalsium | C15: % | D15: 0.6 | E15: 1.2 | F15: 0.8 | G15: 1.2 | H15: 0.6 | I15: 0.8
B16: Pospor | C16: % | D16: 0.4 | E16: 0.8 | F16: 0.6 | G16: 0.8 | H16: 0.3 | I16: 0.6
B17: Sumber: SNI Konsentrat Sapi Potong
B20: Tabel B2. Kebutuhan Nutrien Sapi Pertumbuhan
B21: BB (kg) | C21: PBBH (kg) | D21: BK (kg) | E21: Hijauan( %) | F21: PK (%) | G21: TDN (%) | H21: Ca (%) | I21: P (%)
B23: 100 | C23: 0 | D23: 2.1 | E23: 100 | F23: 8.7 | G23: 50 | H23: 0.18 | I23: 0.18
C24: 0.5 | D24: 3 | E24: 70-80 | F24: 12.4 | G24: 55 | H24: 0.47 | I24: 0.37
C25: 0.7 | D25: 2.9 | E25: 50-60 | F25: 14.4 | G25: 62 | H25: 0.66 | I25: 0.48
C26: 1.1 | D26: 3 | E26: 15 | F26: 17.8 | G26: 77 | H26: 0.97 | I26: 0.63
B27: 150 | C27: 0 | D27: 2.8 | E27: 100 | F27: 8.7 | G27: 50 | H27: 0.18 | I27: 0.18
C28: 0.5 | D28: 4.1 | E28: 70-80 | F28: 11 | G28: 55 | H28: 0.34 | I28: 0.39
C29: 0.7 | D29: 4 | E29: 50-60 | F29: 12.4 | G29: 62 | H29: 0.45 | I29: 0.35
C30: 1.1 | D30: 4 | E30: 15 | F30: 15 | G30: 77 | H30: 0.5 | I30: 0.38
B31: 200 | C31: 0 | D31: 3.5 | E31: 100 | F31: 8.5 | G31: 50 | H31: 0.18 | I31: 0.18
C32: 0.3 | D32: 5.4 | E32: 100 | F32: 9.1 | G32: 50 | H32: 0.18 | I32: 0.18
C33: 0.7 | D33: 6 | E33: 70-80 | F33: 10.2 | G33: 58 | H33: 0.3 | I33: 0.27
C34: 1.1 | D34: 5 | E34: 15 | F34: 12.8 | G34: 77 | H34: 0.5 | I34: 0.38
B35: 250 | C35: 0 | D35: 4.1 | E35: 100 | F35: 8.5 | G35: 50 | H35: 0.18 | I35: 0.18
C36: 0.3 | D36: 6.4 | E36: 100 | F36: 8.9 | G36: 50 | H36: 0.18 | I36: 0.18
C37: 0.7 | D37: 5.8 | E37: 55-65 | F37: 10.5 | G37: 65 | H37: 0.29 | I37: 0.26
C38: 1.1 | D38: 6.5 | E38: 20-25 | F38: 11.4 | G38: 72 | H38: 0.38 | I38: 0.31
B39: 300 | C39: 0 | D39: 4.7 | E39: 100 | F39: 8.6 | G39: 50 | H39: 0.18 | I39: 0.18
C40: 0.3 | D40: 7.4 | E40: 100 | F40: 8.9 | G40: 50 | H40: 0.18 | I40: 0.18
C41: 0.7 | D41: 6.6 | E41: 55-65 | F41: 10.5 | G41: 65 | H41: 0.24 | I41: 0.23
C42: 1.1 | D42: 7.5 | E42: 20-25 | F42: 11.4 | G42: 72 | H42: 0.31 | I42: 0.27
B43: 350 | C43: 0 | D43: 5.3 | E43: 100 | F43: 8.5 | G43: 50 | H43: 0.18 | I43: 0.18
C44: 0.3 | D44: 8.2 | E44: 100 | F44: 8.5 | G44: 50 | H44: 0.18 | I44: 0.18
C45: 0.7 | D45: 7.9 | E45: 55-65 | F45: 9.2 | G45: 62 | H45: 0.19 | I45: 0.19
C46: 1.1 | D46: 8.3 | E46: 20-25 | F46: 9.9 | G46: 72 | H46: 0.24 | I46: 0.23
B47: 400 | C47: 0 | D47: 5.8 | E47: 100 | F47: 8.5 | G47: 50 | H47: 0.18 | I47: 0.18
C48: 0.3 | D48: 9.1 | E48: 100 | F48: 8.5 | G48: 50 | H48: 0.18 | I48: 0.18
C49: 0.5 | D49: 8.5 | E49: 70-80 | F49: 8.8 | G49: 58 | H49: 0.18 | I49: 0.18
C50: 0.9 | D50: 8.4 | E50: 20-25 | F50: 9.4 | G50: 69 | H50: 0.2 | I50: 0.2
B51: 450 | C51: 0 | D51: 6.4 | E51: 100 | F51: 8.5 | G51: 50 | H51: 0.18 | I51: 0.18
C52: 0.2 | D52: 8.7 | E52: 100 | F52: 8.5 | G52: 50 | H52: 0.18 | I52: 0.17
C53: 0.8 | D53: 9.1 | E53: 35-45 | F53: 9 | G53: 68 | H53: 0.18 | I53: 0.18

Sheet BAHAN PAKAN
D2: FORSUM for Ruminant ver 4.0++
D3: (c) 2019 Department of Nutrition and Feed Technology - IPB University
B5: Tabel C1. Komposisi Nutrien Bahan Pakan
B6: No | D6: Bahan Pakan | E6: Min | F6: Max | G6: Harga AsFeed | H6: Harga BK | I6: Kadar Air | J6: Bahan Kering | K6: Abu | L6: PK | M6: LK | N6: SK | O6: BETN | P6: NDF | Q6: ADF | R6: GE | S6: DE | T6: TDN | U6: Ca | V6: P | W6: K | X6: Na | Y6: DM
D7: == HIJAUAN ==
B8: 1 | D8: Rumput gajah | G8: 230 | H8: =G8*100/Y8 -> 1284.916201 | I8: =100-J8 -> 82.1 | J8: 17.9 | K8: 13.8 | L8: 9.7 | M8: 2 | N8: 36.1 | O8: 38.4 | P8: 71.5 | Q8: 42.5 | R8: 17.4 | S8: 10.2 | T8: 58 | U8: 0.36 | V8: 0.29 | W8: 2.9 | X8: 0.03 | Y8: =100-I8 -> 17.9
B9: 2 | D9: Rumput lapang | G9: 250 | H9: =G9*100/Y9 -> 1396.648045 | I9: =100-J9 -> 82.1 | J9: 17.9 | K9: 14 | L9: 10 | M9: 2 | N9: 37 | O9: 38.4 | P9: 71.5 | Q9: 42.5 | R9: 17.4 | S9: 10.2 | T9: 60 | U9: 0.36 | V9: 0.29 | W9: 2.9 | X9: 0.03 | Y9: =100-I9 -> 17.9
B10: 3 | D10: Rumput BD | G10: 230 | H10: 858.2089552 | I10: 73.2 | J10: 26.8 | K10: 8.6 | L10: 8.9 | M10: 1.9 | N10: 31.4 | O10: 49.2 | P10: 68.1 | Q10: 37.2 | R10: 18.1 | S10: 9.5 | T10: 57 | U10: 0.36 | V10: 0.23 | W10: 1.84 | X10: 0.05 | Y10: 26.8
B11: 4 | D11: Rumput BH | G11: 230 | H11: 884.6153846 | I11: 74 | J11: 26 | K11: 6.7 | L11: 9 | M11: 2.4 | N11: 34.8 | O11: 47.1 | P11: 67.7 | Q11: 40.8 | R11: 18.7 | S11: 9.9 | T11: 59 | U11: 0.23 | V11: 0.21 | W11: 1.37 | X11: 0.35 | Y11: 26
B12: 5 | D12: Lamtoro | G12: 350 | H12: 1170.568562 | I12: 70.1 | J12: 29.9 | K12: 8.5 | L12: 23.3 | M12: 4 | N12: 19.9 | O12: 44.3 | P12: 40.9 | Q12: 25.4 | R12: 19 | S12: 13.9 | T12: 74.4 | U12: 1.07 | V12: 0.21 | W12: 1.89 | X12: 0.02 | Y12: 29.9
B13: 6 | D13: Kaliandra | G13: 350 | H13: 1002.86533 | I13: 65.1 | J13: 34.9 | K13: 6.3 | L13: 20.8 | M13: 2.4 | N13: 25.2 | O13: 45.3 | P13: 55.6 | Q13: 37.1 | R13: 19.1 | S13: 13.1 | T13: 71 | U13: 0.71 | V13: 0.28 | W13: 0.6 | X13: 0.01 | Y13: 34.9
B14: 7 | D14: Glirisidia | G14: 350 | H14: 1383.399209 | I14: 74.7 | J14: 25.3 | K14: 10 | L14: 22.3 | M14: 4.2 | N14: 19.7 | O14: 43.8 | P14: 49.7 | Q14: 34.8 | R14: 19.7 | S14: 14.5 | T14: 72 | U14: 1.19 | V14: 0.23 | W14: 2.71 | X14: 0.04 | Y14: 25.3
B15: 8 | D15: Turi | G15: 350 | H15: 2023.121387 | I15: 82.7 | J15: 17.3 | K15: 8.5 | L15: 25.5 | M15: 4.7 | N15: 16.2 | O15: 45.1 | P15: 25.5 | Q15: 19.5 | R15: 19.2 | S15: 14.5 | T15: 72 | U15: 1.41 | V15: 0.46 | W15: 2.04 | X15: 0.24 | Y15: 17.3
B16: 9 | D16: Angsana | G16: 350 | H16: 383.7719298 | I16: 8.8 | J16: 91.2 | K16: 9.9 | L16: 11.1 | M16: 1.7 | N16: 33.7 | O16: 43.6 | P16: 51.8 | Q16: 43.9 | R16: 17.8 | S16: 9.8 | T16: 70 | U16: 1.1 | V16: 0.15 | W16: 1.11 | X16: 0.04 | Y16: 91.2
B17: 10 | D17: Tebon jagung | G17: 250 | H17: 1072.961373 | I17: 76.7 | J17: 23.3 | K17: 7 | L17: 7.9 | M17: 1.9 | N17: 28.7 | O17: 54.5 | P17: 63.2 | Q17: 31.3 | R17: 18.2 | S17: 11.7 | T17: 56.671875 | U17: 0.36 | V17: 0.21 | W17: 1.58 | X17: 0.05 | Y17: 23.3
B18: 11 | D18: Silase jagung | G18: 300 | H18: 1276.595745 | I18: 76.5 | J18: 23.5 | K18: 4.8 | L18: 8 | M18: 2.6 | N18: 23.6 | O18: 61 | P18: 49.3 | Q18: 27 | R18: 18.9 | S18: 12.8 | T18: 62 | U18: 0.21 | V18: 0.19 | W18: 1.39 | X18: 0.02 | Y18: 23.5
B19: 12 | D19: Tanaman sorgum | G19: 250 | H19: 889.6797153 | I19: 71.9 | J19: 28.1 | K19: 9.1 | L19: 8.2 | M19: 1.9 | N19: 33.6 | O19: 47.2 | P19: 57.9 | Q19: 35 | R19: 18.1 | S19: 10.9 | T19: 60 | U19: 0.41 | V19: 0.2 | W19: 1.93 | X19: 0.25 | Y19: 28.1
B20: 13 | D20: Jerami padi | G20: 150 | H20: 161.637931 | I20: 7.2 | J20: 92.8 | K20: 18.1 | L20: 4.2 | M20: 1.4 | N20: 35.1 | O20: 41.2 | P20: 69.1 | Q20: 42.4 | R20: 15.5 | S20: 7.2 | T20: 47 | U20: 0.29 | V20: 0.09 | W20: 1.8 | X20: 0.27 | Y20: 92.8
B21: 14 | D21: Sekam padi | G21: 140 | H21: 152.3394995 | I21: 8.1 | J21: 91.9 | K21: 17.5 | L21: 3.7 | M21: 1.5 | N21: 42.6 | O21: 34.7 | P21: 67.8 | Q21: 51.7 | R21: 16.3 | S21: 3.7 | T21: 40 | U21: 0.09 | V21: 0.11 | W21: 0.4 | X21: 0.03 | Y21: 91.9
B22: 15 | D22: Daun singkong | G22: 350 | H22: 1555.555556 | I22: 77.5 | J22: 22.5 | K22: 7.4 | L22: 24.9 | M22: 6.8 | N22: 17.7 | O22: 43.2 | P22: 42.3 | Q22: 27.2 | R22: 19.9 | S22: 12.4 | T22: 61.8 | U22: 1.19 | V22: 0.37 | W22: 1.25 | X22: 0.06 | Y22: 22.5
B23: 16 | D23: Daun ubi jalar | G23: 350 | H23: 2692.307692 | I23: 87 | J23: 13 | K23: 11.2 | L23: 16.5 | M23: 4.8 | N23: 21.1 | O23: 46.4 | P23: 42.7 | Q23: 31.7 | R23: 18.3 | S23: 11.40301508 | T23: 60 | U23: 0.95 | V23: 0.29 | W23: 2.49 | X23: 0.08 | Y23: 13
B24: 17 | D24: Daun kol | G24: 100 | H24: 114.9425287 | I24: 13 | J24: 87 | K24: 11.8 | L24: 21.5 | M24: 3.33 | N24: 12.9 | O24: 50.5 | P24: 0 | Q24: 0 | R24: 0 | S24: 0 | T24: 69.8 | U24: 0.598 | V24: 0.722 | W24: 0 | X24: 0 | Y24: 87
B25: 18 | D25: Daun kacang tanah | G25: 100 | H25: 438.5964912 | I25: 77.2 | J25: 22.8 | K25: 9.18 | L25: 13.8 | M25: 4.49 | N25: 25.2 | O25: 46.9 | P25: 0 | Q25: 0 | R25: 0 | S25: 0 | T25: 59.6 | U25: 1.68 | V25: 0.273 | W25: 0 | X25: 0 | Y25: 22.8
B26: 19 | D26: Daun pisang | G26: 100 | H26: 429.1845494 | I26: 76.7 | J26: 23.3 | K26: 11.8 | L26: 16.6 | M26: 5.2 | N26: 23 | O26: 43.4 | P26: 0 | Q26: 0 | R26: 0 | S26: 0 | T26: 73.5 | U26: 0.567 | V26: 0.18 | W26: 0 | X26: 0 | Y26: 23.3
B27: 20 | D27: Batang pisang | G27: 100 | H27: 1338.688086 | I27: 92.53 | J27: 7.47 | K27: 18.3 | L27: 6.1 | M27: 2.17 | N27: 26.8 | O27: 46.9 | P27: 0 | Q27: 0 | R27: 0 | S27: 0 | T27: 53.4 | U27: 1.06 | V27: 0.12 | W27: 0 | X27: 0 | Y27: 7.47
B28: 21 | D28: Kulit pisang | G28: 200 | H28: 653.5947712 | I28: 69.4 | J28: 30.6 | K28: 3.93 | L28: 6.65 | M28: 1.3 | N28: 6.42 | O28: 81.8 | P28: 0 | Q28: 0 | R28: 0 | S28: 0 | T28: 73.1 | U28: 0.328 | V28: 0.213 | W28: 0 | X28: 0 | Y28: 30.6
B29: 22 | D29: Kulit kakao | G29: 1500 | H29: 1693.002257 | I29: 11.4 | J29: 88.6 | K29: 9.3 | L29: 17.8 | M29: 5.9 | N29: 20.7 | O29: 46.3 | P29: 46.5 | Q29: 36.8 | R29: 18.8 | S29: 6.7 | T29: 57 | U29: 0.37 | V29: 0.44 | W29: 2.68 | X29: 0.02 | Y29: 88.6
B30: 23 | D30: Kulit kacang | G30: 350 | H30: 382.0960699 | I30: 8.4 | J30: 91.6 | K30: 5.2 | L30: 7 | M30: 2 | N30: 65.9 | O30: 19.9 | P30: 66.4 | Q30: 56.4 | R30: 19.8 | S30: 3.4 | T30: 48 | U30: 0.24 | V30: 0.07 | W30: 0.69 | X30: 0.01 | Y30: 91.6
B31: 24 | D31: Pod buah kakao | G31: 500 | H31: 549.4505495 | I31: 9 | J31: 91 | K31: 11.2 | L31: 7.7 | M31: 2.7 | N31: 29.3 | O31: 49.1 | P31: 55.2 | Q31: 43.5 | R31: 17.4 | S31: 6 | T31: 55 | U31: 0.57 | V31: 0.34 | W31: 5.01 | X31: 0.01 | Y31: 91
B32: 25 | D32: Pelepah sawit | G32: 200 | H32: 505.0505051 | I32: 60.4 | J32: 39.6 | K32: 5.4 | L32: 6.5 | M32: 2 | N32: 38.9 | O32: 47.2 | P32: 70.4 | Q32: 49.3 | R32: 16.7 | S32: 5 | T32: 45 | U32: 0.53 | V32: 0.11 | W32: 0.7 | X32: 0.05 | Y32: 39.6
B33: 26 | D33: Serat sawit | G33: 220 | H33: 263.1578947 | I33: 16.4 | J33: 83.6 | K33: 6.7 | L33: 6.2 | M33: 26.5 | N33: 31 | O33: 29.6 | P33: 66 | Q33: 42.8 | R33: 23.5 | S33: 4.5 | T33: 43 | U33: 0.32 | V33: 0.36 | W33: 0.49 | X33: 0.19 | Y33: 83.6
B34: 27 | D34: Bagas tebu | G34: 200 | H34: 434.7826087 | I34: 54 | J34: 46 | K34: 5.9 | L34: 1.8 | M34: 0.6 | N34: 45.9 | O34: 45.8 | P34: 86.9 | Q34: 58.4 | R34: 18.4 | S34: 7 | T34: 45 | U34: 0.14 | V34: 0.06 | W34: 0.13 | X34: 0.01 | Y34: 46
B35: 28 | D35: Limbah nanas | G35: 230 | H35: 259.5936795 | I35: 11.4 | J35: 88.6 | K35: 8.1 | L35: 4.5 | M35: 1.2 | N35: 17.8 | O35: 68.4 | P35: 41.8 | Q35: 20.9 | R35: 17 | S35: 8 | T35: 57 | U35: 0.49 | V35: 0.13 | W35: 2.13 | X35: 0.02 | Y35: 88.6
D37: == BAHAN KONSENTRAT ==
B38: 1 | D38: Jagung | G38: 4500 | H38: =G38*100/Y38 -> 5214.368482 | I38: =100-J38 -> 13.7 | J38: 86.3 | K38: 1.4 | L38: 9.4 | M38: 4.3 | N38: 2.5 | O38: 82.4 | P38: 12.2 | Q38: 3 | R38: 18.7 | S38: 12 | T38: 80.8 | U38: 0.05 | V38: 0.3 | W38: 0.39 | X38: 0 | Y38: =100-I38 -> 86.3
B39: 2 | D39: Dedak padi | G39: 2800 | H39: 3104.21286 | I39: 9.8 | J39: 90.2 | K39: 12.4 | L39: 10 | M39: 14.4 | N39: 16.3 | O39: 44.2 | P39: 34.4 | Q39: 19.6 | R39: 20.2 | S39: 10 | T39: 67.9 | U39: 0.07 | V39: 1.38 | W39: 1.23 | X39: 0.02 | Y39: 90.2
B40: 3 | D40: Dedak padi kasar | G40: 2300 | H40: 2578.475336 | I40: 10.8 | J40: 89.2 | K40: 16.9 | L40: 8.36 | M40: 3.97 | N40: 28.9 | O40: 41.9 | P40: 0 | Q40: 0 | R40: 0 | S40: 0 | T40: 50 | U40: 0.137 | V40: 0.802 | W40: 0 | X40: 0 | Y40: 89.2
B41: 4 | D41: Dedak jagung | G41: 2600 | H41: 2961.275626 | I41: 12.2 | J41: 87.8 | K41: 3.5 | L41: 10 | M41: 7.78 | N41: 4.52 | O41: 74.2 | P41: 0 | Q41: 0 | R41: 0 | S41: 0 | T41: 82.3 | U41: 0.05 | V41: 0.3 | W41: 0 | X41: 0 | Y41: 87.8
B42: 5 | D42: Pollard | G42: 3600 | H42: 4137.931034 | I42: 13 | J42: 87 | K42: 5.6 | L42: 17.3 | M42: 3.9 | N42: 10.4 | O42: 62.8 | P42: 45.2 | Q42: 13.4 | R42: 18.9 | S42: 11 | T42: 69.2 | U42: 0.14 | V42: 1.11 | W42: 1.37 | X42: 0.01 | Y42: 87
B43: 6 | D43: Onggok kering | G43: 2400 | H43: 3007.518797 | I43: 20.2 | J43: 79.8 | K43: 2.4 | L43: 1.87 | M43: 0.324 | N43: 8.9 | O43: 85.5 | P43: 0 | Q43: 0 | R43: 0 | S43: 0 | T43: 78.3 | U43: 0.2 | V43: 0.1 | W43: 0 | X43: 0 | Y43: 79.8
B44: 7 | D44: Gaplek | G44: 3000 | H44: 3773.584906 | I44: 20.5 | J44: 79.5 | K44: 4.69 | L44: 2.6 | M44: 0.7 | N44: 5.67 | O44: 66.3 | P44: 0 | Q44: 0 | R44: 0 | S44: 0 | T44: 78.5 | U44: 0.17 | V44: 0.09 | W44: 0 | X44: 0 | Y44: 79.5
B45: 8 | D45: Singkong | G45: 3000 | H45: 7978.723404 | I45: 62.4 | J45: 37.6 | K45: 2.8 | L45: 2.6 | M45: 0.8 | N45: 3.7 | O45: 90.1 | P45: 7.8 | Q45: 5.3 | R45: 17.1 | S45: 14.5 | T45: 81.8 | U45: 0.16 | V45: 0.12 | W45: 0.77 | X45: 0 | Y45: 37.6
B46: 9 | D46: Ubi jalar | G46: 3100 | H46: 10333.33333 | I46: 70 | J46: 30 | K46: 3.6 | L46: 5.5 | M46: 1.1 | N46: 3.8 | O46: 86 | P46: 11.3 | Q46: 5.2 | R46: 17.4 | S46: 12 | T46: 75 | U46: 0.12 | V46: 0.15 | W46: 1.22 | X46: 0.02 | Y46: 30
B47: 10 | D47: Gandum | G47: 4600 | H47: 5287.356322 | I47: 13 | J47: 87 | K47: 1.8 | L47: 12.6 | M47: 1.7 | N47: 2.6 | O47: 81.3 | P47: 13.9 | Q47: 3.6 | R47: 18.2 | S47: 13 | T47: 68 | U47: 0.07 | V47: 0.36 | W47: 0.46 | X47: 0 | Y47: 87
B48: 11 | D48: Shorgum | G48: 4300 | H48: 4919.908467 | I48: 12.6 | J48: 87.4 | K48: 2.1 | L48: 10.8 | M48: 3.4 | N48: 2.8 | O48: 80.9 | P48: 11 | Q48: 4.3 | R48: 18.8 | S48: 13 | T48: 68 | U48: 0.03 | V48: 0.33 | W48: 0.43 | X48: 0.02 | Y48: 87.4
B49: 12 | D49: Roti bekas | G49: 2800 | H49: 3087.100331 | I49: 9.3 | J49: 90.7 | K49: 0.5 | L49: 12.4 | M49: 1.3 | N49: 0.8 | O49: 85 | P49: 5.5 | Q49: 2.8 | R49: 19.1 | S49: 14 | T49: 76 | U49: 0.1 | V49: 0.62 | W49: 0.82 | X49: 0.974 | Y49: 90.7
B50: 13 | D50: Molases | G50: 3500 | H50: 4794.520548 | I50: 27 | J50: 73 | K50: 14.6 | L50: 5.5 | M50: 1 | N50: 0.1 | O50: 78.8 | P50: 0.8 | Q50: 0.5 | R50: 14.7 | S50: 11.3 | T50: 70.7 | U50: 0.92 | V50: 0.07 | W50: 5.1 | X50: 0.24 | Y50: 73
B51: 14 | D51: CGM | G51: 6500 | H51: 7361.268403 | I51: 11.7 | J51: 88.3 | K51: 6.9 | L51: 21.7 | M51: 3.4 | N51: 8.3 | O51: 59.7 | P51: 39.6 | Q51: 10.6 | R51: 18.8 | S51: 13 | T51: 78.5 | U51: 0.03 | V51: 0.4 | W51: 0.1 | X51: 0.08 | Y51: 88.3
B52: 15 | D52: DDGS | G52: 3000 | H52: 3374.578178 | I52: 11.1 | J52: 88.9 | K52: 5.9 | L52: 30.2 | M52: 10.9 | N52: 8.8 | O52: =100-(SUM(K52:N52)) -> 44.2 | P52: 0 | Q52: 0 | R52: 0 | S52: 0 | T52: 70 | U52: 0 | V52: 0 | W52: 0 | X52: 0 | Y52: 88.9
B53: 16 | D53: Bungkil kedelai | G53: 7000 | H53: 7963.594994 | I53: 12.1 | J53: 87.9 | K53: 7.1 | L53: 51.8 | M53: 2 | N53: 6.7 | O53: 32.4 | P53: 13.7 | Q53: 8.3 | R53: 19.7 | S53: 18.2 | T53: 83.2 | U53: 0.39 | V53: 0.69 | W53: 2.37 | X53: 0.01 | Y53: 87.9
B54: 17 | D54: Bungkil kelapa | G54: 3100 | H54: 3452.115813 | I54: 10.2 | J54: 89.8 | K54: 7 | L54: 23.5 | M54: 2.8 | N54: 16.8 | O54: 49.9 | P54: 56.4 | Q54: 30.7 | R54: 18.7 | S54: 14.5 | T54: 78.7 | U54: 0.07 | V54: 0.65 | W54: 2.28 | X54: 0.06 | Y54: 89.8
B55: 18 | D55: Bungkil inti sawit | G55: 2900 | H55: 3190.319032 | I55: 9.1 | J55: 90.9 | K55: 4.6 | L55: 18.7 | M55: 2.8 | N55: 20.2 | O55: 53.7 | P55: 73.2 | Q55: 45 | R55: 18.8 | S55: 13.3 | T55: 79 | U55: 0.27 | V55: 0.66 | W55: 0.74 | X55: 0 | Y55: 90.9
B56: 19 | D56: Bungkil inti sawit 2# | G56: 2750 | H56: 3015.350877 | I56: 8.8 | J56: 91.2 | K56: 4.7 | L56: 16.7 | M56: 9.2 | N56: 19.8 | O56: 49.6 | P56: 73 | Q56: 44.8 | R56: 20.1 | S56: 14.3 | T56: 78 | U56: 0.28 | V56: 0.6 | W56: 0.65 | X56: 0.02 | Y56: 91.2
B57: 20 | D57: Bungkil kacang tanah | G57: 6700 | H57: 7411.504425 | I57: 9.6 | J57: 90.4 | K57: 2.4 | L57: 53.3 | M57: 2.1 | N57: 7.1 | O57: 35.1 | P57: 16.7 | Q57: 10 | R57: 20 | S57: 16.9 | T57: 80.9 | U57: 0.18 | V57: 0.69 | W57: 1.39 | X57: 0.01 | Y57: 90.4
B58: 21 | D58: Bungkil biji kapas | G58: 3500 | H58: 3850.385039 | I58: 9.1 | J58: 90.9 | K58: 7.4 | L58: 47.3 | M58: 3 | N58: 12.9 | O58: 29.4 | P58: 27 | Q58: 17.8 | R58: 20 | S58: 12 | T58: 73.7 | U58: 0.21 | V58: 1.31 | W58: 1.64 | X58: 0.09 | Y58: 90.9
B59: 22 | D59: Bungkil bii kapuk | G59: 3500 | H59: 3910.614525 | I59: 10.5 | J59: 89.5 | K59: 7.9 | L59: 34.1 | M59: 8.1 | N59: 17.7 | O59: 32.2 | P59: 51.8 | Q59: 42.5 | R59: 20.4 | S59: 11 | T59: 72 | U59: 0.49 | V59: 0.95 | W59: 1.81 | X59: 0 | Y59: 89.5
B60: 23 | D60: Kulit kopi | G60: 1200 | H60: 1714.285714 | I60: 30 | J60: 70 | K60: 11.28 | L60: 9.94 | M60: 1.97 | N60: 18.17 | O60: 58.6 | P60: 0 | Q60: 0 | R60: 0 | S60: 0 | T60: 50.6 | U60: 0.68 | V60: 0.2 | W60: 0 | X60: 0 | Y60: 70
B61: 24 | D61: Ampas bir kering | G61: 2700 | H61: 2854.122622 | I61: 5.4 | J61: 94.6 | K61: 4.5 | L61: 32 | M61: 10.2 | N61: 17.3 | O61: 35.7 | P61: 0 | Q61: 0 | R61: 0 | S61: 0 | T61: 75.4 | U61: 0.205 | V61: 0.555 | W61: 0 | X61: 0 | Y61: 94.6
B62: 25 | D62: Ampas kecap | G62: 2500 | H62: 9398.496241 | I62: 73.4 | J62: 26.6 | K62: 14.2 | L62: 23.5 | M62: 24.2 | N62: 16 | O62: 22.1 | P62: 0 | Q62: 0 | R62: 0 | S62: 0 | T62: 87.2 | U62: 0.882 | V62: 0.141 | W62: 0 | X62: 0 | Y62: 26.6
B63: 26 | D63: Ampas tahu basah | G63: 1500 | H63: 10273.9726 | I63: 85.4 | J63: 14.6 | K63: 5.1 | L63: 30.3 | M63: 9.9 | N63: 22.2 | O63: 32.5 | P63: 0 | Q63: 0 | R63: 0 | S63: 0 | T63: 77.9 | U63: 0.07 | V63: 0.36 | W63: 0 | X63: 0 | Y63: 14.6
B64: 27 | D64: Tumpi jagung | G64: 2000 | H64: 2272.727273 | I64: 12 | J64: 88 | K64: 9.14 | L64: 8.04 | M64: 2.44 | N64: 11.7 | O64: =100-SUM(K64:N64) -> 68.68 | P64: 0 | Q64: 0 | R64: 0 | S64: 0 | T64: 51.16 | U64: 0.26 | V64: 0.16 | W64: 0 | X64: 0 | Y64: 88
B65: 28 | D65: Tongkol jagung | G65: 500 | H65: 4901.960784 | I65: 89.8 | J65: 10.2 | K65: 1.55 | L65: 2.52 | M65: 0.8 | N65: 24.5 | O65: 36.51 | P65: 0 | Q65: 0 | R65: 0 | S65: 0 | T65: 52 | U65: 0 | V65: 0 | W65: 0 | X65: 0 | Y65: 10.2
B66: 29 | D66: Manur ayam | G66: 600 | H66: 684.9315068 | I66: 12.4 | J66: 87.6 | K66: 17.4 | L66: 24.2 | M66: 2.4 | N66: 18.5 | O66: 37.5 | P66: 43.8 | Q66: 25.9 | R66: 16.8 | S66: 11.6 | T66: 58 | U66: 5.04 | V66: 1.98 | W66: 1.61 | X66: 0.59 | Y66: 87.6
D68: == BAHAN MINERAL ==
B69: 1 | D69: Garam | G69: 2000 | H69: =G69*100/Y69 -> 2105.263158 | I69: =100-J69 -> 5 | J69: 95 | K69: 99 | L69: 0 | M69: 0 | N69: 0 | O69: 0 | P69: 0 | Q69: 0 | R69: 0 | S69: 0 | T69: 0 | U69: 0 | V69: 0 | W69: 60.6 | X69: 39.4 | Y69: =100-I69 -> 95
B70: 2 | D70: Kapur | G70: 1500 | H70: 1578.947368 | I70: 5 | J70: 95 | K70: 99 | L70: 0 | M70: 0 | N70: 0 | O70: 0 | P70: 0 | Q70: 0 | R70: 0 | S70: 0 | T70: 0 | U70: 36 | V70: 0 | W70: 0 | X70: 0 | Y70: 95
B71: 3 | D71: Tepung batu | G71: 1500 | H71: 1578.947368 | I71: 5 | J71: 95 | K71: 99 | L71: 0 | M71: 0 | N71: 0 | O71: 0 | P71: 0 | Q71: 0 | R71: 0 | S71: 0 | T71: 0 | U71: 35 | V71: 0 | W71: 0 | X71: 0 | Y71: 95
B72: 4 | D72: Calsium Karbonat | G72: 2000 | H72: 2105.263158 | I72: 5 | J72: 95 | K72: 99 | L72: 0 | M72: 0 | N72: 0 | O72: 0 | P72: 0 | Q72: 0 | R72: 0 | S72: 0 | T72: 0 | U72: 40 | V72: 0 | W72: 0 | X72: 0 | Y72: 95
B73: 5 | D73: DCP | G73: 10000 | H73: 10526.31579 | I73: 5 | J73: 95 | K73: 99 | L73: 0 | M73: 0 | N73: 0 | O73: 0 | P73: 0 | Q73: 0 | R73: 0 | S73: 0 | T73: 0 | U73: 23 | V73: 17 | W73: 0 | X73: 0 | Y73: 95
B74: 6 | D74: Mineral Mix | G74: 30000 | H74: 31578.94737 | I74: 5 | J74: 95 | K74: 99 | L74: 0 | M74: 0 | N74: 0 | O74: 0 | P74: 0 | Q74: 0 | R74: 0 | S74: 0 | T74: 0 | U74: 20 | V74: 10 | W74: 0 | X74: 0 | Y74: 95
B75: 7 | D75: Cattle Mix | G75: 40000 | H75: 42105.26316 | I75: 5 | J75: 95 | K75: 88 | L75: 0 | M75: 0 | N75: 0 | O75: 0 | P75: 0 | Q75: 0 | R75: 0 | S75: 0 | T75: 0 | U75: 20 | V75: 10 | W75: 0 | X75: 0 | Y75: 95
B76: 8 | D76: Premix | G76: 80000 | H76: 84210.52632 | I76: 5 | J76: 95 | K76: 88 | L76: 0 | M76: 0 | N76: 0 | O76: 0 | P76: 0 | Q76: 0 | R76: 0 | S76: 0 | T76: 0 | U76: 2 | V76: 5 | W76: 0 | X76: 0 | Y76: 95
B77: 9 | D77: - | G77: 9999999999 | H77: 9999999999 | I77: 0 | J77: 100 | K77: 0 | L77: 0 | M77: 0 | N77: 0 | O77: 0 | P77: 0 | Q77: 0 | R77: 0 | S77: 0 | T77: 0 | U77: 0 | V77: 0 | W77: 0 | X77: 0 | Y77: 100
D79: == BAHAN PAKAN LAINNYA
B80: 1 | D80: - | G80: 9999999999 | H80: 9999999999 | I80: 0 | J80: 100 | K80: 0 | L80: 0 | M80: 0 | N80: 0 | O80: 0 | P80: 0 | Q80: 0 | R80: 0 | S80: 0 | T80: 0 | U80: 0 | V80: 0 | W80: 0 | X80: 0 | Y80: 100
B81: 2 | D81: - | G81: 9999999999 | H81: 9999999999 | I81: 0 | J81: 100 | K81: 0 | L81: 0 | M81: 0 | N81: 0 | O81: 0 | P81: 0 | Q81: 0 | R81: 0 | S81: 0 | T81: 0 | U81: 0 | V81: 0 | W81: 0 | X81: 0 | Y81: 100
B82: 3 | D82: - | G82: 9999999999 | H82: 9999999999 | I82: 0 | J82: 100 | K82: 0 | L82: 0 | M82: 0 | N82: 0 | O82: 0 | P82: 0 | Q82: 0 | R82: 0 | S82: 0 | T82: 0 | U82: 0 | V82: 0 | W82: 0 | X82: 0 | Y82: 100
B83: 4 | D83: - | G83: 9999999999 | H83: 9999999999 | I83: 0 | J83: 100 | K83: 0 | L83: 0 | M83: 0 | N83: 0 | O83: 0 | P83: 0 | Q83: 0 | R83: 0 | S83: 0 | T83: 0 | U83: 0 | V83: 0 | W83: 0 | X83: 0 | Y83: 100
B84: 5 | D84: - | G84: 9999999999 | H84: 9999999999 | I84: 0 | J84: 100 | K84: 0 | L84: 0 | M84: 0 | N84: 0 | O84: 0 | P84: 0 | Q84: 0 | R84: 0 | S84: 0 | T84: 0 | U84: 0 | V84: 0 | W84: 0 | X84: 0 | Y84: 100
B85: 6 | D85: - | G85: 9999999999 | H85: 9999999999 | I85: 0 | J85: 100 | K85: 0 | L85: 0 | M85: 0 | N85: 0 | O85: 0 | P85: 0 | Q85: 0 | R85: 0 | S85: 0 | T85: 0 | U85: 0 | V85: 0 | W85: 0 | X85: 0 | Y85: 100
B86: 7 | D86: - | G86: 9999999999 | H86: 9999999999 | I86: 0 | J86: 100 | K86: 0 | L86: 0 | M86: 0 | N86: 0 | O86: 0 | P86: 0 | Q86: 0 | R86: 0 | S86: 0 | T86: 0 | U86: 0 | V86: 0 | W86: 0 | X86: 0 | Y86: 100
B87: 8 | D87: - | G87: 9999999999 | H87: 9999999999 | I87: 0 | J87: 100 | K87: 0 | L87: 0 | M87: 0 | N87: 0 | O87: 0 | P87: 0 | Q87: 0 | R87: 0 | S87: 0 | T87: 0 | U87: 0 | V87: 0 | W87: 0 | X87: 0 | Y87: 100
B88: 9 | D88: - | G88: 9999999999 | H88: 9999999999 | I88: 0 | J88: 100 | K88: 0 | L88: 0 | M88: 0 | N88: 0 | O88: 0 | P88: 0 | Q88: 0 | R88: 0 | S88: 0 | T88: 0 | U88: 0 | V88: 0 | W88: 0 | X88: 0 | Y88: 100
B89: 10 | D89: - | G89: 9999999999 | H89: 9999999999 | I89: 0 | J89: 100 | K89: 0 | L89: 0 | M89: 0 | N89: 0 | O89: 0 | P89: 0 | Q89: 0 | R89: 0 | S89: 0 | T89: 0 | U89: 0 | V89: 0 | W89: 0 | X89: 0 | Y89: 100
B90: 11 | D90: - | G90: 9999999999 | H90: 9999999999 | I90: 0 | J90: 100 | K90: 0 | L90: 0 | M90: 0 | N90: 0 | O90: 0 | P90: 0 | Q90: 0 | R90: 0 | S90: 0 | T90: 0 | U90: 0 | V90: 0 | W90: 0 | X90: 0 | Y90: 100
B91: 12 | D91: - | G91: 9999999999 | H91: 9999999999 | I91: 0 | J91: 100 | K91: 0 | L91: 0 | M91: 0 | N91: 0 | O91: 0 | P91: 0 | Q91: 0 | R91: 0 | S91: 0 | T91: 0 | U91: 0 | V91: 0 | W91: 0 | X91: 0 | Y91: 100
B92: 13 | D92: - | G92: 9999999999 | H92: 9999999999 | I92: 0 | J92: 100 | K92: 0 | L92: 0 | M92: 0 | N92: 0 | O92: 0 | P92: 0 | Q92: 0 | R92: 0 | S92: 0 | T92: 0 | U92: 0 | V92: 0 | W92: 0 | X92: 0 | Y92: 100
B93: 14 | D93: - | G93: 9999999999 | H93: 9999999999 | I93: 0 | J93: 100 | K93: 0 | L93: 0 | M93: 0 | N93: 0 | O93: 0 | P93: 0 | Q93: 0 | R93: 0 | S93: 0 | T93: 0 | U93: 0 | V93: 0 | W93: 0 | X93: 0 | Y93: 100
B94: 15 | D94: - | G94: 9999999999 | H94: 9999999999 | I94: 0 | J94: 100 | K94: 0 | L94: 0 | M94: 0 | N94: 0 | O94: 0 | P94: 0 | Q94: 0 | R94: 0 | S94: 0 | T94: 0 | U94: 0 | V94: 0 | W94: 0 | X94: 0 | Y94: 100
B95: 16 | D95: - | G95: 9999999999 | H95: 9999999999 | I95: 0 | J95: 100 | K95: 0 | L95: 0 | M95: 0 | N95: 0 | O95: 0 | P95: 0 | Q95: 0 | R95: 0 | S95: 0 | T95: 0 | U95: 0 | V95: 0 | W95: 0 | X95: 0 | Y95: 100
B96: 17 | D96: - | G96: 9999999999 | H96: 9999999999 | I96: 0 | J96: 100 | K96: 0 | L96: 0 | M96: 0 | N96: 0 | O96: 0 | P96: 0 | Q96: 0 | R96: 0 | S96: 0 | T96: 0 | U96: 0 | V96: 0 | W96: 0 | X96: 0 | Y96: 100
B97: 18 | D97: - | G97: 9999999999 | H97: 9999999999 | I97: 0 | J97: 100 | K97: 0 | L97: 0 | M97: 0 | N97: 0 | O97: 0 | P97: 0 | Q97: 0 | R97: 0 | S97: 0 | T97: 0 | U97: 0 | V97: 0 | W97: 0 | X97: 0 | Y97: 100
B98: 19 | D98: - | G98: 9999999999 | H98: 9999999999 | I98: 0 | J98: 100 | K98: 0 | L98: 0 | M98: 0 | N98: 0 | O98: 0 | P98: 0 | Q98: 0 | R98: 0 | S98: 0 | T98: 0 | U98: 0 | V98: 0 | W98: 0 | X98: 0 | Y98: 100
B99: 20 | D99: - | G99: 9999999999 | H99: 9999999999 | I99: 0 | J99: 100 | K99: 0 | L99: 0 | M99: 0 | N99: 0 | O99: 0 | P99: 0 | Q99: 0 | R99: 0 | S99: 0 | T99: 0 | U99: 0 | V99: 0 | W99: 0 | X99: 0 | Y99: 100
B100: 21 | D100: - | G100: 9999999999 | H100: 9999999999 | I100: 0 | J100: 100 | K100: 0 | L100: 0 | M100: 0 | N100: 0 | O100: 0 | P100: 0 | Q100: 0 | R100: 0 | S100: 0 | T100: 0 | U100: 0 | V100: 0 | W100: 0 | X100: 0 | Y100: 100
B101: 22 | D101: - | G101: 9999999999 | H101: 9999999999 | I101: 0 | J101: 100 | K101: 0 | L101: 0 | M101: 0 | N101: 0 | O101: 0 | P101: 0 | Q101: 0 | R101: 0 | S101: 0 | T101: 0 | U101: 0 | V101: 0 | W101: 0 | X101: 0 | Y101: 100
B102: 23 | D102: - | G102: 9999999999 | H102: 9999999999 | I102: 0 | J102: 100 | K102: 0 | L102: 0 | M102: 0 | N102: 0 | O102: 0 | P102: 0 | Q102: 0 | R102: 0 | S102: 0 | T102: 0 | U102: 0 | V102: 0 | W102: 0 | X102: 0 | Y102: 100
B103: 24 | D103: - | G103: 9999999999 | H103: 9999999999 | I103: 0 | J103: 100 | K103: 0 | L103: 0 | M103: 0 | N103: 0 | O103: 0 | P103: 0 | Q103: 0 | R103: 0 | S103: 0 | T103: 0 | U103: 0 | V103: 0 | W103: 0 | X103: 0 | Y103: 100
B104: 25 | D104: - | G104: 9999999999 | H104: 9999999999 | I104: 0 | J104: 100 | K104: 0 | L104: 0 | M104: 0 | N104: 0 | O104: 0 | P104: 0 | Q104: 0 | R104: 0 | S104: 0 | T104: 0 | U104: 0 | V104: 0 | W104: 0 | X104: 0 | Y104: 100
B105: 26 | D105: - | G105: 9999999999 | H105: 9999999999 | I105: 0 | J105: 100 | K105: 0 | L105: 0 | M105: 0 | N105: 0 | O105: 0 | P105: 0 | Q105: 0 | R105: 0 | S105: 0 | T105: 0 | U105: 0 | V105: 0 | W105: 0 | X105: 0 | Y105: 100
D106: BAHAN PAKAN

Sheet SAPI PERAH
D2: FORSUM for Ruminant ver 4.0++
D3: (c) 2019 Department of Nutrition and Feed Technology - IPB University | P3: Nama Ransum | Q3: : | R3: Konsentrat Sapi Perah Laktasi
P4: Formulator | Q4: : | R4: Idat G. Permana
B5: Tabel 1. Komposisi Ransum (Least Cost Ration) | P5: Tabel 2. Kandungan Nutrien Ransum (% DM) | AA5: Tabel 3. Perhitungan Ransum (Jangan Dihapus)
B6: No | D6: Bahan Pakan | F6: Harga | H6: Min | J6: %BK | L6: %AsFeed | N6: Max | P6: Nutrien | R6: Unit | T6: Min | V6: Nutrien | X6: Max | AA6: No | AB6: Ingredient | AC6: Harga BK | AD6: KA | AE6: Abu | AF6: PK | AG6: LK | AH6: SK | AI6: BETN | AJ6: NDF | AK6: ADF | AL6: GE | AM6: DE | AN6: TDN | AO6: Ca | AP6: P | AQ6: K | AR6: Na | AS6: BK | AT6: Bahan Pakan | AU6: Min | AV6: Komposisi Ransum | AW6: Max | AX6: Nutrien | AY6: Min | AZ6: Nutrient | BA6: Max | BB6: %AsFeed | BC6: %AsFeed
B8: 1 | D8: Jagung | F8: =_xlfn.IFNA(VLOOKUP($D8,'BAHAN PAKAN'!$D$7:$Y$106,4,FALSE),0) -> 4500 | H8: 5 | J8: 5 | L8: =BB8/($BB$24/100) -> 3.739155625 | P8: Kadar Air | R8: % | V8: =AZ8 -> 22.35764262 | AA8: 1 | AB8: =_xlfn.IFNA(VLOOKUP(D8,'BAHAN PAKAN'!$D$7:$Y$106,1,FALSE),0) -> Jagung | AC8: =IF(F8>0,F8*100/AS8,99999999) -> 5214.368482 | AD8: =_xlfn.IFNA(VLOOKUP(D8,'BAHAN PAKAN'!$D$7:$Y$106,6,FALSE),0) -> 13.7 | AE8: =_xlfn.IFNA(VLOOKUP(D8,'BAHAN PAKAN'!$D$7:$Y$106,8,FALSE),0) -> 1.4 | AF8: =_xlfn.IFNA(VLOOKUP(D8,'BAHAN PAKAN'!$D$7:$Y$106,9,FALSE),0) -> 9.4 | AG8: =_xlfn.IFNA(VLOOKUP(D8,'BAHAN PAKAN'!$D$7:$Y$106,10,FALSE),0) -> 4.3 | AH8: =_xlfn.IFNA(VLOOKUP(D8,'BAHAN PAKAN'!$D$7:$Y$106,11,FALSE),0) -> 2.5 | AI8: =_xlfn.IFNA(VLOOKUP(D8,'BAHAN PAKAN'!$D$7:$Y$106,12,FALSE),0) -> 82.4 | AJ8: =_xlfn.IFNA(VLOOKUP(D8,'BAHAN PAKAN'!$D$7:$Y$106,13,FALSE),0) -> 12.2 | AK8: =_xlfn.IFNA(VLOOKUP(D8,'BAHAN PAKAN'!$D$7:$Y$106,14,FALSE),0) -> 3 | AL8: =_xlfn.IFNA(VLOOKUP(D8,'BAHAN PAKAN'!$D$7:$Y$106,15,FALSE),0) -> 18.7 | AM8: =_xlfn.IFNA(VLOOKUP(D8,'BAHAN PAKAN'!$D$7:$Y$106,16,FALSE),0) -> 12 | AN8: =_xlfn.IFNA(VLOOKUP(D8,'BAHAN PAKAN'!$D$7:$Y$106,17,FALSE),0) -> 80.8 | AO8: =_xlfn.IFNA(VLOOKUP(D8,'BAHAN PAKAN'!$D$7:$Y$106,18,FALSE),0) -> 0.05 | AP8: =_xlfn.IFNA(VLOOKUP(D8,'BAHAN PAKAN'!$D$7:$Y$106,19,FALSE),0) -> 0.3 | AQ8: =_xlfn.IFNA(VLOOKUP(D8,'BAHAN PAKAN'!$D$7:$Y$106,20,FALSE),0) -> 0.39 | AR8: =_xlfn.IFNA(VLOOKUP(D8,'BAHAN PAKAN'!$D$7:$Y$106,21,FALSE),0) -> 0 | AS8: =_xlfn.IFNA(VLOOKUP(D8,'BAHAN PAKAN'!$D$7:$Y$106,22,FALSE),0) -> 86.3 | AT8: =AB8 -> Jagung | AU8: =IF(H8>0,H8,0) -> 5 | AV8: =J8 -> 5 | AW8: =IF(N8>0,N8,100) -> 100 | AX8: =P8 -> Kadar Air | AY8: =IF(T8>0,T8,0) -> 0 | AZ8: =SUMPRODUCT(KadarAir,KomposisiRansum)/100 -> 22.35764262 | BA8: =IF(X8>0,X8,100) -> 100 | BB8: =IFERROR(BC8,0) -> 5.793742758 | BC8: =100/AS8*J8 -> 5.793742758
B9: 2 | D9: Dedak padi | F9: =_xlfn.IFNA(VLOOKUP($D9,'BAHAN PAKAN'!$D$7:$Y$106,4,FALSE),0) -> 2800 | J9: 0 | L9: =BB9/($BB$24/100) -> 0 | N9: 15 | P9: Abu | R9: % | V9: =AZ9 -> 9.795506395 | X9: 10 | AA9: 2 | AB9: =_xlfn.IFNA(VLOOKUP(D9,'BAHAN PAKAN'!$D$7:$Y$106,1,FALSE),0) -> Dedak padi | AC9: =IF(F9>0,F9*100/AS9,99999999) -> 3104.21286 | AD9: =_xlfn.IFNA(VLOOKUP(D9,'BAHAN PAKAN'!$D$7:$Y$106,6,FALSE),0) -> 9.8 | AE9: =_xlfn.IFNA(VLOOKUP(D9,'BAHAN PAKAN'!$D$7:$Y$106,8,FALSE),0) -> 12.4 | AF9: =_xlfn.IFNA(VLOOKUP(D9,'BAHAN PAKAN'!$D$7:$Y$106,9,FALSE),0) -> 10 | AG9: =_xlfn.IFNA(VLOOKUP(D9,'BAHAN PAKAN'!$D$7:$Y$106,10,FALSE),0) -> 14.4 | AH9: =_xlfn.IFNA(VLOOKUP(D9,'BAHAN PAKAN'!$D$7:$Y$106,11,FALSE),0) -> 16.3 | AI9: =_xlfn.IFNA(VLOOKUP(D9,'BAHAN PAKAN'!$D$7:$Y$106,12,FALSE),0) -> 44.2 | AJ9: =_xlfn.IFNA(VLOOKUP(D9,'BAHAN PAKAN'!$D$7:$Y$106,13,FALSE),0) -> 34.4 | AK9: =_xlfn.IFNA(VLOOKUP(D9,'BAHAN PAKAN'!$D$7:$Y$106,14,FALSE),0) -> 19.6 | AL9: =_xlfn.IFNA(VLOOKUP(D9,'BAHAN PAKAN'!$D$7:$Y$106,15,FALSE),0) -> 20.2 | AM9: =_xlfn.IFNA(VLOOKUP(D9,'BAHAN PAKAN'!$D$7:$Y$106,16,FALSE),0) -> 10 | AN9: =_xlfn.IFNA(VLOOKUP(D9,'BAHAN PAKAN'!$D$7:$Y$106,17,FALSE),0) -> 67.9 | AO9: =_xlfn.IFNA(VLOOKUP(D9,'BAHAN PAKAN'!$D$7:$Y$106,18,FALSE),0) -> 0.07 | AP9: =_xlfn.IFNA(VLOOKUP(D9,'BAHAN PAKAN'!$D$7:$Y$106,19,FALSE),0) -> 1.38 | AQ9: =_xlfn.IFNA(VLOOKUP(D9,'BAHAN PAKAN'!$D$7:$Y$106,20,FALSE),0) -> 1.23 | AR9: =_xlfn.IFNA(VLOOKUP(D9,'BAHAN PAKAN'!$D$7:$Y$106,21,FALSE),0) -> 0.02 | AS9: =_xlfn.IFNA(VLOOKUP(D9,'BAHAN PAKAN'!$D$7:$Y$106,22,FALSE),0) -> 90.2 | AT9: Dedak padi | AU9: =IF(H9>0,H9,0) -> 0 | AV9: =J9 -> 0 | AW9: =IF(N9>0,N9,100) -> 15 | AX9: =P9 -> Abu | AY9: =IF(T9>0,T9,0) -> 0 | AZ9: =SUMPRODUCT(Abu,KomposisiRansum)/100 -> 9.795506395 | BA9: =IF(X9>0,X9,100) -> 10 | BB9: =IFERROR(BC9,0) -> 0 | BC9: =100/AS9*J9 -> 0
B10: 3 | D10: Pollard | F10: =_xlfn.IFNA(VLOOKUP($D10,'BAHAN PAKAN'!$D$7:$Y$106,4,FALSE),0) -> 3600 | J10: 29.4348503 | L10: 21.83518678 | P10: Protein Kasar | R10: % | T10: 17 | V10: 17 | AA10: 3 | AB10: =_xlfn.IFNA(VLOOKUP(D10,'BAHAN PAKAN'!$D$7:$Y$106,1,FALSE),0) -> Pollard | AC10: 4137.931034 | AD10: =_xlfn.IFNA(VLOOKUP(D10,'BAHAN PAKAN'!$D$7:$Y$106,6,FALSE),0) -> 13 | AE10: =_xlfn.IFNA(VLOOKUP(D10,'BAHAN PAKAN'!$D$7:$Y$106,8,FALSE),0) -> 5.6 | AF10: =_xlfn.IFNA(VLOOKUP(D10,'BAHAN PAKAN'!$D$7:$Y$106,9,FALSE),0) -> 17.3 | AG10: =_xlfn.IFNA(VLOOKUP(D10,'BAHAN PAKAN'!$D$7:$Y$106,10,FALSE),0) -> 3.9 | AH10: =_xlfn.IFNA(VLOOKUP(D10,'BAHAN PAKAN'!$D$7:$Y$106,11,FALSE),0) -> 10.4 | AI10: =_xlfn.IFNA(VLOOKUP(D10,'BAHAN PAKAN'!$D$7:$Y$106,12,FALSE),0) -> 62.8 | AJ10: =_xlfn.IFNA(VLOOKUP(D10,'BAHAN PAKAN'!$D$7:$Y$106,13,FALSE),0) -> 45.2 | AK10: =_xlfn.IFNA(VLOOKUP(D10,'BAHAN PAKAN'!$D$7:$Y$106,14,FALSE),0) -> 13.4 | AL10: =_xlfn.IFNA(VLOOKUP(D10,'BAHAN PAKAN'!$D$7:$Y$106,15,FALSE),0) -> 18.9 | AM10: =_xlfn.IFNA(VLOOKUP(D10,'BAHAN PAKAN'!$D$7:$Y$106,16,FALSE),0) -> 11 | AN10: =_xlfn.IFNA(VLOOKUP(D10,'BAHAN PAKAN'!$D$7:$Y$106,17,FALSE),0) -> 69.2 | AO10: =_xlfn.IFNA(VLOOKUP(D10,'BAHAN PAKAN'!$D$7:$Y$106,18,FALSE),0) -> 0.14 | AP10: =_xlfn.IFNA(VLOOKUP(D10,'BAHAN PAKAN'!$D$7:$Y$106,19,FALSE),0) -> 1.11 | AQ10: =_xlfn.IFNA(VLOOKUP(D10,'BAHAN PAKAN'!$D$7:$Y$106,20,FALSE),0) -> 1.37 | AR10: =_xlfn.IFNA(VLOOKUP(D10,'BAHAN PAKAN'!$D$7:$Y$106,21,FALSE),0) -> 0.01 | AS10: =_xlfn.IFNA(VLOOKUP(D10,'BAHAN PAKAN'!$D$7:$Y$106,22,FALSE),0) -> 87 | AT10: Pollard | AU10: 0 | AV10: 29.4348503 | AW10: 100 | AX10: Protein Kasar | AY10: 17 | AZ10: =SUMPRODUCT(PK,KomposisiRansum)/100 -> 17 | BA10: 100 | BB10: 33.83316126 | BC10: 33.83316126
B11: 4 | D11: Onggok kering | F11: =_xlfn.IFNA(VLOOKUP($D11,'BAHAN PAKAN'!$D$7:$Y$106,4,FALSE),0) -> 2400 | J11: 7.983880771 | L11: 6.456921162 | P11: Lemak Kasar | R11: % | V11: 6.063661935 | X11: 7 | AA11: 4 | AB11: =_xlfn.IFNA(VLOOKUP(D11,'BAHAN PAKAN'!$D$7:$Y$106,1,FALSE),0) -> Onggok kering | AC11: 3007.518797 | AD11: =_xlfn.IFNA(VLOOKUP(D11,'BAHAN PAKAN'!$D$7:$Y$106,6,FALSE),0) -> 20.2 | AE11: =_xlfn.IFNA(VLOOKUP(D11,'BAHAN PAKAN'!$D$7:$Y$106,8,FALSE),0) -> 2.4 | AF11: =_xlfn.IFNA(VLOOKUP(D11,'BAHAN PAKAN'!$D$7:$Y$106,9,FALSE),0) -> 1.87 | AG11: =_xlfn.IFNA(VLOOKUP(D11,'BAHAN PAKAN'!$D$7:$Y$106,10,FALSE),0) -> 0.324 | AH11: =_xlfn.IFNA(VLOOKUP(D11,'BAHAN PAKAN'!$D$7:$Y$106,11,FALSE),0) -> 8.9 | AI11: =_xlfn.IFNA(VLOOKUP(D11,'BAHAN PAKAN'!$D$7:$Y$106,12,FALSE),0) -> 85.5 | AJ11: =_xlfn.IFNA(VLOOKUP(D11,'BAHAN PAKAN'!$D$7:$Y$106,13,FALSE),0) -> 0 | AK11: =_xlfn.IFNA(VLOOKUP(D11,'BAHAN PAKAN'!$D$7:$Y$106,14,FALSE),0) -> 0 | AL11: =_xlfn.IFNA(VLOOKUP(D11,'BAHAN PAKAN'!$D$7:$Y$106,15,FALSE),0) -> 0 | AM11: =_xlfn.IFNA(VLOOKUP(D11,'BAHAN PAKAN'!$D$7:$Y$106,16,FALSE),0) -> 0 | AN11: =_xlfn.IFNA(VLOOKUP(D11,'BAHAN PAKAN'!$D$7:$Y$106,17,FALSE),0) -> 78.3 | AO11: =_xlfn.IFNA(VLOOKUP(D11,'BAHAN PAKAN'!$D$7:$Y$106,18,FALSE),0) -> 0.2 | AP11: =_xlfn.IFNA(VLOOKUP(D11,'BAHAN PAKAN'!$D$7:$Y$106,19,FALSE),0) -> 0.1 | AQ11: =_xlfn.IFNA(VLOOKUP(D11,'BAHAN PAKAN'!$D$7:$Y$106,20,FALSE),0) -> 0 | AR11: =_xlfn.IFNA(VLOOKUP(D11,'BAHAN PAKAN'!$D$7:$Y$106,21,FALSE),0) -> 0 | AS11: =_xlfn.IFNA(VLOOKUP(D11,'BAHAN PAKAN'!$D$7:$Y$106,22,FALSE),0) -> 79.8 | AT11: Onggok kering | AU11: 0 | AV11: 7.983880771 | AW11: 100 | AX11: Lemak Kasar | AY11: 0 | AZ11: =SUMPRODUCT(LK,KomposisiRansum)/100 -> 6.063661935 | BA11: 7 | BB11: 10.00486312 | BC11: 10.00486312
B12: 5 | D12: Bungkil kelapa | F12: =_xlfn.IFNA(VLOOKUP($D12,'BAHAN PAKAN'!$D$7:$Y$106,4,FALSE),0) -> 3100 | J12: 20 | L12: 14.37368064 | N12: 20 | P12: Serat Kasar | R12: % | V12: 13.26976158 | AA12: 5 | AB12: =_xlfn.IFNA(VLOOKUP(D12,'BAHAN PAKAN'!$D$7:$Y$106,1,FALSE),0) -> Bungkil kelapa | AC12: 3452.115813 | AD12: =_xlfn.IFNA(VLOOKUP(D12,'BAHAN PAKAN'!$D$7:$Y$106,6,FALSE),0) -> 10.2 | AE12: =_xlfn.IFNA(VLOOKUP(D12,'BAHAN PAKAN'!$D$7:$Y$106,8,FALSE),0) -> 7 | AF12: =_xlfn.IFNA(VLOOKUP(D12,'BAHAN PAKAN'!$D$7:$Y$106,9,FALSE),0) -> 23.5 | AG12: =_xlfn.IFNA(VLOOKUP(D12,'BAHAN PAKAN'!$D$7:$Y$106,10,FALSE),0) -> 2.8 | AH12: =_xlfn.IFNA(VLOOKUP(D12,'BAHAN PAKAN'!$D$7:$Y$106,11,FALSE),0) -> 16.8 | AI12: =_xlfn.IFNA(VLOOKUP(D12,'BAHAN PAKAN'!$D$7:$Y$106,12,FALSE),0) -> 49.9 | AJ12: =_xlfn.IFNA(VLOOKUP(D12,'BAHAN PAKAN'!$D$7:$Y$106,13,FALSE),0) -> 56.4 | AK12: =_xlfn.IFNA(VLOOKUP(D12,'BAHAN PAKAN'!$D$7:$Y$106,14,FALSE),0) -> 30.7 | AL12: =_xlfn.IFNA(VLOOKUP(D12,'BAHAN PAKAN'!$D$7:$Y$106,15,FALSE),0) -> 18.7 | AM12: =_xlfn.IFNA(VLOOKUP(D12,'BAHAN PAKAN'!$D$7:$Y$106,16,FALSE),0) -> 14.5 | AN12: =_xlfn.IFNA(VLOOKUP(D12,'BAHAN PAKAN'!$D$7:$Y$106,17,FALSE),0) -> 78.7 | AO12: =_xlfn.IFNA(VLOOKUP(D12,'BAHAN PAKAN'!$D$7:$Y$106,18,FALSE),0) -> 0.07 | AP12: =_xlfn.IFNA(VLOOKUP(D12,'BAHAN PAKAN'!$D$7:$Y$106,19,FALSE),0) -> 0.65 | AQ12: =_xlfn.IFNA(VLOOKUP(D12,'BAHAN PAKAN'!$D$7:$Y$106,20,FALSE),0) -> 2.28 | AR12: =_xlfn.IFNA(VLOOKUP(D12,'BAHAN PAKAN'!$D$7:$Y$106,21,FALSE),0) -> 0.06 | AS12: =_xlfn.IFNA(VLOOKUP(D12,'BAHAN PAKAN'!$D$7:$Y$106,22,FALSE),0) -> 89.8 | AT12: Bungkil kelapa | AU12: 0 | AV12: 20 | AW12: 20 | AX12: Serat Kasar | AY12: 0 | AZ12: =SUMPRODUCT(SK,KomposisiRansum)/100 -> 13.26976158 | BA12: 100 | BB12: 22.27171492 | BC12: 22.27171492
B13: 6 | D13: Bungkil inti sawit | F13: =_xlfn.IFNA(VLOOKUP($D13,'BAHAN PAKAN'!$D$7:$Y$106,4,FALSE),0) -> 2900 | J13: 13.38272219 | L13: 9.501559925 | N13: 15 | P13: BETN | R13: % | V13: 53.75838556 | AA13: 6 | AB13: =_xlfn.IFNA(VLOOKUP(D13,'BAHAN PAKAN'!$D$7:$Y$106,1,FALSE),0) -> Bungkil inti sawit | AC13: 3190.319032 | AD13: =_xlfn.IFNA(VLOOKUP(D13,'BAHAN PAKAN'!$D$7:$Y$106,6,FALSE),0) -> 9.1 | AE13: =_xlfn.IFNA(VLOOKUP(D13,'BAHAN PAKAN'!$D$7:$Y$106,8,FALSE),0) -> 4.6 | AF13: =_xlfn.IFNA(VLOOKUP(D13,'BAHAN PAKAN'!$D$7:$Y$106,9,FALSE),0) -> 18.7 | AG13: =_xlfn.IFNA(VLOOKUP(D13,'BAHAN PAKAN'!$D$7:$Y$106,10,FALSE),0) -> 2.8 | AH13: =_xlfn.IFNA(VLOOKUP(D13,'BAHAN PAKAN'!$D$7:$Y$106,11,FALSE),0) -> 20.2 | AI13: =_xlfn.IFNA(VLOOKUP(D13,'BAHAN PAKAN'!$D$7:$Y$106,12,FALSE),0) -> 53.7 | AJ13: =_xlfn.IFNA(VLOOKUP(D13,'BAHAN PAKAN'!$D$7:$Y$106,13,FALSE),0) -> 73.2 | AK13: =_xlfn.IFNA(VLOOKUP(D13,'BAHAN PAKAN'!$D$7:$Y$106,14,FALSE),0) -> 45 | AL13: =_xlfn.IFNA(VLOOKUP(D13,'BAHAN PAKAN'!$D$7:$Y$106,15,FALSE),0) -> 18.8 | AM13: =_xlfn.IFNA(VLOOKUP(D13,'BAHAN PAKAN'!$D$7:$Y$106,16,FALSE),0) -> 13.3 | AN13: =_xlfn.IFNA(VLOOKUP(D13,'BAHAN PAKAN'!$D$7:$Y$106,17,FALSE),0) -> 79 | AO13: =_xlfn.IFNA(VLOOKUP(D13,'BAHAN PAKAN'!$D$7:$Y$106,18,FALSE),0) -> 0.27 | AP13: =_xlfn.IFNA(VLOOKUP(D13,'BAHAN PAKAN'!$D$7:$Y$106,19,FALSE),0) -> 0.66 | AQ13: =_xlfn.IFNA(VLOOKUP(D13,'BAHAN PAKAN'!$D$7:$Y$106,20,FALSE),0) -> 0.74 | AR13: =_xlfn.IFNA(VLOOKUP(D13,'BAHAN PAKAN'!$D$7:$Y$106,21,FALSE),0) -> 0 | AS13: =_xlfn.IFNA(VLOOKUP(D13,'BAHAN PAKAN'!$D$7:$Y$106,22,FALSE),0) -> 90.9 | AT13: Bungkil inti sawit | AU13: 0 | AV13: 13.38272219 | AW13: 15 | AX13: BETN | AY13: 0 | AZ13: =SUMPRODUCT(BETN,KomposisiRansum)/100 -> 53.75838556 | BA13: 100 | BB13: 14.72246665 | BC13: 14.72246665
B14: 7 | D14: Ampas kecap | F14: =_xlfn.IFNA(VLOOKUP($D14,'BAHAN PAKAN'!$D$7:$Y$106,4,FALSE),0) -> 2500 | J14: 15 | L14: 36.39351095 | N14: 15 | P14: NDF | R14: % | V14: 35 | X14: 35 | AA14: 7 | AB14: =_xlfn.IFNA(VLOOKUP(D14,'BAHAN PAKAN'!$D$7:$Y$106,1,FALSE),0) -> Ampas kecap | AC14: 9398.496241 | AD14: =_xlfn.IFNA(VLOOKUP(D14,'BAHAN PAKAN'!$D$7:$Y$106,6,FALSE),0) -> 73.4 | AE14: =_xlfn.IFNA(VLOOKUP(D14,'BAHAN PAKAN'!$D$7:$Y$106,8,FALSE),0) -> 14.2 | AF14: =_xlfn.IFNA(VLOOKUP(D14,'BAHAN PAKAN'!$D$7:$Y$106,9,FALSE),0) -> 23.5 | AG14: =_xlfn.IFNA(VLOOKUP(D14,'BAHAN PAKAN'!$D$7:$Y$106,10,FALSE),0) -> 24.2 | AH14: =_xlfn.IFNA(VLOOKUP(D14,'BAHAN PAKAN'!$D$7:$Y$106,11,FALSE),0) -> 16 | AI14: =_xlfn.IFNA(VLOOKUP(D14,'BAHAN PAKAN'!$D$7:$Y$106,12,FALSE),0) -> 22.1 | AJ14: =_xlfn.IFNA(VLOOKUP(D14,'BAHAN PAKAN'!$D$7:$Y$106,13,FALSE),0) -> 0 | AK14: =_xlfn.IFNA(VLOOKUP(D14,'BAHAN PAKAN'!$D$7:$Y$106,14,FALSE),0) -> 0 | AL14: =_xlfn.IFNA(VLOOKUP(D14,'BAHAN PAKAN'!$D$7:$Y$106,15,FALSE),0) -> 0 | AM14: =_xlfn.IFNA(VLOOKUP(D14,'BAHAN PAKAN'!$D$7:$Y$106,16,FALSE),0) -> 0 | AN14: =_xlfn.IFNA(VLOOKUP(D14,'BAHAN PAKAN'!$D$7:$Y$106,17,FALSE),0) -> 87.2 | AO14: =_xlfn.IFNA(VLOOKUP(D14,'BAHAN PAKAN'!$D$7:$Y$106,18,FALSE),0) -> 0.882 | AP14: =_xlfn.IFNA(VLOOKUP(D14,'BAHAN PAKAN'!$D$7:$Y$106,19,FALSE),0) -> 0.141 | AQ14: =_xlfn.IFNA(VLOOKUP(D14,'BAHAN PAKAN'!$D$7:$Y$106,20,FALSE),0) -> 0 | AR14: =_xlfn.IFNA(VLOOKUP(D14,'BAHAN PAKAN'!$D$7:$Y$106,21,FALSE),0) -> 0 | AS14: =_xlfn.IFNA(VLOOKUP(D14,'BAHAN PAKAN'!$D$7:$Y$106,22,FALSE),0) -> 26.6 | AT14: Ampas kecap | AU14: 0 | AV14: 15 | AW14: 15 | AX14: NDF | AY14: 0 | AZ14: =SUMPRODUCT(NDF,KomposisiRansum)/100 -> 35 | BA14: 35 | BB14: 56.39097744 | BC14: 56.39097744
B15: 8 | D15: Kulit kopi | F15: =_xlfn.IFNA(VLOOKUP($D15,'BAHAN PAKAN'!$D$7:$Y$106,4,FALSE),0) -> 1200 | J15: 5 | L15: 4.609844721 | N15: 5 | P15: ADF | R15: % | V15: 16.26230431 | AA15: 8 | AB15: =_xlfn.IFNA(VLOOKUP(D15,'BAHAN PAKAN'!$D$7:$Y$106,1,FALSE),0) -> Kulit kopi | AC15: 1714.285714 | AD15: =_xlfn.IFNA(VLOOKUP(D15,'BAHAN PAKAN'!$D$7:$Y$106,6,FALSE),0) -> 30 | AE15: =_xlfn.IFNA(VLOOKUP(D15,'BAHAN PAKAN'!$D$7:$Y$106,8,FALSE),0) -> 11.28 | AF15: =_xlfn.IFNA(VLOOKUP(D15,'BAHAN PAKAN'!$D$7:$Y$106,9,FALSE),0) -> 9.94 | AG15: =_xlfn.IFNA(VLOOKUP(D15,'BAHAN PAKAN'!$D$7:$Y$106,10,FALSE),0) -> 1.97 | AH15: =_xlfn.IFNA(VLOOKUP(D15,'BAHAN PAKAN'!$D$7:$Y$106,11,FALSE),0) -> 18.17 | AI15: =_xlfn.IFNA(VLOOKUP(D15,'BAHAN PAKAN'!$D$7:$Y$106,12,FALSE),0) -> 58.6 | AJ15: =_xlfn.IFNA(VLOOKUP(D15,'BAHAN PAKAN'!$D$7:$Y$106,13,FALSE),0) -> 0 | AK15: =_xlfn.IFNA(VLOOKUP(D15,'BAHAN PAKAN'!$D$7:$Y$106,14,FALSE),0) -> 0 | AL15: =_xlfn.IFNA(VLOOKUP(D15,'BAHAN PAKAN'!$D$7:$Y$106,15,FALSE),0) -> 0 | AM15: =_xlfn.IFNA(VLOOKUP(D15,'BAHAN PAKAN'!$D$7:$Y$106,16,FALSE),0) -> 0 | AN15: =_xlfn.IFNA(VLOOKUP(D15,'BAHAN PAKAN'!$D$7:$Y$106,17,FALSE),0) -> 50.6 | AO15: =_xlfn.IFNA(VLOOKUP(D15,'BAHAN PAKAN'!$D$7:$Y$106,18,FALSE),0) -> 0.68 | AP15: =_xlfn.IFNA(VLOOKUP(D15,'BAHAN PAKAN'!$D$7:$Y$106,19,FALSE),0) -> 0.2 | AQ15: =_xlfn.IFNA(VLOOKUP(D15,'BAHAN PAKAN'!$D$7:$Y$106,20,FALSE),0) -> 0 | AR15: =_xlfn.IFNA(VLOOKUP(D15,'BAHAN PAKAN'!$D$7:$Y$106,21,FALSE),0) -> 0 | AS15: =_xlfn.IFNA(VLOOKUP(D15,'BAHAN PAKAN'!$D$7:$Y$106,22,FALSE),0) -> 70 | AT15: Kulit kopi | AU15: 0 | AV15: 5 | AW15: 5 | AX15: ADF | AY15: 0 | AZ15: =SUMPRODUCT(ADF,KomposisiRansum)/100 -> 16.26230431 | BA15: 100 | BB15: 7.142857143 | BC15: 7.142857143
B16: 9 | D16: Kulit kacang | F16: =_xlfn.IFNA(VLOOKUP($D16,'BAHAN PAKAN'!$D$7:$Y$106,4,FALSE),0) -> 350 | J16: 0 | L16: 0 | N16: 5 | P16: GE | R16: MJ/kg | V16: 12.92493451 | AA16: 9 | AB16: =_xlfn.IFNA(VLOOKUP(D16,'BAHAN PAKAN'!$D$7:$Y$106,1,FALSE),0) -> Kulit kacang | AC16: 382.0960699 | AD16: =_xlfn.IFNA(VLOOKUP(D16,'BAHAN PAKAN'!$D$7:$Y$106,6,FALSE),0) -> 8.4 | AE16: =_xlfn.IFNA(VLOOKUP(D16,'BAHAN PAKAN'!$D$7:$Y$106,8,FALSE),0) -> 5.2 | AF16: =_xlfn.IFNA(VLOOKUP(D16,'BAHAN PAKAN'!$D$7:$Y$106,9,FALSE),0) -> 7 | AG16: =_xlfn.IFNA(VLOOKUP(D16,'BAHAN PAKAN'!$D$7:$Y$106,10,FALSE),0) -> 2 | AH16: =_xlfn.IFNA(VLOOKUP(D16,'BAHAN PAKAN'!$D$7:$Y$106,11,FALSE),0) -> 65.9 | AI16: =_xlfn.IFNA(VLOOKUP(D16,'BAHAN PAKAN'!$D$7:$Y$106,12,FALSE),0) -> 19.9 | AJ16: =_xlfn.IFNA(VLOOKUP(D16,'BAHAN PAKAN'!$D$7:$Y$106,13,FALSE),0) -> 66.4 | AK16: =_xlfn.IFNA(VLOOKUP(D16,'BAHAN PAKAN'!$D$7:$Y$106,14,FALSE),0) -> 56.4 | AL16: =_xlfn.IFNA(VLOOKUP(D16,'BAHAN PAKAN'!$D$7:$Y$106,15,FALSE),0) -> 19.8 | AM16: =_xlfn.IFNA(VLOOKUP(D16,'BAHAN PAKAN'!$D$7:$Y$106,16,FALSE),0) -> 3.4 | AN16: =_xlfn.IFNA(VLOOKUP(D16,'BAHAN PAKAN'!$D$7:$Y$106,17,FALSE),0) -> 48 | AO16: =_xlfn.IFNA(VLOOKUP(D16,'BAHAN PAKAN'!$D$7:$Y$106,18,FALSE),0) -> 0.24 | AP16: =_xlfn.IFNA(VLOOKUP(D16,'BAHAN PAKAN'!$D$7:$Y$106,19,FALSE),0) -> 0.07 | AQ16: =_xlfn.IFNA(VLOOKUP(D16,'BAHAN PAKAN'!$D$7:$Y$106,20,FALSE),0) -> 0.69 | AR16: =_xlfn.IFNA(VLOOKUP(D16,'BAHAN PAKAN'!$D$7:$Y$106,21,FALSE),0) -> 0.01 | AS16: =_xlfn.IFNA(VLOOKUP(D16,'BAHAN PAKAN'!$D$7:$Y$106,22,FALSE),0) -> 91.6 | AT16: Kulit kacang | AU16: 0 | AV16: 0 | AW16: 5 | AX16: GE | AY16: 0 | AZ16: =SUMPRODUCT(GE,KomposisiRansum)/100 -> 12.92493451 | BA16: 100 | BB16: 0 | BC16: 0
B17: 10 | D17: Molases | F17: =_xlfn.IFNA(VLOOKUP($D17,'BAHAN PAKAN'!$D$7:$Y$106,4,FALSE),0) -> 3500 | J17: 1.161877789 | L17: 1.027192694 | P17: DE | R17: MJ/kg | V17: 8.649027774 | AA17: 10 | AB17: =_xlfn.IFNA(VLOOKUP(D17,'BAHAN PAKAN'!$D$7:$Y$106,1,FALSE),0) -> Molases | AC17: 4794.520548 | AD17: =_xlfn.IFNA(VLOOKUP(D17,'BAHAN PAKAN'!$D$7:$Y$106,6,FALSE),0) -> 27 | AE17: =_xlfn.IFNA(VLOOKUP(D17,'BAHAN PAKAN'!$D$7:$Y$106,8,FALSE),0) -> 14.6 | AF17: =_xlfn.IFNA(VLOOKUP(D17,'BAHAN PAKAN'!$D$7:$Y$106,9,FALSE),0) -> 5.5 | AG17: =_xlfn.IFNA(VLOOKUP(D17,'BAHAN PAKAN'!$D$7:$Y$106,10,FALSE),0) -> 1 | AH17: =_xlfn.IFNA(VLOOKUP(D17,'BAHAN PAKAN'!$D$7:$Y$106,11,FALSE),0) -> 0.1 | AI17: =_xlfn.IFNA(VLOOKUP(D17,'BAHAN PAKAN'!$D$7:$Y$106,12,FALSE),0) -> 78.8 | AJ17: =_xlfn.IFNA(VLOOKUP(D17,'BAHAN PAKAN'!$D$7:$Y$106,13,FALSE),0) -> 0.8 | AK17: =_xlfn.IFNA(VLOOKUP(D17,'BAHAN PAKAN'!$D$7:$Y$106,14,FALSE),0) -> 0.5 | AL17: =_xlfn.IFNA(VLOOKUP(D17,'BAHAN PAKAN'!$D$7:$Y$106,15,FALSE),0) -> 14.7 | AM17: =_xlfn.IFNA(VLOOKUP(D17,'BAHAN PAKAN'!$D$7:$Y$106,16,FALSE),0) -> 11.3 | AN17: =_xlfn.IFNA(VLOOKUP(D17,'BAHAN PAKAN'!$D$7:$Y$106,17,FALSE),0) -> 70.7 | AO17: =_xlfn.IFNA(VLOOKUP(D17,'BAHAN PAKAN'!$D$7:$Y$106,18,FALSE),0) -> 0.92 | AP17: =_xlfn.IFNA(VLOOKUP(D17,'BAHAN PAKAN'!$D$7:$Y$106,19,FALSE),0) -> 0.07 | AQ17: =_xlfn.IFNA(VLOOKUP(D17,'BAHAN PAKAN'!$D$7:$Y$106,20,FALSE),0) -> 5.1 | AR17: =_xlfn.IFNA(VLOOKUP(D17,'BAHAN PAKAN'!$D$7:$Y$106,21,FALSE),0) -> 0.24 | AS17: =_xlfn.IFNA(VLOOKUP(D17,'BAHAN PAKAN'!$D$7:$Y$106,22,FALSE),0) -> 73 | AT17: Molases | AU17: 0 | AV17: 1.161877789 | AW17: 100 | AX17: DE | AY17: 0 | AZ17: =SUMPRODUCT(DE,KomposisiRansum)/100 -> 8.649027774 | BA17: 100 | BB17: 1.59161341 | BC17: 1.59161341
B18: 11 | D18: Garam | F18: =_xlfn.IFNA(VLOOKUP($D18,'BAHAN PAKAN'!$D$7:$Y$106,4,FALSE),0) -> 2000 | H18: 0.5 | J18: 0.5 | L18: 0.3396727689 | N18: 0.5 | P18: TDN | R18: % | T18: 68 | V18: 73.40409318 | AA18: 11 | AB18: =_xlfn.IFNA(VLOOKUP(D18,'BAHAN PAKAN'!$D$7:$Y$106,1,FALSE),0) -> Garam | AC18: 2105.263158 | AD18: =_xlfn.IFNA(VLOOKUP(D18,'BAHAN PAKAN'!$D$7:$Y$106,6,FALSE),0) -> 5 | AE18: =_xlfn.IFNA(VLOOKUP(D18,'BAHAN PAKAN'!$D$7:$Y$106,8,FALSE),0) -> 99 | AF18: =_xlfn.IFNA(VLOOKUP(D18,'BAHAN PAKAN'!$D$7:$Y$106,9,FALSE),0) -> 0 | AG18: =_xlfn.IFNA(VLOOKUP(D18,'BAHAN PAKAN'!$D$7:$Y$106,10,FALSE),0) -> 0 | AH18: =_xlfn.IFNA(VLOOKUP(D18,'BAHAN PAKAN'!$D$7:$Y$106,11,FALSE),0) -> 0 | AI18: =_xlfn.IFNA(VLOOKUP(D18,'BAHAN PAKAN'!$D$7:$Y$106,12,FALSE),0) -> 0 | AJ18: =_xlfn.IFNA(VLOOKUP(D18,'BAHAN PAKAN'!$D$7:$Y$106,13,FALSE),0) -> 0 | AK18: =_xlfn.IFNA(VLOOKUP(D18,'BAHAN PAKAN'!$D$7:$Y$106,14,FALSE),0) -> 0 | AL18: =_xlfn.IFNA(VLOOKUP(D18,'BAHAN PAKAN'!$D$7:$Y$106,15,FALSE),0) -> 0 | AM18: =_xlfn.IFNA(VLOOKUP(D18,'BAHAN PAKAN'!$D$7:$Y$106,16,FALSE),0) -> 0 | AN18: =_xlfn.IFNA(VLOOKUP(D18,'BAHAN PAKAN'!$D$7:$Y$106,17,FALSE),0) -> 0 | AO18: =_xlfn.IFNA(VLOOKUP(D18,'BAHAN PAKAN'!$D$7:$Y$106,18,FALSE),0) -> 0 | AP18: =_xlfn.IFNA(VLOOKUP(D18,'BAHAN PAKAN'!$D$7:$Y$106,19,FALSE),0) -> 0 | AQ18: =_xlfn.IFNA(VLOOKUP(D18,'BAHAN PAKAN'!$D$7:$Y$106,20,FALSE),0) -> 60.6 | AR18: =_xlfn.IFNA(VLOOKUP(D18,'BAHAN PAKAN'!$D$7:$Y$106,21,FALSE),0) -> 39.4 | AS18: =_xlfn.IFNA(VLOOKUP(D18,'BAHAN PAKAN'!$D$7:$Y$106,22,FALSE),0) -> 95 | AT18: Garam | AU18: 0.5 | AV18: 0.5 | AW18: 0.5 | AX18: TDN | AY18: 68 | AZ18: =SUMPRODUCT(TDN,KomposisiRansum)/100 -> 73.40409318 | BA18: 100 | BB18: 0.5263157895 | BC18: 0.5263157895
B19: 12 | D19: Kapur | F19: =_xlfn.IFNA(VLOOKUP($D19,'BAHAN PAKAN'!$D$7:$Y$106,4,FALSE),0) -> 1500 | J19: 2.536668951 | L19: 1.723274733 | P19: Kalsium | R19: % | T19: 0.8 | V19: 1.2 | X19: 1.2 | AA19: 12 | AB19: =_xlfn.IFNA(VLOOKUP(D19,'BAHAN PAKAN'!$D$7:$Y$106,1,FALSE),0) -> Kapur | AC19: 1578.947368 | AD19: =_xlfn.IFNA(VLOOKUP(D19,'BAHAN PAKAN'!$D$7:$Y$106,6,FALSE),0) -> 5 | AE19: =_xlfn.IFNA(VLOOKUP(D19,'BAHAN PAKAN'!$D$7:$Y$106,8,FALSE),0) -> 99 | AF19: =_xlfn.IFNA(VLOOKUP(D19,'BAHAN PAKAN'!$D$7:$Y$106,9,FALSE),0) -> 0 | AG19: =_xlfn.IFNA(VLOOKUP(D19,'BAHAN PAKAN'!$D$7:$Y$106,10,FALSE),0) -> 0 | AH19: =_xlfn.IFNA(VLOOKUP(D19,'BAHAN PAKAN'!$D$7:$Y$106,11,FALSE),0) -> 0 | AI19: =_xlfn.IFNA(VLOOKUP(D19,'BAHAN PAKAN'!$D$7:$Y$106,12,FALSE),0) -> 0 | AJ19: =_xlfn.IFNA(VLOOKUP(D19,'BAHAN PAKAN'!$D$7:$Y$106,13,FALSE),0) -> 0 | AK19: =_xlfn.IFNA(VLOOKUP(D19,'BAHAN PAKAN'!$D$7:$Y$106,14,FALSE),0) -> 0 | AL19: =_xlfn.IFNA(VLOOKUP(D19,'BAHAN PAKAN'!$D$7:$Y$106,15,FALSE),0) -> 0 | AM19: =_xlfn.IFNA(VLOOKUP(D19,'BAHAN PAKAN'!$D$7:$Y$106,16,FALSE),0) -> 0 | AN19: =_xlfn.IFNA(VLOOKUP(D19,'BAHAN PAKAN'!$D$7:$Y$106,17,FALSE),0) -> 0 | AO19: =_xlfn.IFNA(VLOOKUP(D19,'BAHAN PAKAN'!$D$7:$Y$106,18,FALSE),0) -> 36 | AP19: =_xlfn.IFNA(VLOOKUP(D19,'BAHAN PAKAN'!$D$7:$Y$106,19,FALSE),0) -> 0 | AQ19: =_xlfn.IFNA(VLOOKUP(D19,'BAHAN PAKAN'!$D$7:$Y$106,20,FALSE),0) -> 0 | AR19: =_xlfn.IFNA(VLOOKUP(D19,'BAHAN PAKAN'!$D$7:$Y$106,21,FALSE),0) -> 0 | AS19: =_xlfn.IFNA(VLOOKUP(D19,'BAHAN PAKAN'!$D$7:$Y$106,22,FALSE),0) -> 95 | AT19: Kapur | AU19: 0 | AV19: 2.536668951 | AW19: 100 | AX19: Kalsium | AY19: 0.8 | AZ19: =SUMPRODUCT(Ca,KomposisiRansum)/100 -> 1.2 | BA19: 1.2 | BB19: 2.670177843 | BC19: 2.670177843
B20: 13 | D20: DCP | F20: =_xlfn.IFNA(VLOOKUP($D20,'BAHAN PAKAN'!$D$7:$Y$106,4,FALSE),0) -> 10000 | J20: 0 | L20: 0 | P20: Phosphor | R20: % | T20: 0.4 | V20: 0.6 | X20: 0.6 | AA20: 13 | AB20: =_xlfn.IFNA(VLOOKUP(D20,'BAHAN PAKAN'!$D$7:$Y$106,1,FALSE),0) -> DCP | AC20: 10526.31579 | AD20: =_xlfn.IFNA(VLOOKUP(D20,'BAHAN PAKAN'!$D$7:$Y$106,6,FALSE),0) -> 5 | AE20: =_xlfn.IFNA(VLOOKUP(D20,'BAHAN PAKAN'!$D$7:$Y$106,8,FALSE),0) -> 99 | AF20: =_xlfn.IFNA(VLOOKUP(D20,'BAHAN PAKAN'!$D$7:$Y$106,9,FALSE),0) -> 0 | AG20: =_xlfn.IFNA(VLOOKUP(D20,'BAHAN PAKAN'!$D$7:$Y$106,10,FALSE),0) -> 0 | AH20: =_xlfn.IFNA(VLOOKUP(D20,'BAHAN PAKAN'!$D$7:$Y$106,11,FALSE),0) -> 0 | AI20: =_xlfn.IFNA(VLOOKUP(D20,'BAHAN PAKAN'!$D$7:$Y$106,12,FALSE),0) -> 0 | AJ20: =_xlfn.IFNA(VLOOKUP(D20,'BAHAN PAKAN'!$D$7:$Y$106,13,FALSE),0) -> 0 | AK20: =_xlfn.IFNA(VLOOKUP(D20,'BAHAN PAKAN'!$D$7:$Y$106,14,FALSE),0) -> 0 | AL20: =_xlfn.IFNA(VLOOKUP(D20,'BAHAN PAKAN'!$D$7:$Y$106,15,FALSE),0) -> 0 | AM20: =_xlfn.IFNA(VLOOKUP(D20,'BAHAN PAKAN'!$D$7:$Y$106,16,FALSE),0) -> 0 | AN20: =_xlfn.IFNA(VLOOKUP(D20,'BAHAN PAKAN'!$D$7:$Y$106,17,FALSE),0) -> 0 | AO20: =_xlfn.IFNA(VLOOKUP(D20,'BAHAN PAKAN'!$D$7:$Y$106,18,FALSE),0) -> 23 | AP20: =_xlfn.IFNA(VLOOKUP(D20,'BAHAN PAKAN'!$D$7:$Y$106,19,FALSE),0) -> 17 | AQ20: =_xlfn.IFNA(VLOOKUP(D20,'BAHAN PAKAN'!$D$7:$Y$106,20,FALSE),0) -> 0 | AR20: =_xlfn.IFNA(VLOOKUP(D20,'BAHAN PAKAN'!$D$7:$Y$106,21,FALSE),0) -> 0 | AS20: =_xlfn.IFNA(VLOOKUP(D20,'BAHAN PAKAN'!$D$7:$Y$106,22,FALSE),0) -> 95 | AT20: DCP | AU20: 0 | AV20: 0 | AW20: 100 | AX20: Phosphor | AY20: 0.4 | AZ20: =SUMPRODUCT(P,KomposisiRansum)/100 -> 0.6 | BA20: 0.6 | BB20: 0 | BC20: 0
B21: 14 | D21: - | F21: =_xlfn.IFNA(VLOOKUP($D21,'BAHAN PAKAN'!$D$7:$Y$106,4,FALSE),0) -> 9999999999 | J21: 0 | L21: 0 | P21: Kalium | R21: % | V21: 1.340045361 | AA21: 14 | AB21: =_xlfn.IFNA(VLOOKUP(D21,'BAHAN PAKAN'!$D$7:$Y$106,1,FALSE),0) -> - | AC21: 9999999999 | AD21: =_xlfn.IFNA(VLOOKUP(D21,'BAHAN PAKAN'!$D$7:$Y$106,6,FALSE),0) -> 0 | AE21: =_xlfn.IFNA(VLOOKUP(D21,'BAHAN PAKAN'!$D$7:$Y$106,8,FALSE),0) -> 0 | AF21: =_xlfn.IFNA(VLOOKUP(D21,'BAHAN PAKAN'!$D$7:$Y$106,9,FALSE),0) -> 0 | AG21: =_xlfn.IFNA(VLOOKUP(D21,'BAHAN PAKAN'!$D$7:$Y$106,10,FALSE),0) -> 0 | AH21: =_xlfn.IFNA(VLOOKUP(D21,'BAHAN PAKAN'!$D$7:$Y$106,11,FALSE),0) -> 0 | AI21: =_xlfn.IFNA(VLOOKUP(D21,'BAHAN PAKAN'!$D$7:$Y$106,12,FALSE),0) -> 0 | AJ21: =_xlfn.IFNA(VLOOKUP(D21,'BAHAN PAKAN'!$D$7:$Y$106,13,FALSE),0) -> 0 | AK21: =_xlfn.IFNA(VLOOKUP(D21,'BAHAN PAKAN'!$D$7:$Y$106,14,FALSE),0) -> 0 | AL21: =_xlfn.IFNA(VLOOKUP(D21,'BAHAN PAKAN'!$D$7:$Y$106,15,FALSE),0) -> 0 | AM21: =_xlfn.IFNA(VLOOKUP(D21,'BAHAN PAKAN'!$D$7:$Y$106,16,FALSE),0) -> 0 | AN21: =_xlfn.IFNA(VLOOKUP(D21,'BAHAN PAKAN'!$D$7:$Y$106,17,FALSE),0) -> 0 | AO21: =_xlfn.IFNA(VLOOKUP(D21,'BAHAN PAKAN'!$D$7:$Y$106,18,FALSE),0) -> 0 | AP21: =_xlfn.IFNA(VLOOKUP(D21,'BAHAN PAKAN'!$D$7:$Y$106,19,FALSE),0) -> 0 | AQ21: =_xlfn.IFNA(VLOOKUP(D21,'BAHAN PAKAN'!$D$7:$Y$106,20,FALSE),0) -> 0 | AR21: =_xlfn.IFNA(VLOOKUP(D21,'BAHAN PAKAN'!$D$7:$Y$106,21,FALSE),0) -> 0 | AS21: =_xlfn.IFNA(VLOOKUP(D21,'BAHAN PAKAN'!$D$7:$Y$106,22,FALSE),0) -> 100 | AT21: - | AU21: 0 | AV21: 0 | AW21: 100 | AX21: Kalium | AY21: 0 | AZ21: =SUMPRODUCT(K,KomposisiRansum)/100 -> 1.340045361 | BA21: 100 | BB21: 0 | BC21: 0
B22: 15 | D22: - | F22: =_xlfn.IFNA(VLOOKUP($D22,'BAHAN PAKAN'!$D$7:$Y$106,4,FALSE),0) -> 9999999999 | J22: 0 | L22: 0 | P22: Natrium | R22: % | V22: 0.2147319917 | AA22: 15 | AB22: =_xlfn.IFNA(VLOOKUP(D22,'BAHAN PAKAN'!$D$7:$Y$106,1,FALSE),0) -> - | AC22: 9999999999 | AD22: =_xlfn.IFNA(VLOOKUP(D22,'BAHAN PAKAN'!$D$7:$Y$106,6,FALSE),0) -> 0 | AE22: =_xlfn.IFNA(VLOOKUP(D22,'BAHAN PAKAN'!$D$7:$Y$106,8,FALSE),0) -> 0 | AF22: =_xlfn.IFNA(VLOOKUP(D22,'BAHAN PAKAN'!$D$7:$Y$106,9,FALSE),0) -> 0 | AG22: =_xlfn.IFNA(VLOOKUP(D22,'BAHAN PAKAN'!$D$7:$Y$106,10,FALSE),0) -> 0 | AH22: =_xlfn.IFNA(VLOOKUP(D22,'BAHAN PAKAN'!$D$7:$Y$106,11,FALSE),0) -> 0 | AI22: =_xlfn.IFNA(VLOOKUP(D22,'BAHAN PAKAN'!$D$7:$Y$106,12,FALSE),0) -> 0 | AJ22: =_xlfn.IFNA(VLOOKUP(D22,'BAHAN PAKAN'!$D$7:$Y$106,13,FALSE),0) -> 0 | AK22: =_xlfn.IFNA(VLOOKUP(D22,'BAHAN PAKAN'!$D$7:$Y$106,14,FALSE),0) -> 0 | AL22: =_xlfn.IFNA(VLOOKUP(D22,'BAHAN PAKAN'!$D$7:$Y$106,15,FALSE),0) -> 0 | AM22: =_xlfn.IFNA(VLOOKUP(D22,'BAHAN PAKAN'!$D$7:$Y$106,16,FALSE),0) -> 0 | AN22: =_xlfn.IFNA(VLOOKUP(D22,'BAHAN PAKAN'!$D$7:$Y$106,17,FALSE),0) -> 0 | AO22: =_xlfn.IFNA(VLOOKUP(D22,'BAHAN PAKAN'!$D$7:$Y$106,18,FALSE),0) -> 0 | AP22: =_xlfn.IFNA(VLOOKUP(D22,'BAHAN PAKAN'!$D$7:$Y$106,19,FALSE),0) -> 0 | AQ22: =_xlfn.IFNA(VLOOKUP(D22,'BAHAN PAKAN'!$D$7:$Y$106,20,FALSE),0) -> 0 | AR22: =_xlfn.IFNA(VLOOKUP(D22,'BAHAN PAKAN'!$D$7:$Y$106,21,FALSE),0) -> 0 | AS22: =_xlfn.IFNA(VLOOKUP(D22,'BAHAN PAKAN'!$D$7:$Y$106,22,FALSE),0) -> 100 | AT22: - | AU22: 0 | AV22: 0 | AW22: 100 | AX22: Natrium | AY22: 0 | AZ22: =SUMPRODUCT(Na,KomposisiRansum)/100 -> 0.2147319917 | BA22: 100 | BB22: 0 | BC22: 0
D24: Harga Ransum (Rp/kg BK) | F24: =IF(HargaRansum<10000,HargaRansum,"Ërror") -> 4437.977815 | J24: =SUM(KomposisiRansum) -> 100 | L24: =(SUM(L8:L22)) -> 100 | P24: Click to formulate >> | AC24: =SUMPRODUCT(KomposisiRansum*Harga)/100 -> 4437.977815 | BB24: =(SUM(BB8:BB22)) -> 154.9478903 | BC24: =(SUM(BC8:BC22)) -> 154.9478903
D25: Harga Ransum (Rp/kg segar) | F25: =SUMPRODUCT(L8:L22,F8:F22)/100 -> 2864.174404 | V25: =NOW() -> 2019-09-03T19:07:03.740
B26: (c) 2019 Department of Nutrition and Feed Technology - IPB University

Sheet SAPI POTONG
D2: FORSUM for Ruminant ver 4.0++
D3: (c) 2019 Department of Nutrition and Feed Technology - IPB University | P3: Nama Ransum | Q3: : | R3: Konsentrat Sapi Potong
P4: Formulator | Q4: : | R4: Idat G. Permana
B5: Tabel 1. Komposisi Ransum (Least Cost Ration) | P5: Tabel 2. Kandungan Nutrien Ransum (% DM) | AA5: Tabel 3. Perhitungan Ransum (Jangan Dihapus)
B6: No | D6: Bahan Pakan | F6: Harga | H6: Min | J6: %BK | L6: %AsFeed | N6: Max | P6: Nutrien | R6: Unit | T6: Min | V6: Nutrien | X6: Max | AA6: No | AB6: Ingredient | AC6: Harga BK | AD6: KA | AE6: Abu | AF6: PK | AG6: LK | AH6: SK | AI6: BETN | AJ6: NDF | AK6: ADF | AL6: GE | AM6: DE | AN6: TDN | AO6: Ca | AP6: P | AQ6: K | AR6: Na | AS6: BK | AT6: Bahan Pakan | AU6: Min | AV6: Komposisi Ransum | AW6: Max | AX6: Nutrien | AY6: Min | AZ6: Nutrient | BA6: Max | BB6: %AsFeed | BC6: %AsFeed
B8: 1 | D8: Jagung | F8: =_xlfn.IFNA(VLOOKUP($D8,'BAHAN PAKAN'!$D$7:$Y$106,4,FALSE),0) -> 4500 | H8: 5 | J8: 5 | L8: =BB8/($BB$24/100) -> 4.995295317 | P8: Kadar Air | R8: % | V8: =AZ8 -> 13.39344277 | AA8: 1 | AB8: =_xlfn.IFNA(VLOOKUP(D8,'BAHAN PAKAN'!$D$7:$Y$106,1,FALSE),0) -> Jagung | AC8: =IF(F8>0,F8*100/AS8,99999999) -> 5214.368482 | AD8: =_xlfn.IFNA(VLOOKUP(D8,'BAHAN PAKAN'!$D$7:$Y$106,6,FALSE),0) -> 13.7 | AE8: =_xlfn.IFNA(VLOOKUP(D8,'BAHAN PAKAN'!$D$7:$Y$106,8,FALSE),0) -> 1.4 | AF8: =_xlfn.IFNA(VLOOKUP(D8,'BAHAN PAKAN'!$D$7:$Y$106,9,FALSE),0) -> 9.4 | AG8: =_xlfn.IFNA(VLOOKUP(D8,'BAHAN PAKAN'!$D$7:$Y$106,10,FALSE),0) -> 4.3 | AH8: =_xlfn.IFNA(VLOOKUP(D8,'BAHAN PAKAN'!$D$7:$Y$106,11,FALSE),0) -> 2.5 | AI8: =_xlfn.IFNA(VLOOKUP(D8,'BAHAN PAKAN'!$D$7:$Y$106,12,FALSE),0) -> 82.4 | AJ8: =_xlfn.IFNA(VLOOKUP(D8,'BAHAN PAKAN'!$D$7:$Y$106,13,FALSE),0) -> 12.2 | AK8: =_xlfn.IFNA(VLOOKUP(D8,'BAHAN PAKAN'!$D$7:$Y$106,14,FALSE),0) -> 3 | AL8: =_xlfn.IFNA(VLOOKUP(D8,'BAHAN PAKAN'!$D$7:$Y$106,15,FALSE),0) -> 18.7 | AM8: =_xlfn.IFNA(VLOOKUP(D8,'BAHAN PAKAN'!$D$7:$Y$106,16,FALSE),0) -> 12 | AN8: =_xlfn.IFNA(VLOOKUP(D8,'BAHAN PAKAN'!$D$7:$Y$106,17,FALSE),0) -> 80.8 | AO8: =_xlfn.IFNA(VLOOKUP(D8,'BAHAN PAKAN'!$D$7:$Y$106,18,FALSE),0) -> 0.05 | AP8: =_xlfn.IFNA(VLOOKUP(D8,'BAHAN PAKAN'!$D$7:$Y$106,19,FALSE),0) -> 0.3 | AQ8: =_xlfn.IFNA(VLOOKUP(D8,'BAHAN PAKAN'!$D$7:$Y$106,20,FALSE),0) -> 0.39 | AR8: =_xlfn.IFNA(VLOOKUP(D8,'BAHAN PAKAN'!$D$7:$Y$106,21,FALSE),0) -> 0 | AS8: =_xlfn.IFNA(VLOOKUP(D8,'BAHAN PAKAN'!$D$7:$Y$106,22,FALSE),0) -> 86.3 | AT8: =AB8 -> Jagung | AU8: =IF(H8>0,H8,0) -> 5 | AV8: =J8 -> 5 | AW8: =IF(N8>0,N8,100) -> 100 | AX8: =P8 -> Kadar Air | AY8: =IF(T8>0,T8,0) -> 0 | AZ8: =SUMPRODUCT(KadarAir,KomposisiRansum)/100 -> 13.39344277 | BA8: =IF(X8>0,X8,100) -> 100 | BB8: =IFERROR(BC8,0) -> 5.793742758 | BC8: =100/AS8*J8 -> 5.793742758
B9: 2 | D9: Dedak padi | F9: =_xlfn.IFNA(VLOOKUP($D9,'BAHAN PAKAN'!$D$7:$Y$106,4,FALSE),0) -> 2800 | J9: 15 | L9: =BB9/($BB$24/100) -> 14.33793745 | N9: 15 | P9: Abu | R9: % | V9: =AZ9 -> 9.538012207 | X9: 12 | AA9: 2 | AB9: =_xlfn.IFNA(VLOOKUP(D9,'BAHAN PAKAN'!$D$7:$Y$106,1,FALSE),0) -> Dedak padi | AC9: =IF(F9>0,F9*100/AS9,99999999) -> 3104.21286 | AD9: =_xlfn.IFNA(VLOOKUP(D9,'BAHAN PAKAN'!$D$7:$Y$106,6,FALSE),0) -> 9.8 | AE9: =_xlfn.IFNA(VLOOKUP(D9,'BAHAN PAKAN'!$D$7:$Y$106,8,FALSE),0) -> 12.4 | AF9: =_xlfn.IFNA(VLOOKUP(D9,'BAHAN PAKAN'!$D$7:$Y$106,9,FALSE),0) -> 10 | AG9: =_xlfn.IFNA(VLOOKUP(D9,'BAHAN PAKAN'!$D$7:$Y$106,10,FALSE),0) -> 14.4 | AH9: =_xlfn.IFNA(VLOOKUP(D9,'BAHAN PAKAN'!$D$7:$Y$106,11,FALSE),0) -> 16.3 | AI9: =_xlfn.IFNA(VLOOKUP(D9,'BAHAN PAKAN'!$D$7:$Y$106,12,FALSE),0) -> 44.2 | AJ9: =_xlfn.IFNA(VLOOKUP(D9,'BAHAN PAKAN'!$D$7:$Y$106,13,FALSE),0) -> 34.4 | AK9: =_xlfn.IFNA(VLOOKUP(D9,'BAHAN PAKAN'!$D$7:$Y$106,14,FALSE),0) -> 19.6 | AL9: =_xlfn.IFNA(VLOOKUP(D9,'BAHAN PAKAN'!$D$7:$Y$106,15,FALSE),0) -> 20.2 | AM9: =_xlfn.IFNA(VLOOKUP(D9,'BAHAN PAKAN'!$D$7:$Y$106,16,FALSE),0) -> 10 | AN9: =_xlfn.IFNA(VLOOKUP(D9,'BAHAN PAKAN'!$D$7:$Y$106,17,FALSE),0) -> 67.9 | AO9: =_xlfn.IFNA(VLOOKUP(D9,'BAHAN PAKAN'!$D$7:$Y$106,18,FALSE),0) -> 0.07 | AP9: =_xlfn.IFNA(VLOOKUP(D9,'BAHAN PAKAN'!$D$7:$Y$106,19,FALSE),0) -> 1.38 | AQ9: =_xlfn.IFNA(VLOOKUP(D9,'BAHAN PAKAN'!$D$7:$Y$106,20,FALSE),0) -> 1.23 | AR9: =_xlfn.IFNA(VLOOKUP(D9,'BAHAN PAKAN'!$D$7:$Y$106,21,FALSE),0) -> 0.02 | AS9: =_xlfn.IFNA(VLOOKUP(D9,'BAHAN PAKAN'!$D$7:$Y$106,22,FALSE),0) -> 90.2 | AT9: Dedak padi | AU9: =IF(H9>0,H9,0) -> 0 | AV9: =J9 -> 15 | AW9: =IF(N9>0,N9,100) -> 15 | AX9: =P9 -> Abu | AY9: =IF(T9>0,T9,0) -> 0 | AZ9: =SUMPRODUCT(Abu,KomposisiRansum)/100 -> 9.538012207 | BA9: =IF(X9>0,X9,100) -> 12 | BB9: =IFERROR(BC9,0) -> 16.62971175 | BC9: =100/AS9*J9 -> 16.62971175
B10: 3 | D10: Pollard | F10: =_xlfn.IFNA(VLOOKUP($D10,'BAHAN PAKAN'!$D$7:$Y$106,4,FALSE),0) -> 3600 | J10: 24.77221886 | L10: 24.54978061 | P10: Protein Kasar | R10: % | T10: 13 | V10: 13 | AA10: 3 | AB10: =_xlfn.IFNA(VLOOKUP(D10,'BAHAN PAKAN'!$D$7:$Y$106,1,FALSE),0) -> Pollard | AC10: 4137.931034 | AD10: =_xlfn.IFNA(VLOOKUP(D10,'BAHAN PAKAN'!$D$7:$Y$106,6,FALSE),0) -> 13 | AE10: =_xlfn.IFNA(VLOOKUP(D10,'BAHAN PAKAN'!$D$7:$Y$106,8,FALSE),0) -> 5.6 | AF10: =_xlfn.IFNA(VLOOKUP(D10,'BAHAN PAKAN'!$D$7:$Y$106,9,FALSE),0) -> 17.3 | AG10: =_xlfn.IFNA(VLOOKUP(D10,'BAHAN PAKAN'!$D$7:$Y$106,10,FALSE),0) -> 3.9 | AH10: =_xlfn.IFNA(VLOOKUP(D10,'BAHAN PAKAN'!$D$7:$Y$106,11,FALSE),0) -> 10.4 | AI10: =_xlfn.IFNA(VLOOKUP(D10,'BAHAN PAKAN'!$D$7:$Y$106,12,FALSE),0) -> 62.8 | AJ10: =_xlfn.IFNA(VLOOKUP(D10,'BAHAN PAKAN'!$D$7:$Y$106,13,FALSE),0) -> 45.2 | AK10: =_xlfn.IFNA(VLOOKUP(D10,'BAHAN PAKAN'!$D$7:$Y$106,14,FALSE),0) -> 13.4 | AL10: =_xlfn.IFNA(VLOOKUP(D10,'BAHAN PAKAN'!$D$7:$Y$106,15,FALSE),0) -> 18.9 | AM10: =_xlfn.IFNA(VLOOKUP(D10,'BAHAN PAKAN'!$D$7:$Y$106,16,FALSE),0) -> 11 | AN10: =_xlfn.IFNA(VLOOKUP(D10,'BAHAN PAKAN'!$D$7:$Y$106,17,FALSE),0) -> 69.2 | AO10: =_xlfn.IFNA(VLOOKUP(D10,'BAHAN PAKAN'!$D$7:$Y$106,18,FALSE),0) -> 0.14 | AP10: =_xlfn.IFNA(VLOOKUP(D10,'BAHAN PAKAN'!$D$7:$Y$106,19,FALSE),0) -> 1.11 | AQ10: =_xlfn.IFNA(VLOOKUP(D10,'BAHAN PAKAN'!$D$7:$Y$106,20,FALSE),0) -> 1.37 | AR10: =_xlfn.IFNA(VLOOKUP(D10,'BAHAN PAKAN'!$D$7:$Y$106,21,FALSE),0) -> 0.01 | AS10: =_xlfn.IFNA(VLOOKUP(D10,'BAHAN PAKAN'!$D$7:$Y$106,22,FALSE),0) -> 87 | AT10: Pollard | AU10: 0 | AV10: 24.77221886 | AW10: 100 | AX10: Protein Kasar | AY10: 13 | AZ10: =SUMPRODUCT(PK,KomposisiRansum)/100 -> 13 | BA10: 100 | BB10: 28.47381478 | BC10: 28.47381478
B11: 4 | D11: Onggok kering | F11: =_xlfn.IFNA(VLOOKUP($D11,'BAHAN PAKAN'!$D$7:$Y$106,4,FALSE),0) -> 2400 | J11: 17.13409307 | L11: 18.51229192 | P11: Lemak Kasar | R11: % | V11: 4.286446295 | X11: 7 | AA11: 4 | AB11: =_xlfn.IFNA(VLOOKUP(D11,'BAHAN PAKAN'!$D$7:$Y$106,1,FALSE),0) -> Onggok kering | AC11: 3007.518797 | AD11: =_xlfn.IFNA(VLOOKUP(D11,'BAHAN PAKAN'!$D$7:$Y$106,6,FALSE),0) -> 20.2 | AE11: =_xlfn.IFNA(VLOOKUP(D11,'BAHAN PAKAN'!$D$7:$Y$106,8,FALSE),0) -> 2.4 | AF11: =_xlfn.IFNA(VLOOKUP(D11,'BAHAN PAKAN'!$D$7:$Y$106,9,FALSE),0) -> 1.87 | AG11: =_xlfn.IFNA(VLOOKUP(D11,'BAHAN PAKAN'!$D$7:$Y$106,10,FALSE),0) -> 0.324 | AH11: =_xlfn.IFNA(VLOOKUP(D11,'BAHAN PAKAN'!$D$7:$Y$106,11,FALSE),0) -> 8.9 | AI11: =_xlfn.IFNA(VLOOKUP(D11,'BAHAN PAKAN'!$D$7:$Y$106,12,FALSE),0) -> 85.5 | AJ11: =_xlfn.IFNA(VLOOKUP(D11,'BAHAN PAKAN'!$D$7:$Y$106,13,FALSE),0) -> 0 | AK11: =_xlfn.IFNA(VLOOKUP(D11,'BAHAN PAKAN'!$D$7:$Y$106,14,FALSE),0) -> 0 | AL11: =_xlfn.IFNA(VLOOKUP(D11,'BAHAN PAKAN'!$D$7:$Y$106,15,FALSE),0) -> 0 | AM11: =_xlfn.IFNA(VLOOKUP(D11,'BAHAN PAKAN'!$D$7:$Y$106,16,FALSE),0) -> 0 | AN11: =_xlfn.IFNA(VLOOKUP(D11,'BAHAN PAKAN'!$D$7:$Y$106,17,FALSE),0) -> 78.3 | AO11: =_xlfn.IFNA(VLOOKUP(D11,'BAHAN PAKAN'!$D$7:$Y$106,18,FALSE),0) -> 0.2 | AP11: =_xlfn.IFNA(VLOOKUP(D11,'BAHAN PAKAN'!$D$7:$Y$106,19,FALSE),0) -> 0.1 | AQ11: =_xlfn.IFNA(VLOOKUP(D11,'BAHAN PAKAN'!$D$7:$Y$106,20,FALSE),0) -> 0 | AR11: =_xlfn.IFNA(VLOOKUP(D11,'BAHAN PAKAN'!$D$7:$Y$106,21,FALSE),0) -> 0 | AS11: =_xlfn.IFNA(VLOOKUP(D11,'BAHAN PAKAN'!$D$7:$Y$106,22,FALSE),0) -> 79.8 | AT11: Onggok kering | AU11: 0 | AV11: 17.13409307 | AW11: 100 | AX11: Lemak Kasar | AY11: 0 | AZ11: =SUMPRODUCT(LK,KomposisiRansum)/100 -> 4.286446295 | BA11: 7 | BB11: 21.47129457 | BC11: 21.47129457
B12: 5 | D12: Bungkil kelapa | F12: =_xlfn.IFNA(VLOOKUP($D12,'BAHAN PAKAN'!$D$7:$Y$106,4,FALSE),0) -> 3100 | J12: 20 | L12: 19.20240471 | N12: 20 | P12: Serat Kasar | R12: % | V12: 15.18209112 | AA12: 5 | AB12: =_xlfn.IFNA(VLOOKUP(D12,'BAHAN PAKAN'!$D$7:$Y$106,1,FALSE),0) -> Bungkil kelapa | AC12: 3452.115813 | AD12: =_xlfn.IFNA(VLOOKUP(D12,'BAHAN PAKAN'!$D$7:$Y$106,6,FALSE),0) -> 10.2 | AE12: =_xlfn.IFNA(VLOOKUP(D12,'BAHAN PAKAN'!$D$7:$Y$106,8,FALSE),0) -> 7 | AF12: =_xlfn.IFNA(VLOOKUP(D12,'BAHAN PAKAN'!$D$7:$Y$106,9,FALSE),0) -> 23.5 | AG12: =_xlfn.IFNA(VLOOKUP(D12,'BAHAN PAKAN'!$D$7:$Y$106,10,FALSE),0) -> 2.8 | AH12: =_xlfn.IFNA(VLOOKUP(D12,'BAHAN PAKAN'!$D$7:$Y$106,11,FALSE),0) -> 16.8 | AI12: =_xlfn.IFNA(VLOOKUP(D12,'BAHAN PAKAN'!$D$7:$Y$106,12,FALSE),0) -> 49.9 | AJ12: =_xlfn.IFNA(VLOOKUP(D12,'BAHAN PAKAN'!$D$7:$Y$106,13,FALSE),0) -> 56.4 | AK12: =_xlfn.IFNA(VLOOKUP(D12,'BAHAN PAKAN'!$D$7:$Y$106,14,FALSE),0) -> 30.7 | AL12: =_xlfn.IFNA(VLOOKUP(D12,'BAHAN PAKAN'!$D$7:$Y$106,15,FALSE),0) -> 18.7 | AM12: =_xlfn.IFNA(VLOOKUP(D12,'BAHAN PAKAN'!$D$7:$Y$106,16,FALSE),0) -> 14.5 | AN12: =_xlfn.IFNA(VLOOKUP(D12,'BAHAN PAKAN'!$D$7:$Y$106,17,FALSE),0) -> 78.7 | AO12: =_xlfn.IFNA(VLOOKUP(D12,'BAHAN PAKAN'!$D$7:$Y$106,18,FALSE),0) -> 0.07 | AP12: =_xlfn.IFNA(VLOOKUP(D12,'BAHAN PAKAN'!$D$7:$Y$106,19,FALSE),0) -> 0.65 | AQ12: =_xlfn.IFNA(VLOOKUP(D12,'BAHAN PAKAN'!$D$7:$Y$106,20,FALSE),0) -> 2.28 | AR12: =_xlfn.IFNA(VLOOKUP(D12,'BAHAN PAKAN'!$D$7:$Y$106,21,FALSE),0) -> 0.06 | AS12: =_xlfn.IFNA(VLOOKUP(D12,'BAHAN PAKAN'!$D$7:$Y$106,22,FALSE),0) -> 89.8 | AT12: Bungkil kelapa | AU12: 0 | AV12: 20 | AW12: 20 | AX12: Serat Kasar | AY12: 0 | AZ12: =SUMPRODUCT(SK,KomposisiRansum)/100 -> 15.18209112 | BA12: 100 | BB12: 22.27171492 | BC12: 22.27171492
B13: 6 | D13: Bungkil inti sawit | F13: =_xlfn.IFNA(VLOOKUP($D13,'BAHAN PAKAN'!$D$7:$Y$106,4,FALSE),0) -> 2900 | J13: 4.689832073 | L13: 4.448313314 | N13: 20 | P13: BETN | R13: % | V13: 57.38004284 | AA13: 6 | AB13: =_xlfn.IFNA(VLOOKUP(D13,'BAHAN PAKAN'!$D$7:$Y$106,1,FALSE),0) -> Bungkil inti sawit | AC13: 3190.319032 | AD13: =_xlfn.IFNA(VLOOKUP(D13,'BAHAN PAKAN'!$D$7:$Y$106,6,FALSE),0) -> 9.1 | AE13: =_xlfn.IFNA(VLOOKUP(D13,'BAHAN PAKAN'!$D$7:$Y$106,8,FALSE),0) -> 4.6 | AF13: =_xlfn.IFNA(VLOOKUP(D13,'BAHAN PAKAN'!$D$7:$Y$106,9,FALSE),0) -> 18.7 | AG13: =_xlfn.IFNA(VLOOKUP(D13,'BAHAN PAKAN'!$D$7:$Y$106,10,FALSE),0) -> 2.8 | AH13: =_xlfn.IFNA(VLOOKUP(D13,'BAHAN PAKAN'!$D$7:$Y$106,11,FALSE),0) -> 20.2 | AI13: =_xlfn.IFNA(VLOOKUP(D13,'BAHAN PAKAN'!$D$7:$Y$106,12,FALSE),0) -> 53.7 | AJ13: =_xlfn.IFNA(VLOOKUP(D13,'BAHAN PAKAN'!$D$7:$Y$106,13,FALSE),0) -> 73.2 | AK13: =_xlfn.IFNA(VLOOKUP(D13,'BAHAN PAKAN'!$D$7:$Y$106,14,FALSE),0) -> 45 | AL13: =_xlfn.IFNA(VLOOKUP(D13,'BAHAN PAKAN'!$D$7:$Y$106,15,FALSE),0) -> 18.8 | AM13: =_xlfn.IFNA(VLOOKUP(D13,'BAHAN PAKAN'!$D$7:$Y$106,16,FALSE),0) -> 13.3 | AN13: =_xlfn.IFNA(VLOOKUP(D13,'BAHAN PAKAN'!$D$7:$Y$106,17,FALSE),0) -> 79 | AO13: =_xlfn.IFNA(VLOOKUP(D13,'BAHAN PAKAN'!$D$7:$Y$106,18,FALSE),0) -> 0.27 | AP13: =_xlfn.IFNA(VLOOKUP(D13,'BAHAN PAKAN'!$D$7:$Y$106,19,FALSE),0) -> 0.66 | AQ13: =_xlfn.IFNA(VLOOKUP(D13,'BAHAN PAKAN'!$D$7:$Y$106,20,FALSE),0) -> 0.74 | AR13: =_xlfn.IFNA(VLOOKUP(D13,'BAHAN PAKAN'!$D$7:$Y$106,21,FALSE),0) -> 0 | AS13: =_xlfn.IFNA(VLOOKUP(D13,'BAHAN PAKAN'!$D$7:$Y$106,22,FALSE),0) -> 90.9 | AT13: Bungkil inti sawit | AU13: 0 | AV13: 4.689832073 | AW13: 20 | AX13: BETN | AY13: 0 | AZ13: =SUMPRODUCT(BETN,KomposisiRansum)/100 -> 57.38004284 | BA13: 100 | BB13: 5.159331213 | BC13: 5.159331213
B14: 7 | D14: Ampas kecap | F14: =_xlfn.IFNA(VLOOKUP($D14,'BAHAN PAKAN'!$D$7:$Y$106,4,FALSE),0) -> 2500 | J14: -2.220446049e-16 | L14: -7.197149908e-16 | P14: NDF | R14: % | V14: 35 | X14: 35 | AA14: 7 | AB14: =_xlfn.IFNA(VLOOKUP(D14,'BAHAN PAKAN'!$D$7:$Y$106,1,FALSE),0) -> Ampas kecap | AC14: 9398.496241 | AD14: =_xlfn.IFNA(VLOOKUP(D14,'BAHAN PAKAN'!$D$7:$Y$106,6,FALSE),0) -> 73.4 | AE14: =_xlfn.IFNA(VLOOKUP(D14,'BAHAN PAKAN'!$D$7:$Y$106,8,FALSE),0) -> 14.2 | AF14: =_xlfn.IFNA(VLOOKUP(D14,'BAHAN PAKAN'!$D$7:$Y$106,9,FALSE),0) -> 23.5 | AG14: =_xlfn.IFNA(VLOOKUP(D14,'BAHAN PAKAN'!$D$7:$Y$106,10,FALSE),0) -> 24.2 | AH14: =_xlfn.IFNA(VLOOKUP(D14,'BAHAN PAKAN'!$D$7:$Y$106,11,FALSE),0) -> 16 | AI14: =_xlfn.IFNA(VLOOKUP(D14,'BAHAN PAKAN'!$D$7:$Y$106,12,FALSE),0) -> 22.1 | AJ14: =_xlfn.IFNA(VLOOKUP(D14,'BAHAN PAKAN'!$D$7:$Y$106,13,FALSE),0) -> 0 | AK14: =_xlfn.IFNA(VLOOKUP(D14,'BAHAN PAKAN'!$D$7:$Y$106,14,FALSE),0) -> 0 | AL14: =_xlfn.IFNA(VLOOKUP(D14,'BAHAN PAKAN'!$D$7:$Y$106,15,FALSE),0) -> 0 | AM14: =_xlfn.IFNA(VLOOKUP(D14,'BAHAN PAKAN'!$D$7:$Y$106,16,FALSE),0) -> 0 | AN14: =_xlfn.IFNA(VLOOKUP(D14,'BAHAN PAKAN'!$D$7:$Y$106,17,FALSE),0) -> 87.2 | AO14: =_xlfn.IFNA(VLOOKUP(D14,'BAHAN PAKAN'!$D$7:$Y$106,18,FALSE),0) -> 0.882 | AP14: =_xlfn.IFNA(VLOOKUP(D14,'BAHAN PAKAN'!$D$7:$Y$106,19,FALSE),0) -> 0.141 | AQ14: =_xlfn.IFNA(VLOOKUP(D14,'BAHAN PAKAN'!$D$7:$Y$106,20,FALSE),0) -> 0 | AR14: =_xlfn.IFNA(VLOOKUP(D14,'BAHAN PAKAN'!$D$7:$Y$106,21,FALSE),0) -> 0 | AS14: =_xlfn.IFNA(VLOOKUP(D14,'BAHAN PAKAN'!$D$7:$Y$106,22,FALSE),0) -> 26.6 | AT14: Ampas kecap | AU14: 0 | AV14: -2.220446049e-16 | AW14: 100 | AX14: NDF | AY14: 0 | AZ14: =SUMPRODUCT(NDF,KomposisiRansum)/100 -> 35 | BA14: 35 | BB14: -8.347541539e-16 | BC14: -8.347541539e-16
B15: 8 | D15: Kulit kopi | F15: =_xlfn.IFNA(VLOOKUP($D15,'BAHAN PAKAN'!$D$7:$Y$106,4,FALSE),0) -> 1200 | J15: 5 | L15: 6.158485512 | N15: 5 | P15: ADF | R15: % | V15: 17.47990176 | AA15: 8 | AB15: =_xlfn.IFNA(VLOOKUP(D15,'BAHAN PAKAN'!$D$7:$Y$106,1,FALSE),0) -> Kulit kopi | AC15: 1714.285714 | AD15: =_xlfn.IFNA(VLOOKUP(D15,'BAHAN PAKAN'!$D$7:$Y$106,6,FALSE),0) -> 30 | AE15: =_xlfn.IFNA(VLOOKUP(D15,'BAHAN PAKAN'!$D$7:$Y$106,8,FALSE),0) -> 11.28 | AF15: =_xlfn.IFNA(VLOOKUP(D15,'BAHAN PAKAN'!$D$7:$Y$106,9,FALSE),0) -> 9.94 | AG15: =_xlfn.IFNA(VLOOKUP(D15,'BAHAN PAKAN'!$D$7:$Y$106,10,FALSE),0) -> 1.97 | AH15: =_xlfn.IFNA(VLOOKUP(D15,'BAHAN PAKAN'!$D$7:$Y$106,11,FALSE),0) -> 18.17 | AI15: =_xlfn.IFNA(VLOOKUP(D15,'BAHAN PAKAN'!$D$7:$Y$106,12,FALSE),0) -> 58.6 | AJ15: =_xlfn.IFNA(VLOOKUP(D15,'BAHAN PAKAN'!$D$7:$Y$106,13,FALSE),0) -> 0 | AK15: =_xlfn.IFNA(VLOOKUP(D15,'BAHAN PAKAN'!$D$7:$Y$106,14,FALSE),0) -> 0 | AL15: =_xlfn.IFNA(VLOOKUP(D15,'BAHAN PAKAN'!$D$7:$Y$106,15,FALSE),0) -> 0 | AM15: =_xlfn.IFNA(VLOOKUP(D15,'BAHAN PAKAN'!$D$7:$Y$106,16,FALSE),0) -> 0 | AN15: =_xlfn.IFNA(VLOOKUP(D15,'BAHAN PAKAN'!$D$7:$Y$106,17,FALSE),0) -> 50.6 | AO15: =_xlfn.IFNA(VLOOKUP(D15,'BAHAN PAKAN'!$D$7:$Y$106,18,FALSE),0) -> 0.68 | AP15: =_xlfn.IFNA(VLOOKUP(D15,'BAHAN PAKAN'!$D$7:$Y$106,19,FALSE),0) -> 0.2 | AQ15: =_xlfn.IFNA(VLOOKUP(D15,'BAHAN PAKAN'!$D$7:$Y$106,20,FALSE),0) -> 0 | AR15: =_xlfn.IFNA(VLOOKUP(D15,'BAHAN PAKAN'!$D$7:$Y$106,21,FALSE),0) -> 0 | AS15: =_xlfn.IFNA(VLOOKUP(D15,'BAHAN PAKAN'!$D$7:$Y$106,22,FALSE),0) -> 70 | AT15: Kulit kopi | AU15: 0 | AV15: 5 | AW15: 5 | AX15: ADF | AY15: 0 | AZ15: =SUMPRODUCT(ADF,KomposisiRansum)/100 -> 17.47990176 | BA15: 100 | BB15: 7.142857143 | BC15: 7.142857143
B16: 9 | D16: Kulit kacang | F16: =_xlfn.IFNA(VLOOKUP($D16,'BAHAN PAKAN'!$D$7:$Y$106,4,FALSE),0) -> 350 | J16: 5 | L16: 4.706266221 | N16: 5 | P16: GE | R16: MJ/kg | V16: 14.25863779 | AA16: 9 | AB16: =_xlfn.IFNA(VLOOKUP(D16,'BAHAN PAKAN'!$D$7:$Y$106,1,FALSE),0) -> Kulit kacang | AC16: 382.0960699 | AD16: =_xlfn.IFNA(VLOOKUP(D16,'BAHAN PAKAN'!$D$7:$Y$106,6,FALSE),0) -> 8.4 | AE16: =_xlfn.IFNA(VLOOKUP(D16,'BAHAN PAKAN'!$D$7:$Y$106,8,FALSE),0) -> 5.2 | AF16: =_xlfn.IFNA(VLOOKUP(D16,'BAHAN PAKAN'!$D$7:$Y$106,9,FALSE),0) -> 7 | AG16: =_xlfn.IFNA(VLOOKUP(D16,'BAHAN PAKAN'!$D$7:$Y$106,10,FALSE),0) -> 2 | AH16: =_xlfn.IFNA(VLOOKUP(D16,'BAHAN PAKAN'!$D$7:$Y$106,11,FALSE),0) -> 65.9 | AI16: =_xlfn.IFNA(VLOOKUP(D16,'BAHAN PAKAN'!$D$7:$Y$106,12,FALSE),0) -> 19.9 | AJ16: =_xlfn.IFNA(VLOOKUP(D16,'BAHAN PAKAN'!$D$7:$Y$106,13,FALSE),0) -> 66.4 | AK16: =_xlfn.IFNA(VLOOKUP(D16,'BAHAN PAKAN'!$D$7:$Y$106,14,FALSE),0) -> 56.4 | AL16: =_xlfn.IFNA(VLOOKUP(D16,'BAHAN PAKAN'!$D$7:$Y$106,15,FALSE),0) -> 19.8 | AM16: =_xlfn.IFNA(VLOOKUP(D16,'BAHAN PAKAN'!$D$7:$Y$106,16,FALSE),0) -> 3.4 | AN16: =_xlfn.IFNA(VLOOKUP(D16,'BAHAN PAKAN'!$D$7:$Y$106,17,FALSE),0) -> 48 | AO16: =_xlfn.IFNA(VLOOKUP(D16,'BAHAN PAKAN'!$D$7:$Y$106,18,FALSE),0) -> 0.24 | AP16: =_xlfn.IFNA(VLOOKUP(D16,'BAHAN PAKAN'!$D$7:$Y$106,19,FALSE),0) -> 0.07 | AQ16: =_xlfn.IFNA(VLOOKUP(D16,'BAHAN PAKAN'!$D$7:$Y$106,20,FALSE),0) -> 0.69 | AR16: =_xlfn.IFNA(VLOOKUP(D16,'BAHAN PAKAN'!$D$7:$Y$106,21,FALSE),0) -> 0.01 | AS16: =_xlfn.IFNA(VLOOKUP(D16,'BAHAN PAKAN'!$D$7:$Y$106,22,FALSE),0) -> 91.6 | AT16: Kulit kacang | AU16: 0 | AV16: 5 | AW16: 5 | AX16: GE | AY16: 0 | AZ16: =SUMPRODUCT(GE,KomposisiRansum)/100 -> 14.25863779 | BA16: 100 | BB16: 5.458515284 | BC16: 5.458515284
B17: 10 | D17: Molases | F17: =_xlfn.IFNA(VLOOKUP($D17,'BAHAN PAKAN'!$D$7:$Y$106,4,FALSE),0) -> 3500 | J17: 0 | L17: 0 | P17: DE | R17: MJ/kg | V17: 8.51869174 | AA17: 10 | AB17: =_xlfn.IFNA(VLOOKUP(D17,'BAHAN PAKAN'!$D$7:$Y$106,1,FALSE),0) -> Molases | AC17: 4794.520548 | AD17: =_xlfn.IFNA(VLOOKUP(D17,'BAHAN PAKAN'!$D$7:$Y$106,6,FALSE),0) -> 27 | AE17: =_xlfn.IFNA(VLOOKUP(D17,'BAHAN PAKAN'!$D$7:$Y$106,8,FALSE),0) -> 14.6 | AF17: =_xlfn.IFNA(VLOOKUP(D17,'BAHAN PAKAN'!$D$7:$Y$106,9,FALSE),0) -> 5.5 | AG17: =_xlfn.IFNA(VLOOKUP(D17,'BAHAN PAKAN'!$D$7:$Y$106,10,FALSE),0) -> 1 | AH17: =_xlfn.IFNA(VLOOKUP(D17,'BAHAN PAKAN'!$D$7:$Y$106,11,FALSE),0) -> 0.1 | AI17: =_xlfn.IFNA(VLOOKUP(D17,'BAHAN PAKAN'!$D$7:$Y$106,12,FALSE),0) -> 78.8 | AJ17: =_xlfn.IFNA(VLOOKUP(D17,'BAHAN PAKAN'!$D$7:$Y$106,13,FALSE),0) -> 0.8 | AK17: =_xlfn.IFNA(VLOOKUP(D17,'BAHAN PAKAN'!$D$7:$Y$106,14,FALSE),0) -> 0.5 | AL17: =_xlfn.IFNA(VLOOKUP(D17,'BAHAN PAKAN'!$D$7:$Y$106,15,FALSE),0) -> 14.7 | AM17: =_xlfn.IFNA(VLOOKUP(D17,'BAHAN PAKAN'!$D$7:$Y$106,16,FALSE),0) -> 11.3 | AN17: =_xlfn.IFNA(VLOOKUP(D17,'BAHAN PAKAN'!$D$7:$Y$106,17,FALSE),0) -> 70.7 | AO17: =_xlfn.IFNA(VLOOKUP(D17,'BAHAN PAKAN'!$D$7:$Y$106,18,FALSE),0) -> 0.92 | AP17: =_xlfn.IFNA(VLOOKUP(D17,'BAHAN PAKAN'!$D$7:$Y$106,19,FALSE),0) -> 0.07 | AQ17: =_xlfn.IFNA(VLOOKUP(D17,'BAHAN PAKAN'!$D$7:$Y$106,20,FALSE),0) -> 5.1 | AR17: =_xlfn.IFNA(VLOOKUP(D17,'BAHAN PAKAN'!$D$7:$Y$106,21,FALSE),0) -> 0.24 | AS17: =_xlfn.IFNA(VLOOKUP(D17,'BAHAN PAKAN'!$D$7:$Y$106,22,FALSE),0) -> 73 | AT17: Molases | AU17: 0 | AV17: 0 | AW17: 100 | AX17: DE | AY17: 0 | AZ17: =SUMPRODUCT(DE,KomposisiRansum)/100 -> 8.51869174 | BA17: 100 | BB17: 0 | BC17: 0
B18: 11 | D18: Garam | F18: =_xlfn.IFNA(VLOOKUP($D18,'BAHAN PAKAN'!$D$7:$Y$106,4,FALSE),0) -> 2000 | H18: 0.5 | J18: 0.5 | L18: 0.453783143 | N18: 0.5 | P18: TDN | R18: % | T18: 68 | V18: 69.15833766 | AA18: 11 | AB18: =_xlfn.IFNA(VLOOKUP(D18,'BAHAN PAKAN'!$D$7:$Y$106,1,FALSE),0) -> Garam | AC18: 2105.263158 | AD18: =_xlfn.IFNA(VLOOKUP(D18,'BAHAN PAKAN'!$D$7:$Y$106,6,FALSE),0) -> 5 | AE18: =_xlfn.IFNA(VLOOKUP(D18,'BAHAN PAKAN'!$D$7:$Y$106,8,FALSE),0) -> 99 | AF18: =_xlfn.IFNA(VLOOKUP(D18,'BAHAN PAKAN'!$D$7:$Y$106,9,FALSE),0) -> 0 | AG18: =_xlfn.IFNA(VLOOKUP(D18,'BAHAN PAKAN'!$D$7:$Y$106,10,FALSE),0) -> 0 | AH18: =_xlfn.IFNA(VLOOKUP(D18,'BAHAN PAKAN'!$D$7:$Y$106,11,FALSE),0) -> 0 | AI18: =_xlfn.IFNA(VLOOKUP(D18,'BAHAN PAKAN'!$D$7:$Y$106,12,FALSE),0) -> 0 | AJ18: =_xlfn.IFNA(VLOOKUP(D18,'BAHAN PAKAN'!$D$7:$Y$106,13,FALSE),0) -> 0 | AK18: =_xlfn.IFNA(VLOOKUP(D18,'BAHAN PAKAN'!$D$7:$Y$106,14,FALSE),0) -> 0 | AL18: =_xlfn.IFNA(VLOOKUP(D18,'BAHAN PAKAN'!$D$7:$Y$106,15,FALSE),0) -> 0 | AM18: =_xlfn.IFNA(VLOOKUP(D18,'BAHAN PAKAN'!$D$7:$Y$106,16,FALSE),0) -> 0 | AN18: =_xlfn.IFNA(VLOOKUP(D18,'BAHAN PAKAN'!$D$7:$Y$106,17,FALSE),0) -> 0 | AO18: =_xlfn.IFNA(VLOOKUP(D18,'BAHAN PAKAN'!$D$7:$Y$106,18,FALSE),0) -> 0 | AP18: =_xlfn.IFNA(VLOOKUP(D18,'BAHAN PAKAN'!$D$7:$Y$106,19,FALSE),0) -> 0 | AQ18: =_xlfn.IFNA(VLOOKUP(D18,'BAHAN PAKAN'!$D$7:$Y$106,20,FALSE),0) -> 60.6 | AR18: =_xlfn.IFNA(VLOOKUP(D18,'BAHAN PAKAN'!$D$7:$Y$106,21,FALSE),0) -> 39.4 | AS18: =_xlfn.IFNA(VLOOKUP(D18,'BAHAN PAKAN'!$D$7:$Y$106,22,FALSE),0) -> 95 | AT18: Garam | AU18: 0.5 | AV18: 0.5 | AW18: 0.5 | AX18: TDN | AY18: 68 | AZ18: =SUMPRODUCT(TDN,KomposisiRansum)/100 -> 69.15833766 | BA18: 100 | BB18: 0.5263157895 | BC18: 0.5263157895
B19: 12 | D19: Kapur | F19: =_xlfn.IFNA(VLOOKUP($D19,'BAHAN PAKAN'!$D$7:$Y$106,4,FALSE),0) -> 1500 | J19: 2.903856002 | L19: 2.635441807 | P19: Kalsium | R19: % | T19: 0.6 | V19: 1.2 | X19: 1.2 | AA19: 12 | AB19: =_xlfn.IFNA(VLOOKUP(D19,'BAHAN PAKAN'!$D$7:$Y$106,1,FALSE),0) -> Kapur | AC19: 1578.947368 | AD19: =_xlfn.IFNA(VLOOKUP(D19,'BAHAN PAKAN'!$D$7:$Y$106,6,FALSE),0) -> 5 | AE19: =_xlfn.IFNA(VLOOKUP(D19,'BAHAN PAKAN'!$D$7:$Y$106,8,FALSE),0) -> 99 | AF19: =_xlfn.IFNA(VLOOKUP(D19,'BAHAN PAKAN'!$D$7:$Y$106,9,FALSE),0) -> 0 | AG19: =_xlfn.IFNA(VLOOKUP(D19,'BAHAN PAKAN'!$D$7:$Y$106,10,FALSE),0) -> 0 | AH19: =_xlfn.IFNA(VLOOKUP(D19,'BAHAN PAKAN'!$D$7:$Y$106,11,FALSE),0) -> 0 | AI19: =_xlfn.IFNA(VLOOKUP(D19,'BAHAN PAKAN'!$D$7:$Y$106,12,FALSE),0) -> 0 | AJ19: =_xlfn.IFNA(VLOOKUP(D19,'BAHAN PAKAN'!$D$7:$Y$106,13,FALSE),0) -> 0 | AK19: =_xlfn.IFNA(VLOOKUP(D19,'BAHAN PAKAN'!$D$7:$Y$106,14,FALSE),0) -> 0 | AL19: =_xlfn.IFNA(VLOOKUP(D19,'BAHAN PAKAN'!$D$7:$Y$106,15,FALSE),0) -> 0 | AM19: =_xlfn.IFNA(VLOOKUP(D19,'BAHAN PAKAN'!$D$7:$Y$106,16,FALSE),0) -> 0 | AN19: =_xlfn.IFNA(VLOOKUP(D19,'BAHAN PAKAN'!$D$7:$Y$106,17,FALSE),0) -> 0 | AO19: =_xlfn.IFNA(VLOOKUP(D19,'BAHAN PAKAN'!$D$7:$Y$106,18,FALSE),0) -> 36 | AP19: =_xlfn.IFNA(VLOOKUP(D19,'BAHAN PAKAN'!$D$7:$Y$106,19,FALSE),0) -> 0 | AQ19: =_xlfn.IFNA(VLOOKUP(D19,'BAHAN PAKAN'!$D$7:$Y$106,20,FALSE),0) -> 0 | AR19: =_xlfn.IFNA(VLOOKUP(D19,'BAHAN PAKAN'!$D$7:$Y$106,21,FALSE),0) -> 0 | AS19: =_xlfn.IFNA(VLOOKUP(D19,'BAHAN PAKAN'!$D$7:$Y$106,22,FALSE),0) -> 95 | AT19: Kapur | AU19: 0 | AV19: 2.903856002 | AW19: 100 | AX19: Kalsium | AY19: 0.6 | AZ19: =SUMPRODUCT(Ca,KomposisiRansum)/100 -> 1.2 | BA19: 1.2 | BB19: 3.056690529 | BC19: 3.056690529
B20: 13 | D20: DCP | F20: =_xlfn.IFNA(VLOOKUP($D20,'BAHAN PAKAN'!$D$7:$Y$106,4,FALSE),0) -> 10000 | J20: -1.734723476e-18 | L20: -1.574376542e-18 | P20: Phosphor | R20: % | T20: 0.4 | V20: 0.688558614 | X20: 0.8 | AA20: 13 | AB20: =_xlfn.IFNA(VLOOKUP(D20,'BAHAN PAKAN'!$D$7:$Y$106,1,FALSE),0) -> DCP | AC20: 10526.31579 | AD20: =_xlfn.IFNA(VLOOKUP(D20,'BAHAN PAKAN'!$D$7:$Y$106,6,FALSE),0) -> 5 | AE20: =_xlfn.IFNA(VLOOKUP(D20,'BAHAN PAKAN'!$D$7:$Y$106,8,FALSE),0) -> 99 | AF20: =_xlfn.IFNA(VLOOKUP(D20,'BAHAN PAKAN'!$D$7:$Y$106,9,FALSE),0) -> 0 | AG20: =_xlfn.IFNA(VLOOKUP(D20,'BAHAN PAKAN'!$D$7:$Y$106,10,FALSE),0) -> 0 | AH20: =_xlfn.IFNA(VLOOKUP(D20,'BAHAN PAKAN'!$D$7:$Y$106,11,FALSE),0) -> 0 | AI20: =_xlfn.IFNA(VLOOKUP(D20,'BAHAN PAKAN'!$D$7:$Y$106,12,FALSE),0) -> 0 | AJ20: =_xlfn.IFNA(VLOOKUP(D20,'BAHAN PAKAN'!$D$7:$Y$106,13,FALSE),0) -> 0 | AK20: =_xlfn.IFNA(VLOOKUP(D20,'BAHAN PAKAN'!$D$7:$Y$106,14,FALSE),0) -> 0 | AL20: =_xlfn.IFNA(VLOOKUP(D20,'BAHAN PAKAN'!$D$7:$Y$106,15,FALSE),0) -> 0 | AM20: =_xlfn.IFNA(VLOOKUP(D20,'BAHAN PAKAN'!$D$7:$Y$106,16,FALSE),0) -> 0 | AN20: =_xlfn.IFNA(VLOOKUP(D20,'BAHAN PAKAN'!$D$7:$Y$106,17,FALSE),0) -> 0 | AO20: =_xlfn.IFNA(VLOOKUP(D20,'BAHAN PAKAN'!$D$7:$Y$106,18,FALSE),0) -> 23 | AP20: =_xlfn.IFNA(VLOOKUP(D20,'BAHAN PAKAN'!$D$7:$Y$106,19,FALSE),0) -> 17 | AQ20: =_xlfn.IFNA(VLOOKUP(D20,'BAHAN PAKAN'!$D$7:$Y$106,20,FALSE),0) -> 0 | AR20: =_xlfn.IFNA(VLOOKUP(D20,'BAHAN PAKAN'!$D$7:$Y$106,21,FALSE),0) -> 0 | AS20: =_xlfn.IFNA(VLOOKUP(D20,'BAHAN PAKAN'!$D$7:$Y$106,22,FALSE),0) -> 95 | AT20: DCP | AU20: 0 | AV20: -1.734723476e-18 | AW20: 100 | AX20: Phosphor | AY20: 0.4 | AZ20: =SUMPRODUCT(P,KomposisiRansum)/100 -> 0.688558614 | BA20: 0.8 | BB20: -1.826024712e-18 | BC20: -1.826024712e-18
B21: 14 | D21: - | F21: =_xlfn.IFNA(VLOOKUP($D21,'BAHAN PAKAN'!$D$7:$Y$106,4,FALSE),0) -> 9999999999 | J21: 0 | L21: 0 | P21: Kalium | R21: % | V21: 1.371584156 | AA21: 14 | AB21: =_xlfn.IFNA(VLOOKUP(D21,'BAHAN PAKAN'!$D$7:$Y$106,1,FALSE),0) -> - | AC21: 9999999999 | AD21: =_xlfn.IFNA(VLOOKUP(D21,'BAHAN PAKAN'!$D$7:$Y$106,6,FALSE),0) -> 0 | AE21: =_xlfn.IFNA(VLOOKUP(D21,'BAHAN PAKAN'!$D$7:$Y$106,8,FALSE),0) -> 0 | AF21: =_xlfn.IFNA(VLOOKUP(D21,'BAHAN PAKAN'!$D$7:$Y$106,9,FALSE),0) -> 0 | AG21: =_xlfn.IFNA(VLOOKUP(D21,'BAHAN PAKAN'!$D$7:$Y$106,10,FALSE),0) -> 0 | AH21: =_xlfn.IFNA(VLOOKUP(D21,'BAHAN PAKAN'!$D$7:$Y$106,11,FALSE),0) -> 0 | AI21: =_xlfn.IFNA(VLOOKUP(D21,'BAHAN PAKAN'!$D$7:$Y$106,12,FALSE),0) -> 0 | AJ21: =_xlfn.IFNA(VLOOKUP(D21,'BAHAN PAKAN'!$D$7:$Y$106,13,FALSE),0) -> 0 | AK21: =_xlfn.IFNA(VLOOKUP(D21,'BAHAN PAKAN'!$D$7:$Y$106,14,FALSE),0) -> 0 | AL21: =_xlfn.IFNA(VLOOKUP(D21,'BAHAN PAKAN'!$D$7:$Y$106,15,FALSE),0) -> 0 | AM21: =_xlfn.IFNA(VLOOKUP(D21,'BAHAN PAKAN'!$D$7:$Y$106,16,FALSE),0) -> 0 | AN21: =_xlfn.IFNA(VLOOKUP(D21,'BAHAN PAKAN'!$D$7:$Y$106,17,FALSE),0) -> 0 | AO21: =_xlfn.IFNA(VLOOKUP(D21,'BAHAN PAKAN'!$D$7:$Y$106,18,FALSE),0) -> 0 | AP21: =_xlfn.IFNA(VLOOKUP(D21,'BAHAN PAKAN'!$D$7:$Y$106,19,FALSE),0) -> 0 | AQ21: =_xlfn.IFNA(VLOOKUP(D21,'BAHAN PAKAN'!$D$7:$Y$106,20,FALSE),0) -> 0 | AR21: =_xlfn.IFNA(VLOOKUP(D21,'BAHAN PAKAN'!$D$7:$Y$106,21,FALSE),0) -> 0 | AS21: =_xlfn.IFNA(VLOOKUP(D21,'BAHAN PAKAN'!$D$7:$Y$106,22,FALSE),0) -> 100 | AT21: - | AU21: 0 | AV21: 0 | AW21: 100 | AX21: Kalium | AY21: 0 | AZ21: =SUMPRODUCT(K,KomposisiRansum)/100 -> 1.371584156 | BA21: 100 | BB21: 0 | BC21: 0
B22: 15 | D22: - | F22: =_xlfn.IFNA(VLOOKUP($D22,'BAHAN PAKAN'!$D$7:$Y$106,4,FALSE),0) -> 9999999999 | J22: 0 | L22: 0 | P22: Natrium | R22: % | V22: 0.2149772219 | AA22: 15 | AB22: =_xlfn.IFNA(VLOOKUP(D22,'BAHAN PAKAN'!$D$7:$Y$106,1,FALSE),0) -> - | AC22: 9999999999 | AD22: =_xlfn.IFNA(VLOOKUP(D22,'BAHAN PAKAN'!$D$7:$Y$106,6,FALSE),0) -> 0 | AE22: =_xlfn.IFNA(VLOOKUP(D22,'BAHAN PAKAN'!$D$7:$Y$106,8,FALSE),0) -> 0 | AF22: =_xlfn.IFNA(VLOOKUP(D22,'BAHAN PAKAN'!$D$7:$Y$106,9,FALSE),0) -> 0 | AG22: =_xlfn.IFNA(VLOOKUP(D22,'BAHAN PAKAN'!$D$7:$Y$106,10,FALSE),0) -> 0 | AH22: =_xlfn.IFNA(VLOOKUP(D22,'BAHAN PAKAN'!$D$7:$Y$106,11,FALSE),0) -> 0 | AI22: =_xlfn.IFNA(VLOOKUP(D22,'BAHAN PAKAN'!$D$7:$Y$106,12,FALSE),0) -> 0 | AJ22: =_xlfn.IFNA(VLOOKUP(D22,'BAHAN PAKAN'!$D$7:$Y$106,13,FALSE),0) -> 0 | AK22: =_xlfn.IFNA(VLOOKUP(D22,'BAHAN PAKAN'!$D$7:$Y$106,14,FALSE),0) -> 0 | AL22: =_xlfn.IFNA(VLOOKUP(D22,'BAHAN PAKAN'!$D$7:$Y$106,15,FALSE),0) -> 0 | AM22: =_xlfn.IFNA(VLOOKUP(D22,'BAHAN PAKAN'!$D$7:$Y$106,16,FALSE),0) -> 0 | AN22: =_xlfn.IFNA(VLOOKUP(D22,'BAHAN PAKAN'!$D$7:$Y$106,17,FALSE),0) -> 0 | AO22: =_xlfn.IFNA(VLOOKUP(D22,'BAHAN PAKAN'!$D$7:$Y$106,18,FALSE),0) -> 0 | AP22: =_xlfn.IFNA(VLOOKUP(D22,'BAHAN PAKAN'!$D$7:$Y$106,19,FALSE),0) -> 0 | AQ22: =_xlfn.IFNA(VLOOKUP(D22,'BAHAN PAKAN'!$D$7:$Y$106,20,FALSE),0) -> 0 | AR22: =_xlfn.IFNA(VLOOKUP(D22,'BAHAN PAKAN'!$D$7:$Y$106,21,FALSE),0) -> 0 | AS22: =_xlfn.IFNA(VLOOKUP(D22,'BAHAN PAKAN'!$D$7:$Y$106,22,FALSE),0) -> 100 | AT22: - | AU22: 0 | AV22: 0 | AW22: 100 | AX22: Natrium | AY22: 0 | AZ22: =SUMPRODUCT(Na,KomposisiRansum)/100 -> 0.2149772219 | BA22: 100 | BB22: 0 | BC22: 0
D24: Harga Ransum (Rp/kg BK) | F24: =IF(HargaRansum<10000,HargaRansum,"Ërror") -> 3267.958286 | J24: =SUM(KomposisiRansum) -> 100 | L24: =(SUM(L8:L22)) -> 100 | P24: Click to formulate >> | AC24: =SUMPRODUCT(KomposisiRansum*Harga)/100 -> 3267.958286 | BB24: =(SUM(BB8:BB22)) -> 115.9839887 | BC24: =(SUM(BC8:BC22)) -> 115.9839887
D25: Harga Ransum (Rp/kg segar) | F25: =SUMPRODUCT(L8:L22,F8:F22)/100 -> 2817.594326 | V25: =NOW() -> 2019-09-03T19:07:03.740
B26: (c) 2019 Department of Nutrition and Feed Technology - IPB University

Sheet TRIAL & ERROR
D2: FORSUM for Ruminant ver 4.0++
D3: (c) 2019 Department of Nutrition and Feed Technology - IPB University | P3: Nama Ransum | Q3: : | R3: Konsentrat Sapi Perah
P4: Formulator | Q4: : | R4: Idat G. Permana
B5: Tabel 1. Komposisi Ransum (Trial & Errror) | P5: Tabel 2. Kandungan Nutrien Ransum (% DM) | AA5: Tabel 3. Perhitungan Ransum (Jangan Dihapus)
B6: No | D6: Bahan Pakan | F6: Harga | H6: Min | J6: %BK | L6: %AsFeed | N6: Max | P6: Nutrien | R6: Unit | T6: Min | V6: Nutrien | X6: Max | AA6: No | AB6: Ingredient | AC6: Harga BK | AD6: KA | AE6: Abu | AF6: PK | AG6: LK | AH6: SK | AI6: BETN | AJ6: NDF | AK6: ADF | AL6: GE | AM6: DE | AN6: TDN | AO6: Ca | AP6: P | AQ6: K | AR6: Na | AS6: BK | AT6: Bahan Pakan | AU6: Min | AV6: Komposisi Ransum | AW6: Max | AX6: Nutrien | AY6: Min | AZ6: Nutrient | BA6: Max | BB6: %AsFeed | BC6: %AsFeed
B8: 1 | D8: Rumput gajah | F8: =_xlfn.IFNA(VLOOKUP($D8,'BAHAN PAKAN'!$D$7:$Y$106,4,FALSE),0) -> 230 | J8: 60 | L8: =BB8/($BB$24/100) -> 88.31592689 | P8: Kadar Air | R8: % | V8: =AZ8 -> 53.18 | AA8: 1 | AB8: =_xlfn.IFNA(VLOOKUP(D8,'BAHAN PAKAN'!$D$7:$Y$106,1,FALSE),0) -> Rumput gajah | AC8: =IF(F8>0,F8*100/AS8,99999999) -> 1284.916201 | AD8: =_xlfn.IFNA(VLOOKUP(D8,'BAHAN PAKAN'!$D$7:$Y$106,6,FALSE),0) -> 82.1 | AE8: =_xlfn.IFNA(VLOOKUP(D8,'BAHAN PAKAN'!$D$7:$Y$106,8,FALSE),0) -> 13.8 | AF8: =_xlfn.IFNA(VLOOKUP(D8,'BAHAN PAKAN'!$D$7:$Y$106,9,FALSE),0) -> 9.7 | AG8: =_xlfn.IFNA(VLOOKUP(D8,'BAHAN PAKAN'!$D$7:$Y$106,10,FALSE),0) -> 2 | AH8: =_xlfn.IFNA(VLOOKUP(D8,'BAHAN PAKAN'!$D$7:$Y$106,11,FALSE),0) -> 36.1 | AI8: =_xlfn.IFNA(VLOOKUP(D8,'BAHAN PAKAN'!$D$7:$Y$106,12,FALSE),0) -> 38.4 | AJ8: =_xlfn.IFNA(VLOOKUP(D8,'BAHAN PAKAN'!$D$7:$Y$106,13,FALSE),0) -> 71.5 | AK8: =_xlfn.IFNA(VLOOKUP(D8,'BAHAN PAKAN'!$D$7:$Y$106,14,FALSE),0) -> 42.5 | AL8: =_xlfn.IFNA(VLOOKUP(D8,'BAHAN PAKAN'!$D$7:$Y$106,15,FALSE),0) -> 17.4 | AM8: =_xlfn.IFNA(VLOOKUP(D8,'BAHAN PAKAN'!$D$7:$Y$106,16,FALSE),0) -> 10.2 | AN8: =_xlfn.IFNA(VLOOKUP(D8,'BAHAN PAKAN'!$D$7:$Y$106,17,FALSE),0) -> 58 | AO8: =_xlfn.IFNA(VLOOKUP(D8,'BAHAN PAKAN'!$D$7:$Y$106,18,FALSE),0) -> 0.36 | AP8: =_xlfn.IFNA(VLOOKUP(D8,'BAHAN PAKAN'!$D$7:$Y$106,19,FALSE),0) -> 0.29 | AQ8: =_xlfn.IFNA(VLOOKUP(D8,'BAHAN PAKAN'!$D$7:$Y$106,20,FALSE),0) -> 2.9 | AR8: =_xlfn.IFNA(VLOOKUP(D8,'BAHAN PAKAN'!$D$7:$Y$106,21,FALSE),0) -> 0.03 | AS8: =_xlfn.IFNA(VLOOKUP(D8,'BAHAN PAKAN'!$D$7:$Y$106,22,FALSE),0) -> 17.9 | AT8: =AB8 -> Rumput gajah | AU8: =IF(H8>0,H8,0) -> 0 | AV8: =J8 -> 60 | AW8: =IF(N8>0,N8,100) -> 100 | AX8: =P8 -> Kadar Air | AY8: =IF(T8>0,T8,0) -> 0 | AZ8: =SUMPRODUCT(KadarAir,KomposisiRansum)/100 -> 53.18 | BA8: =IF(X8>0,X8,100) -> 100 | BB8: =IFERROR(BC8,0) -> 335.1955307 | BC8: =100/AS8*J8 -> 335.1955307
B9: 2 | D9: Dedak padi | F9: =_xlfn.IFNA(VLOOKUP($D9,'BAHAN PAKAN'!$D$7:$Y$106,4,FALSE),0) -> 2800 | J9: 40 | L9: =BB9/($BB$24/100) -> 11.68407311 | P9: Abu | R9: % | V9: =AZ9 -> 13.24 | AA9: 2 | AB9: =_xlfn.IFNA(VLOOKUP(D9,'BAHAN PAKAN'!$D$7:$Y$106,1,FALSE),0) -> Dedak padi | AC9: =IF(F9>0,F9*100/AS9,99999999) -> 3104.21286 | AD9: =_xlfn.IFNA(VLOOKUP(D9,'BAHAN PAKAN'!$D$7:$Y$106,6,FALSE),0) -> 9.8 | AE9: =_xlfn.IFNA(VLOOKUP(D9,'BAHAN PAKAN'!$D$7:$Y$106,8,FALSE),0) -> 12.4 | AF9: =_xlfn.IFNA(VLOOKUP(D9,'BAHAN PAKAN'!$D$7:$Y$106,9,FALSE),0) -> 10 | AG9: =_xlfn.IFNA(VLOOKUP(D9,'BAHAN PAKAN'!$D$7:$Y$106,10,FALSE),0) -> 14.4 | AH9: =_xlfn.IFNA(VLOOKUP(D9,'BAHAN PAKAN'!$D$7:$Y$106,11,FALSE),0) -> 16.3 | AI9: =_xlfn.IFNA(VLOOKUP(D9,'BAHAN PAKAN'!$D$7:$Y$106,12,FALSE),0) -> 44.2 | AJ9: =_xlfn.IFNA(VLOOKUP(D9,'BAHAN PAKAN'!$D$7:$Y$106,13,FALSE),0) -> 34.4 | AK9: =_xlfn.IFNA(VLOOKUP(D9,'BAHAN PAKAN'!$D$7:$Y$106,14,FALSE),0) -> 19.6 | AL9: =_xlfn.IFNA(VLOOKUP(D9,'BAHAN PAKAN'!$D$7:$Y$106,15,FALSE),0) -> 20.2 | AM9: =_xlfn.IFNA(VLOOKUP(D9,'BAHAN PAKAN'!$D$7:$Y$106,16,FALSE),0) -> 10 | AN9: =_xlfn.IFNA(VLOOKUP(D9,'BAHAN PAKAN'!$D$7:$Y$106,17,FALSE),0) -> 67.9 | AO9: =_xlfn.IFNA(VLOOKUP(D9,'BAHAN PAKAN'!$D$7:$Y$106,18,FALSE),0) -> 0.07 | AP9: =_xlfn.IFNA(VLOOKUP(D9,'BAHAN PAKAN'!$D$7:$Y$106,19,FALSE),0) -> 1.38 | AQ9: =_xlfn.IFNA(VLOOKUP(D9,'BAHAN PAKAN'!$D$7:$Y$106,20,FALSE),0) -> 1.23 | AR9: =_xlfn.IFNA(VLOOKUP(D9,'BAHAN PAKAN'!$D$7:$Y$106,21,FALSE),0) -> 0.02 | AS9: =_xlfn.IFNA(VLOOKUP(D9,'BAHAN PAKAN'!$D$7:$Y$106,22,FALSE),0) -> 90.2 | AT9: Dedak padi | AU9: =IF(H9>0,H9,0) -> 0 | AV9: =J9 -> 40 | AW9: =IF(N9>0,N9,100) -> 100 | AX9: =P9 -> Abu | AY9: =IF(T9>0,T9,0) -> 0 | AZ9: =SUMPRODUCT(Abu,KomposisiRansum)/100 -> 13.24 | BA9: =IF(X9>0,X9,100) -> 100 | BB9: =IFERROR(BC9,0) -> 44.345898 | BC9: =100/AS9*J9 -> 44.345898
B10: 3 | F10: =_xlfn.IFNA(VLOOKUP($D10,'BAHAN PAKAN'!$D$7:$Y$106,4,FALSE),0) -> 0 | J10: 0 | L10: 0 | P10: Protein Kasar | R10: % | V10: 9.82 | AA10: 3 | AB10: =_xlfn.IFNA(VLOOKUP(D10,'BAHAN PAKAN'!$D$7:$Y$106,1,FALSE),0) -> 0 | AC10: 99999999 | AD10: =_xlfn.IFNA(VLOOKUP(D10,'BAHAN PAKAN'!$D$7:$Y$106,6,FALSE),0) -> 0 | AE10: =_xlfn.IFNA(VLOOKUP(D10,'BAHAN PAKAN'!$D$7:$Y$106,8,FALSE),0) -> 0 | AF10: =_xlfn.IFNA(VLOOKUP(D10,'BAHAN PAKAN'!$D$7:$Y$106,9,FALSE),0) -> 0 | AG10: =_xlfn.IFNA(VLOOKUP(D10,'BAHAN PAKAN'!$D$7:$Y$106,10,FALSE),0) -> 0 | AH10: =_xlfn.IFNA(VLOOKUP(D10,'BAHAN PAKAN'!$D$7:$Y$106,11,FALSE),0) -> 0 | AI10: =_xlfn.IFNA(VLOOKUP(D10,'BAHAN PAKAN'!$D$7:$Y$106,12,FALSE),0) -> 0 | AJ10: =_xlfn.IFNA(VLOOKUP(D10,'BAHAN PAKAN'!$D$7:$Y$106,13,FALSE),0) -> 0 | AK10: =_xlfn.IFNA(VLOOKUP(D10,'BAHAN PAKAN'!$D$7:$Y$106,14,FALSE),0) -> 0 | AL10: =_xlfn.IFNA(VLOOKUP(D10,'BAHAN PAKAN'!$D$7:$Y$106,15,FALSE),0) -> 0 | AM10: =_xlfn.IFNA(VLOOKUP(D10,'BAHAN PAKAN'!$D$7:$Y$106,16,FALSE),0) -> 0 | AN10: =_xlfn.IFNA(VLOOKUP(D10,'BAHAN PAKAN'!$D$7:$Y$106,17,FALSE),0) -> 0 | AO10: =_xlfn.IFNA(VLOOKUP(D10,'BAHAN PAKAN'!$D$7:$Y$106,18,FALSE),0) -> 0 | AP10: =_xlfn.IFNA(VLOOKUP(D10,'BAHAN PAKAN'!$D$7:$Y$106,19,FALSE),0) -> 0 | AQ10: =_xlfn.IFNA(VLOOKUP(D10,'BAHAN PAKAN'!$D$7:$Y$106,20,FALSE),0) -> 0 | AR10: =_xlfn.IFNA(VLOOKUP(D10,'BAHAN PAKAN'!$D$7:$Y$106,21,FALSE),0) -> 0 | AS10: =_xlfn.IFNA(VLOOKUP(D10,'BAHAN PAKAN'!$D$7:$Y$106,22,FALSE),0) -> 0 | AT10: 0 | AU10: 0 | AV10: 0 | AW10: 100 | AX10: Protein Kasar | AY10: 0 | AZ10: =SUMPRODUCT(PK,KomposisiRansum)/100 -> 9.82 | BA10: 100 | BB10: 0
B11: 4 | F11: =_xlfn.IFNA(VLOOKUP($D11,'BAHAN PAKAN'!$D$7:$Y$106,4,FALSE),0) -> 0 | J11: 0 | L11: 0 | P11: Lemak Kasar | R11: % | V11: 6.96 | AA11: 4 | AB11: =_xlfn.IFNA(VLOOKUP(D11,'BAHAN PAKAN'!$D$7:$Y$106,1,FALSE),0) -> 0 | AC11: 99999999 | AD11: =_xlfn.IFNA(VLOOKUP(D11,'BAHAN PAKAN'!$D$7:$Y$106,6,FALSE),0) -> 0 | AE11: =_xlfn.IFNA(VLOOKUP(D11,'BAHAN PAKAN'!$D$7:$Y$106,8,FALSE),0) -> 0 | AF11: =_xlfn.IFNA(VLOOKUP(D11,'BAHAN PAKAN'!$D$7:$Y$106,9,FALSE),0) -> 0 | AG11: =_xlfn.IFNA(VLOOKUP(D11,'BAHAN PAKAN'!$D$7:$Y$106,10,FALSE),0) -> 0 | AH11: =_xlfn.IFNA(VLOOKUP(D11,'BAHAN PAKAN'!$D$7:$Y$106,11,FALSE),0) -> 0 | AI11: =_xlfn.IFNA(VLOOKUP(D11,'BAHAN PAKAN'!$D$7:$Y$106,12,FALSE),0) -> 0 | AJ11: =_xlfn.IFNA(VLOOKUP(D11,'BAHAN PAKAN'!$D$7:$Y$106,13,FALSE),0) -> 0 | AK11: =_xlfn.IFNA(VLOOKUP(D11,'BAHAN PAKAN'!$D$7:$Y$106,14,FALSE),0) -> 0 | AL11: =_xlfn.IFNA(VLOOKUP(D11,'BAHAN PAKAN'!$D$7:$Y$106,15,FALSE),0) -> 0 | AM11: =_xlfn.IFNA(VLOOKUP(D11,'BAHAN PAKAN'!$D$7:$Y$106,16,FALSE),0) -> 0 | AN11: =_xlfn.IFNA(VLOOKUP(D11,'BAHAN PAKAN'!$D$7:$Y$106,17,FALSE),0) -> 0 | AO11: =_xlfn.IFNA(VLOOKUP(D11,'BAHAN PAKAN'!$D$7:$Y$106,18,FALSE),0) -> 0 | AP11: =_xlfn.IFNA(VLOOKUP(D11,'BAHAN PAKAN'!$D$7:$Y$106,19,FALSE),0) -> 0 | AQ11: =_xlfn.IFNA(VLOOKUP(D11,'BAHAN PAKAN'!$D$7:$Y$106,20,FALSE),0) -> 0 | AR11: =_xlfn.IFNA(VLOOKUP(D11,'BAHAN PAKAN'!$D$7:$Y$106,21,FALSE),0) -> 0 | AS11: =_xlfn.IFNA(VLOOKUP(D11,'BAHAN PAKAN'!$D$7:$Y$106,22,FALSE),0) -> 0 | AT11: 0 | AU11: 0 | AV11: 0 | AW11: 100 | AX11: Lemak Kasar | AY11: 0 | AZ11: =SUMPRODUCT(LK,KomposisiRansum)/100 -> 6.96 | BA11: 100 | BB11: 0
B12: 5 | F12: =_xlfn.IFNA(VLOOKUP($D12,'BAHAN PAKAN'!$D$7:$Y$106,4,FALSE),0) -> 0 | J12: 0 | L12: 0 | P12: Serat Kasar | R12: % | V12: 28.18 | AA12: 5 | AB12: =_xlfn.IFNA(VLOOKUP(D12,'BAHAN PAKAN'!$D$7:$Y$106,1,FALSE),0) -> 0 | AC12: 99999999 | AD12: =_xlfn.IFNA(VLOOKUP(D12,'BAHAN PAKAN'!$D$7:$Y$106,6,FALSE),0) -> 0 | AE12: =_xlfn.IFNA(VLOOKUP(D12,'BAHAN PAKAN'!$D$7:$Y$106,8,FALSE),0) -> 0 | AF12: =_xlfn.IFNA(VLOOKUP(D12,'BAHAN PAKAN'!$D$7:$Y$106,9,FALSE),0) -> 0 | AG12: =_xlfn.IFNA(VLOOKUP(D12,'BAHAN PAKAN'!$D$7:$Y$106,10,FALSE),0) -> 0 | AH12: =_xlfn.IFNA(VLOOKUP(D12,'BAHAN PAKAN'!$D$7:$Y$106,11,FALSE),0) -> 0 | AI12: =_xlfn.IFNA(VLOOKUP(D12,'BAHAN PAKAN'!$D$7:$Y$106,12,FALSE),0) -> 0 | AJ12: =_xlfn.IFNA(VLOOKUP(D12,'BAHAN PAKAN'!$D$7:$Y$106,13,FALSE),0) -> 0 | AK12: =_xlfn.IFNA(VLOOKUP(D12,'BAHAN PAKAN'!$D$7:$Y$106,14,FALSE),0) -> 0 | AL12: =_xlfn.IFNA(VLOOKUP(D12,'BAHAN PAKAN'!$D$7:$Y$106,15,FALSE),0) -> 0 | AM12: =_xlfn.IFNA(VLOOKUP(D12,'BAHAN PAKAN'!$D$7:$Y$106,16,FALSE),0) -> 0 | AN12: =_xlfn.IFNA(VLOOKUP(D12,'BAHAN PAKAN'!$D$7:$Y$106,17,FALSE),0) -> 0 | AO12: =_xlfn.IFNA(VLOOKUP(D12,'BAHAN PAKAN'!$D$7:$Y$106,18,FALSE),0) -> 0 | AP12: =_xlfn.IFNA(VLOOKUP(D12,'BAHAN PAKAN'!$D$7:$Y$106,19,FALSE),0) -> 0 | AQ12: =_xlfn.IFNA(VLOOKUP(D12,'BAHAN PAKAN'!$D$7:$Y$106,20,FALSE),0) -> 0 | AR12: =_xlfn.IFNA(VLOOKUP(D12,'BAHAN PAKAN'!$D$7:$Y$106,21,FALSE),0) -> 0 | AS12: =_xlfn.IFNA(VLOOKUP(D12,'BAHAN PAKAN'!$D$7:$Y$106,22,FALSE),0) -> 0 | AT12: 0 | AU12: 0 | AV12: 0 | AW12: 100 | AX12: Serat Kasar | AY12: 0 | AZ12: =SUMPRODUCT(SK,KomposisiRansum)/100 -> 28.18 | BA12: 100 | BB12: 0
B13: 6 | F13: =_xlfn.IFNA(VLOOKUP($D13,'BAHAN PAKAN'!$D$7:$Y$106,4,FALSE),0) -> 0 | J13: 0 | L13: 0 | P13: BETN | R13: % | V13: 40.72 | AA13: 6 | AB13: =_xlfn.IFNA(VLOOKUP(D13,'BAHAN PAKAN'!$D$7:$Y$106,1,FALSE),0) -> 0 | AC13: 99999999 | AD13: =_xlfn.IFNA(VLOOKUP(D13,'BAHAN PAKAN'!$D$7:$Y$106,6,FALSE),0) -> 0 | AE13: =_xlfn.IFNA(VLOOKUP(D13,'BAHAN PAKAN'!$D$7:$Y$106,8,FALSE),0) -> 0 | AF13: =_xlfn.IFNA(VLOOKUP(D13,'BAHAN PAKAN'!$D$7:$Y$106,9,FALSE),0) -> 0 | AG13: =_xlfn.IFNA(VLOOKUP(D13,'BAHAN PAKAN'!$D$7:$Y$106,10,FALSE),0) -> 0 | AH13: =_xlfn.IFNA(VLOOKUP(D13,'BAHAN PAKAN'!$D$7:$Y$106,11,FALSE),0) -> 0 | AI13: =_xlfn.IFNA(VLOOKUP(D13,'BAHAN PAKAN'!$D$7:$Y$106,12,FALSE),0) -> 0 | AJ13: =_xlfn.IFNA(VLOOKUP(D13,'BAHAN PAKAN'!$D$7:$Y$106,13,FALSE),0) -> 0 | AK13: =_xlfn.IFNA(VLOOKUP(D13,'BAHAN PAKAN'!$D$7:$Y$106,14,FALSE),0) -> 0 | AL13: =_xlfn.IFNA(VLOOKUP(D13,'BAHAN PAKAN'!$D$7:$Y$106,15,FALSE),0) -> 0 | AM13: =_xlfn.IFNA(VLOOKUP(D13,'BAHAN PAKAN'!$D$7:$Y$106,16,FALSE),0) -> 0 | AN13: =_xlfn.IFNA(VLOOKUP(D13,'BAHAN PAKAN'!$D$7:$Y$106,17,FALSE),0) -> 0 | AO13: =_xlfn.IFNA(VLOOKUP(D13,'BAHAN PAKAN'!$D$7:$Y$106,18,FALSE),0) -> 0 | AP13: =_xlfn.IFNA(VLOOKUP(D13,'BAHAN PAKAN'!$D$7:$Y$106,19,FALSE),0) -> 0 | AQ13: =_xlfn.IFNA(VLOOKUP(D13,'BAHAN PAKAN'!$D$7:$Y$106,20,FALSE),0) -> 0 | AR13: =_xlfn.IFNA(VLOOKUP(D13,'BAHAN PAKAN'!$D$7:$Y$106,21,FALSE),0) -> 0 | AS13: =_xlfn.IFNA(VLOOKUP(D13,'BAHAN PAKAN'!$D$7:$Y$106,22,FALSE),0) -> 0 | AT13: 0 | AU13: 0 | AV13: 0 | AW13: 100 | AX13: BETN | AY13: 0 | AZ13: =SUMPRODUCT(BETN,KomposisiRansum)/100 -> 40.72 | BA13: 100 | BB13: 0
B14: 7 | F14: =_xlfn.IFNA(VLOOKUP($D14,'BAHAN PAKAN'!$D$7:$Y$106,4,FALSE),0) -> 0 | J14: 0 | L14: 0 | P14: NDF | R14: % | V14: 56.66 | AA14: 7 | AB14: =_xlfn.IFNA(VLOOKUP(D14,'BAHAN PAKAN'!$D$7:$Y$106,1,FALSE),0) -> 0 | AC14: 99999999 | AD14: =_xlfn.IFNA(VLOOKUP(D14,'BAHAN PAKAN'!$D$7:$Y$106,6,FALSE),0) -> 0 | AE14: =_xlfn.IFNA(VLOOKUP(D14,'BAHAN PAKAN'!$D$7:$Y$106,8,FALSE),0) -> 0 | AF14: =_xlfn.IFNA(VLOOKUP(D14,'BAHAN PAKAN'!$D$7:$Y$106,9,FALSE),0) -> 0 | AG14: =_xlfn.IFNA(VLOOKUP(D14,'BAHAN PAKAN'!$D$7:$Y$106,10,FALSE),0) -> 0 | AH14: =_xlfn.IFNA(VLOOKUP(D14,'BAHAN PAKAN'!$D$7:$Y$106,11,FALSE),0) -> 0 | AI14: =_xlfn.IFNA(VLOOKUP(D14,'BAHAN PAKAN'!$D$7:$Y$106,12,FALSE),0) -> 0 | AJ14: =_xlfn.IFNA(VLOOKUP(D14,'BAHAN PAKAN'!$D$7:$Y$106,13,FALSE),0) -> 0 | AK14: =_xlfn.IFNA(VLOOKUP(D14,'BAHAN PAKAN'!$D$7:$Y$106,14,FALSE),0) -> 0 | AL14: =_xlfn.IFNA(VLOOKUP(D14,'BAHAN PAKAN'!$D$7:$Y$106,15,FALSE),0) -> 0 | AM14: =_xlfn.IFNA(VLOOKUP(D14,'BAHAN PAKAN'!$D$7:$Y$106,16,FALSE),0) -> 0 | AN14: =_xlfn.IFNA(VLOOKUP(D14,'BAHAN PAKAN'!$D$7:$Y$106,17,FALSE),0) -> 0 | AO14: =_xlfn.IFNA(VLOOKUP(D14,'BAHAN PAKAN'!$D$7:$Y$106,18,FALSE),0) -> 0 | AP14: =_xlfn.IFNA(VLOOKUP(D14,'BAHAN PAKAN'!$D$7:$Y$106,19,FALSE),0) -> 0 | AQ14: =_xlfn.IFNA(VLOOKUP(D14,'BAHAN PAKAN'!$D$7:$Y$106,20,FALSE),0) -> 0 | AR14: =_xlfn.IFNA(VLOOKUP(D14,'BAHAN PAKAN'!$D$7:$Y$106,21,FALSE),0) -> 0 | AS14: =_xlfn.IFNA(VLOOKUP(D14,'BAHAN PAKAN'!$D$7:$Y$106,22,FALSE),0) -> 0 | AT14: 0 | AU14: 0 | AV14: 0 | AW14: 100 | AX14: NDF | AY14: 0 | AZ14: =SUMPRODUCT(NDF,KomposisiRansum)/100 -> 56.66 | BA14: 100 | BB14: 0
B15: 8 | F15: =_xlfn.IFNA(VLOOKUP($D15,'BAHAN PAKAN'!$D$7:$Y$106,4,FALSE),0) -> 0 | J15: 0 | L15: 0 | P15: ADF | R15: % | V15: 33.34 | AA15: 8 | AB15: =_xlfn.IFNA(VLOOKUP(D15,'BAHAN PAKAN'!$D$7:$Y$106,1,FALSE),0) -> 0 | AC15: 99999999 | AD15: =_xlfn.IFNA(VLOOKUP(D15,'BAHAN PAKAN'!$D$7:$Y$106,6,FALSE),0) -> 0 | AE15: =_xlfn.IFNA(VLOOKUP(D15,'BAHAN PAKAN'!$D$7:$Y$106,8,FALSE),0) -> 0 | AF15: =_xlfn.IFNA(VLOOKUP(D15,'BAHAN PAKAN'!$D$7:$Y$106,9,FALSE),0) -> 0 | AG15: =_xlfn.IFNA(VLOOKUP(D15,'BAHAN PAKAN'!$D$7:$Y$106,10,FALSE),0) -> 0 | AH15: =_xlfn.IFNA(VLOOKUP(D15,'BAHAN PAKAN'!$D$7:$Y$106,11,FALSE),0) -> 0 | AI15: =_xlfn.IFNA(VLOOKUP(D15,'BAHAN PAKAN'!$D$7:$Y$106,12,FALSE),0) -> 0 | AJ15: =_xlfn.IFNA(VLOOKUP(D15,'BAHAN PAKAN'!$D$7:$Y$106,13,FALSE),0) -> 0 | AK15: =_xlfn.IFNA(VLOOKUP(D15,'BAHAN PAKAN'!$D$7:$Y$106,14,FALSE),0) -> 0 | AL15: =_xlfn.IFNA(VLOOKUP(D15,'BAHAN PAKAN'!$D$7:$Y$106,15,FALSE),0) -> 0 | AM15: =_xlfn.IFNA(VLOOKUP(D15,'BAHAN PAKAN'!$D$7:$Y$106,16,FALSE),0) -> 0 | AN15: =_xlfn.IFNA(VLOOKUP(D15,'BAHAN PAKAN'!$D$7:$Y$106,17,FALSE),0) -> 0 | AO15: =_xlfn.IFNA(VLOOKUP(D15,'BAHAN PAKAN'!$D$7:$Y$106,18,FALSE),0) -> 0 | AP15: =_xlfn.IFNA(VLOOKUP(D15,'BAHAN PAKAN'!$D$7:$Y$106,19,FALSE),0) -> 0 | AQ15: =_xlfn.IFNA(VLOOKUP(D15,'BAHAN PAKAN'!$D$7:$Y$106,20,FALSE),0) -> 0 | AR15: =_xlfn.IFNA(VLOOKUP(D15,'BAHAN PAKAN'!$D$7:$Y$106,21,FALSE),0) -> 0 | AS15: =_xlfn.IFNA(VLOOKUP(D15,'BAHAN PAKAN'!$D$7:$Y$106,22,FALSE),0) -> 0 | AT15: 0 | AU15: 0 | AV15: 0 | AW15: 100 | AX15: ADF | AY15: 0 | AZ15: =SUMPRODUCT(ADF,KomposisiRansum)/100 -> 33.34 | BA15: 100 | BB15: 0
B16: 9 | F16: =_xlfn.IFNA(VLOOKUP($D16,'BAHAN PAKAN'!$D$7:$Y$106,4,FALSE),0) -> 0 | J16: 0 | L16: 0 | P16: GE | R16: MJ/kg | V16: 18.52 | AA16: 9 | AB16: =_xlfn.IFNA(VLOOKUP(D16,'BAHAN PAKAN'!$D$7:$Y$106,1,FALSE),0) -> 0 | AC16: 99999999 | AD16: =_xlfn.IFNA(VLOOKUP(D16,'BAHAN PAKAN'!$D$7:$Y$106,6,FALSE),0) -> 0 | AE16: =_xlfn.IFNA(VLOOKUP(D16,'BAHAN PAKAN'!$D$7:$Y$106,8,FALSE),0) -> 0 | AF16: =_xlfn.IFNA(VLOOKUP(D16,'BAHAN PAKAN'!$D$7:$Y$106,9,FALSE),0) -> 0 | AG16: =_xlfn.IFNA(VLOOKUP(D16,'BAHAN PAKAN'!$D$7:$Y$106,10,FALSE),0) -> 0 | AH16: =_xlfn.IFNA(VLOOKUP(D16,'BAHAN PAKAN'!$D$7:$Y$106,11,FALSE),0) -> 0 | AI16: =_xlfn.IFNA(VLOOKUP(D16,'BAHAN PAKAN'!$D$7:$Y$106,12,FALSE),0) -> 0 | AJ16: =_xlfn.IFNA(VLOOKUP(D16,'BAHAN PAKAN'!$D$7:$Y$106,13,FALSE),0) -> 0 | AK16: =_xlfn.IFNA(VLOOKUP(D16,'BAHAN PAKAN'!$D$7:$Y$106,14,FALSE),0) -> 0 | AL16: =_xlfn.IFNA(VLOOKUP(D16,'BAHAN PAKAN'!$D$7:$Y$106,15,FALSE),0) -> 0 | AM16: =_xlfn.IFNA(VLOOKUP(D16,'BAHAN PAKAN'!$D$7:$Y$106,16,FALSE),0) -> 0 | AN16: =_xlfn.IFNA(VLOOKUP(D16,'BAHAN PAKAN'!$D$7:$Y$106,17,FALSE),0) -> 0 | AO16: =_xlfn.IFNA(VLOOKUP(D16,'BAHAN PAKAN'!$D$7:$Y$106,18,FALSE),0) -> 0 | AP16: =_xlfn.IFNA(VLOOKUP(D16,'BAHAN PAKAN'!$D$7:$Y$106,19,FALSE),0) -> 0 | AQ16: =_xlfn.IFNA(VLOOKUP(D16,'BAHAN PAKAN'!$D$7:$Y$106,20,FALSE),0) -> 0 | AR16: =_xlfn.IFNA(VLOOKUP(D16,'BAHAN PAKAN'!$D$7:$Y$106,21,FALSE),0) -> 0 | AS16: =_xlfn.IFNA(VLOOKUP(D16,'BAHAN PAKAN'!$D$7:$Y$106,22,FALSE),0) -> 0 | AT16: 0 | AU16: 0 | AV16: 0 | AW16: 100 | AX16: GE | AY16: 0 | AZ16: =SUMPRODUCT(GE,KomposisiRansum)/100 -> 18.52 | BA16: 100 | BB16: 0
B17: 10 | F17: =_xlfn.IFNA(VLOOKUP($D17,'BAHAN PAKAN'!$D$7:$Y$106,4,FALSE),0) -> 0 | J17: 0 | L17: 0 | P17: DE | R17: MJ/kg | V17: 10.12 | AA17: 10 | AB17: =_xlfn.IFNA(VLOOKUP(D17,'BAHAN PAKAN'!$D$7:$Y$106,1,FALSE),0) -> 0 | AC17: 99999999 | AD17: =_xlfn.IFNA(VLOOKUP(D17,'BAHAN PAKAN'!$D$7:$Y$106,6,FALSE),0) -> 0 | AE17: =_xlfn.IFNA(VLOOKUP(D17,'BAHAN PAKAN'!$D$7:$Y$106,8,FALSE),0) -> 0 | AF17: =_xlfn.IFNA(VLOOKUP(D17,'BAHAN PAKAN'!$D$7:$Y$106,9,FALSE),0) -> 0 | AG17: =_xlfn.IFNA(VLOOKUP(D17,'BAHAN PAKAN'!$D$7:$Y$106,10,FALSE),0) -> 0 | AH17: =_xlfn.IFNA(VLOOKUP(D17,'BAHAN PAKAN'!$D$7:$Y$106,11,FALSE),0) -> 0 | AI17: =_xlfn.IFNA(VLOOKUP(D17,'BAHAN PAKAN'!$D$7:$Y$106,12,FALSE),0) -> 0 | AJ17: =_xlfn.IFNA(VLOOKUP(D17,'BAHAN PAKAN'!$D$7:$Y$106,13,FALSE),0) -> 0 | AK17: =_xlfn.IFNA(VLOOKUP(D17,'BAHAN PAKAN'!$D$7:$Y$106,14,FALSE),0) -> 0 | AL17: =_xlfn.IFNA(VLOOKUP(D17,'BAHAN PAKAN'!$D$7:$Y$106,15,FALSE),0) -> 0 | AM17: =_xlfn.IFNA(VLOOKUP(D17,'BAHAN PAKAN'!$D$7:$Y$106,16,FALSE),0) -> 0 | AN17: =_xlfn.IFNA(VLOOKUP(D17,'BAHAN PAKAN'!$D$7:$Y$106,17,FALSE),0) -> 0 | AO17: =_xlfn.IFNA(VLOOKUP(D17,'BAHAN PAKAN'!$D$7:$Y$106,18,FALSE),0) -> 0 | AP17: =_xlfn.IFNA(VLOOKUP(D17,'BAHAN PAKAN'!$D$7:$Y$106,19,FALSE),0) -> 0 | AQ17: =_xlfn.IFNA(VLOOKUP(D17,'BAHAN PAKAN'!$D$7:$Y$106,20,FALSE),0) -> 0 | AR17: =_xlfn.IFNA(VLOOKUP(D17,'BAHAN PAKAN'!$D$7:$Y$106,21,FALSE),0) -> 0 | AS17: =_xlfn.IFNA(VLOOKUP(D17,'BAHAN PAKAN'!$D$7:$Y$106,22,FALSE),0) -> 0 | AT17: 0 | AU17: 0 | AV17: 0 | AW17: 100 | AX17: DE | AY17: 0 | AZ17: =SUMPRODUCT(DE,KomposisiRansum)/100 -> 10.12 | BA17: 100 | BB17: 0
B18: 11 | F18: =_xlfn.IFNA(VLOOKUP($D18,'BAHAN PAKAN'!$D$7:$Y$106,4,FALSE),0) -> 0 | J18: 0 | L18: 0 | P18: TDN | R18: % | V18: 61.96 | AA18: 11 | AB18: =_xlfn.IFNA(VLOOKUP(D18,'BAHAN PAKAN'!$D$7:$Y$106,1,FALSE),0) -> 0 | AC18: 99999999 | AD18: =_xlfn.IFNA(VLOOKUP(D18,'BAHAN PAKAN'!$D$7:$Y$106,6,FALSE),0) -> 0 | AE18: =_xlfn.IFNA(VLOOKUP(D18,'BAHAN PAKAN'!$D$7:$Y$106,8,FALSE),0) -> 0 | AF18: =_xlfn.IFNA(VLOOKUP(D18,'BAHAN PAKAN'!$D$7:$Y$106,9,FALSE),0) -> 0 | AG18: =_xlfn.IFNA(VLOOKUP(D18,'BAHAN PAKAN'!$D$7:$Y$106,10,FALSE),0) -> 0 | AH18: =_xlfn.IFNA(VLOOKUP(D18,'BAHAN PAKAN'!$D$7:$Y$106,11,FALSE),0) -> 0 | AI18: =_xlfn.IFNA(VLOOKUP(D18,'BAHAN PAKAN'!$D$7:$Y$106,12,FALSE),0) -> 0 | AJ18: =_xlfn.IFNA(VLOOKUP(D18,'BAHAN PAKAN'!$D$7:$Y$106,13,FALSE),0) -> 0 | AK18: =_xlfn.IFNA(VLOOKUP(D18,'BAHAN PAKAN'!$D$7:$Y$106,14,FALSE),0) -> 0 | AL18: =_xlfn.IFNA(VLOOKUP(D18,'BAHAN PAKAN'!$D$7:$Y$106,15,FALSE),0) -> 0 | AM18: =_xlfn.IFNA(VLOOKUP(D18,'BAHAN PAKAN'!$D$7:$Y$106,16,FALSE),0) -> 0 | AN18: =_xlfn.IFNA(VLOOKUP(D18,'BAHAN PAKAN'!$D$7:$Y$106,17,FALSE),0) -> 0 | AO18: =_xlfn.IFNA(VLOOKUP(D18,'BAHAN PAKAN'!$D$7:$Y$106,18,FALSE),0) -> 0 | AP18: =_xlfn.IFNA(VLOOKUP(D18,'BAHAN PAKAN'!$D$7:$Y$106,19,FALSE),0) -> 0 | AQ18: =_xlfn.IFNA(VLOOKUP(D18,'BAHAN PAKAN'!$D$7:$Y$106,20,FALSE),0) -> 0 | AR18: =_xlfn.IFNA(VLOOKUP(D18,'BAHAN PAKAN'!$D$7:$Y$106,21,FALSE),0) -> 0 | AS18: =_xlfn.IFNA(VLOOKUP(D18,'BAHAN PAKAN'!$D$7:$Y$106,22,FALSE),0) -> 0 | AT18: 0 | AU18: 0 | AV18: 0 | AW18: 100 | AX18: TDN | AY18: 0 | AZ18: =SUMPRODUCT(TDN,KomposisiRansum)/100 -> 61.96 | BA18: 100 | BB18: 0
B19: 12 | F19: =_xlfn.IFNA(VLOOKUP($D19,'BAHAN PAKAN'!$D$7:$Y$106,4,FALSE),0) -> 0 | J19: 0 | L19: 0 | P19: Kalsium | R19: % | V19: 0.244 | AA19: 12 | AB19: =_xlfn.IFNA(VLOOKUP(D19,'BAHAN PAKAN'!$D$7:$Y$106,1,FALSE),0) -> 0 | AC19: 99999999 | AD19: =_xlfn.IFNA(VLOOKUP(D19,'BAHAN PAKAN'!$D$7:$Y$106,6,FALSE),0) -> 0 | AE19: =_xlfn.IFNA(VLOOKUP(D19,'BAHAN PAKAN'!$D$7:$Y$106,8,FALSE),0) -> 0 | AF19: =_xlfn.IFNA(VLOOKUP(D19,'BAHAN PAKAN'!$D$7:$Y$106,9,FALSE),0) -> 0 | AG19: =_xlfn.IFNA(VLOOKUP(D19,'BAHAN PAKAN'!$D$7:$Y$106,10,FALSE),0) -> 0 | AH19: =_xlfn.IFNA(VLOOKUP(D19,'BAHAN PAKAN'!$D$7:$Y$106,11,FALSE),0) -> 0 | AI19: =_xlfn.IFNA(VLOOKUP(D19,'BAHAN PAKAN'!$D$7:$Y$106,12,FALSE),0) -> 0 | AJ19: =_xlfn.IFNA(VLOOKUP(D19,'BAHAN PAKAN'!$D$7:$Y$106,13,FALSE),0) -> 0 | AK19: =_xlfn.IFNA(VLOOKUP(D19,'BAHAN PAKAN'!$D$7:$Y$106,14,FALSE),0) -> 0 | AL19: =_xlfn.IFNA(VLOOKUP(D19,'BAHAN PAKAN'!$D$7:$Y$106,15,FALSE),0) -> 0 | AM19: =_xlfn.IFNA(VLOOKUP(D19,'BAHAN PAKAN'!$D$7:$Y$106,16,FALSE),0) -> 0 | AN19: =_xlfn.IFNA(VLOOKUP(D19,'BAHAN PAKAN'!$D$7:$Y$106,17,FALSE),0) -> 0 | AO19: =_xlfn.IFNA(VLOOKUP(D19,'BAHAN PAKAN'!$D$7:$Y$106,18,FALSE),0) -> 0 | AP19: =_xlfn.IFNA(VLOOKUP(D19,'BAHAN PAKAN'!$D$7:$Y$106,19,FALSE),0) -> 0 | AQ19: =_xlfn.IFNA(VLOOKUP(D19,'BAHAN PAKAN'!$D$7:$Y$106,20,FALSE),0) -> 0 | AR19: =_xlfn.IFNA(VLOOKUP(D19,'BAHAN PAKAN'!$D$7:$Y$106,21,FALSE),0) -> 0 | AS19: =_xlfn.IFNA(VLOOKUP(D19,'BAHAN PAKAN'!$D$7:$Y$106,22,FALSE),0) -> 0 | AT19: 0 | AU19: 0 | AV19: 0 | AW19: 100 | AX19: Kalsium | AY19: 0 | AZ19: =SUMPRODUCT(Ca,KomposisiRansum)/100 -> 0.244 | BA19: 100 | BB19: 0
B20: 13 | F20: =_xlfn.IFNA(VLOOKUP($D20,'BAHAN PAKAN'!$D$7:$Y$106,4,FALSE),0) -> 0 | J20: 0 | L20: 0 | P20: Phosphor | R20: % | V20: 0.726 | AA20: 13 | AB20: =_xlfn.IFNA(VLOOKUP(D20,'BAHAN PAKAN'!$D$7:$Y$106,1,FALSE),0) -> 0 | AC20: 99999999 | AD20: =_xlfn.IFNA(VLOOKUP(D20,'BAHAN PAKAN'!$D$7:$Y$106,6,FALSE),0) -> 0 | AE20: =_xlfn.IFNA(VLOOKUP(D20,'BAHAN PAKAN'!$D$7:$Y$106,8,FALSE),0) -> 0 | AF20: =_xlfn.IFNA(VLOOKUP(D20,'BAHAN PAKAN'!$D$7:$Y$106,9,FALSE),0) -> 0 | AG20: =_xlfn.IFNA(VLOOKUP(D20,'BAHAN PAKAN'!$D$7:$Y$106,10,FALSE),0) -> 0 | AH20: =_xlfn.IFNA(VLOOKUP(D20,'BAHAN PAKAN'!$D$7:$Y$106,11,FALSE),0) -> 0 | AI20: =_xlfn.IFNA(VLOOKUP(D20,'BAHAN PAKAN'!$D$7:$Y$106,12,FALSE),0) -> 0 | AJ20: =_xlfn.IFNA(VLOOKUP(D20,'BAHAN PAKAN'!$D$7:$Y$106,13,FALSE),0) -> 0 | AK20: =_xlfn.IFNA(VLOOKUP(D20,'BAHAN PAKAN'!$D$7:$Y$106,14,FALSE),0) -> 0 | AL20: =_xlfn.IFNA(VLOOKUP(D20,'BAHAN PAKAN'!$D$7:$Y$106,15,FALSE),0) -> 0 | AM20: =_xlfn.IFNA(VLOOKUP(D20,'BAHAN PAKAN'!$D$7:$Y$106,16,FALSE),0) -> 0 | AN20: =_xlfn.IFNA(VLOOKUP(D20,'BAHAN PAKAN'!$D$7:$Y$106,17,FALSE),0) -> 0 | AO20: =_xlfn.IFNA(VLOOKUP(D20,'BAHAN PAKAN'!$D$7:$Y$106,18,FALSE),0) -> 0 | AP20: =_xlfn.IFNA(VLOOKUP(D20,'BAHAN PAKAN'!$D$7:$Y$106,19,FALSE),0) -> 0 | AQ20: =_xlfn.IFNA(VLOOKUP(D20,'BAHAN PAKAN'!$D$7:$Y$106,20,FALSE),0) -> 0 | AR20: =_xlfn.IFNA(VLOOKUP(D20,'BAHAN PAKAN'!$D$7:$Y$106,21,FALSE),0) -> 0 | AS20: =_xlfn.IFNA(VLOOKUP(D20,'BAHAN PAKAN'!$D$7:$Y$106,22,FALSE),0) -> 0 | AT20: 0 | AU20: 0 | AV20: 0 | AW20: 100 | AX20: Phosphor | AY20: 0 | AZ20: =SUMPRODUCT(P,KomposisiRansum)/100 -> 0.726 | BA20: 100 | BB20: 0
B21: 14 | F21: =_xlfn.IFNA(VLOOKUP($D21,'BAHAN PAKAN'!$D$7:$Y$106,4,FALSE),0) -> 0 | J21: 0 | L21: 0 | P21: Kalium | R21: % | V21: 2.232 | AA21: 14 | AB21: =_xlfn.IFNA(VLOOKUP(D21,'BAHAN PAKAN'!$D$7:$Y$106,1,FALSE),0) -> 0 | AC21: 99999999 | AD21: =_xlfn.IFNA(VLOOKUP(D21,'BAHAN PAKAN'!$D$7:$Y$106,6,FALSE),0) -> 0 | AE21: =_xlfn.IFNA(VLOOKUP(D21,'BAHAN PAKAN'!$D$7:$Y$106,8,FALSE),0) -> 0 | AF21: =_xlfn.IFNA(VLOOKUP(D21,'BAHAN PAKAN'!$D$7:$Y$106,9,FALSE),0) -> 0 | AG21: =_xlfn.IFNA(VLOOKUP(D21,'BAHAN PAKAN'!$D$7:$Y$106,10,FALSE),0) -> 0 | AH21: =_xlfn.IFNA(VLOOKUP(D21,'BAHAN PAKAN'!$D$7:$Y$106,11,FALSE),0) -> 0 | AI21: =_xlfn.IFNA(VLOOKUP(D21,'BAHAN PAKAN'!$D$7:$Y$106,12,FALSE),0) -> 0 | AJ21: =_xlfn.IFNA(VLOOKUP(D21,'BAHAN PAKAN'!$D$7:$Y$106,13,FALSE),0) -> 0 | AK21: =_xlfn.IFNA(VLOOKUP(D21,'BAHAN PAKAN'!$D$7:$Y$106,14,FALSE),0) -> 0 | AL21: =_xlfn.IFNA(VLOOKUP(D21,'BAHAN PAKAN'!$D$7:$Y$106,15,FALSE),0) -> 0 | AM21: =_xlfn.IFNA(VLOOKUP(D21,'BAHAN PAKAN'!$D$7:$Y$106,16,FALSE),0) -> 0 | AN21: =_xlfn.IFNA(VLOOKUP(D21,'BAHAN PAKAN'!$D$7:$Y$106,17,FALSE),0) -> 0 | AO21: =_xlfn.IFNA(VLOOKUP(D21,'BAHAN PAKAN'!$D$7:$Y$106,18,FALSE),0) -> 0 | AP21: =_xlfn.IFNA(VLOOKUP(D21,'BAHAN PAKAN'!$D$7:$Y$106,19,FALSE),0) -> 0 | AQ21: =_xlfn.IFNA(VLOOKUP(D21,'BAHAN PAKAN'!$D$7:$Y$106,20,FALSE),0) -> 0 | AR21: =_xlfn.IFNA(VLOOKUP(D21,'BAHAN PAKAN'!$D$7:$Y$106,21,FALSE),0) -> 0 | AS21: =_xlfn.IFNA(VLOOKUP(D21,'BAHAN PAKAN'!$D$7:$Y$106,22,FALSE),0) -> 0 | AT21: 0 | AU21: 0 | AV21: 0 | AW21: 100 | AX21: Kalium | AY21: 0 | AZ21: =SUMPRODUCT(K,KomposisiRansum)/100 -> 2.232 | BA21: 100 | BB21: 0
B22: 15 | F22: =_xlfn.IFNA(VLOOKUP($D22,'BAHAN PAKAN'!$D$7:$Y$106,4,FALSE),0) -> 0 | J22: 0 | L22: 0 | P22: Natrium | R22: % | V22: 0.026 | AA22: 15 | AB22: =_xlfn.IFNA(VLOOKUP(D22,'BAHAN PAKAN'!$D$7:$Y$106,1,FALSE),0) -> 0 | AC22: 99999999 | AD22: =_xlfn.IFNA(VLOOKUP(D22,'BAHAN PAKAN'!$D$7:$Y$106,6,FALSE),0) -> 0 | AE22: =_xlfn.IFNA(VLOOKUP(D22,'BAHAN PAKAN'!$D$7:$Y$106,8,FALSE),0) -> 0 | AF22: =_xlfn.IFNA(VLOOKUP(D22,'BAHAN PAKAN'!$D$7:$Y$106,9,FALSE),0) -> 0 | AG22: =_xlfn.IFNA(VLOOKUP(D22,'BAHAN PAKAN'!$D$7:$Y$106,10,FALSE),0) -> 0 | AH22: =_xlfn.IFNA(VLOOKUP(D22,'BAHAN PAKAN'!$D$7:$Y$106,11,FALSE),0) -> 0 | AI22: =_xlfn.IFNA(VLOOKUP(D22,'BAHAN PAKAN'!$D$7:$Y$106,12,FALSE),0) -> 0 | AJ22: =_xlfn.IFNA(VLOOKUP(D22,'BAHAN PAKAN'!$D$7:$Y$106,13,FALSE),0) -> 0 | AK22: =_xlfn.IFNA(VLOOKUP(D22,'BAHAN PAKAN'!$D$7:$Y$106,14,FALSE),0) -> 0 | AL22: =_xlfn.IFNA(VLOOKUP(D22,'BAHAN PAKAN'!$D$7:$Y$106,15,FALSE),0) -> 0 | AM22: =_xlfn.IFNA(VLOOKUP(D22,'BAHAN PAKAN'!$D$7:$Y$106,16,FALSE),0) -> 0 | AN22: =_xlfn.IFNA(VLOOKUP(D22,'BAHAN PAKAN'!$D$7:$Y$106,17,FALSE),0) -> 0 | AO22: =_xlfn.IFNA(VLOOKUP(D22,'BAHAN PAKAN'!$D$7:$Y$106,18,FALSE),0) -> 0 | AP22: =_xlfn.IFNA(VLOOKUP(D22,'BAHAN PAKAN'!$D$7:$Y$106,19,FALSE),0) -> 0 | AQ22: =_xlfn.IFNA(VLOOKUP(D22,'BAHAN PAKAN'!$D$7:$Y$106,20,FALSE),0) -> 0 | AR22: =_xlfn.IFNA(VLOOKUP(D22,'BAHAN PAKAN'!$D$7:$Y$106,21,FALSE),0) -> 0 | AS22: =_xlfn.IFNA(VLOOKUP(D22,'BAHAN PAKAN'!$D$7:$Y$106,22,FALSE),0) -> 0 | AT22: 0 | AU22: 0 | AV22: 0 | AW22: 100 | AX22: Natrium | AY22: 0 | AZ22: =SUMPRODUCT(Na,KomposisiRansum)/100 -> 0.026 | BA22: 100 | BB22: 0
D24: Harga Ransum (Rp/kg BK) | F24: =IF(HargaRansum<10000,HargaRansum,"Ërror") -> 2012.634865 | J24: =SUM(KomposisiRansum) -> 100 | L24: =(SUM(L8:L22)) -> 100 | V24: =NOW() -> 2019-09-03T19:07:03.740 | AC24: =SUMPRODUCT(KomposisiRansum*Harga)/100 -> 2012.634865 | BB24: =(SUM(BB8:BB22)) -> 379.5414287 | BC24: =(SUM(BC8:BC22)) -> 
D25: Harga Ransum (Rp/kg segar) | F25: =SUMPRODUCT(L8:L22,F8:F22)/100 -> 530.2806789
B26: (c) 2019 Department of Nutrition and Feed Technology - IPB University

Sheet CONTACT
B2: FORSUM for Ruminant ver 4.0++
B3: (c) 2019 Department of Nutrition and Feed Technology - IPB University
B5: About FORSUM
B6: FORSUM for Ruminant is a simple ration formulation program using Excel Solver. The ration formulated from FORSUM is the least cost ration. Solver is an application based on Linear Programming (LP), which is a method to minimize costs.
B9: CONTACT
B10: Dr.Ir. Idat Galih Permana, MSc.
B11: Department of Nutrition and Feed Technology, Faculty of Animal Science, IPB University
B12: Jl. Agatis Kampus Darmaga, 16689 Bogor
B13: http://permana.staff.ipb.ac.id
B14: Phone: +62.81380263993
B15: Email: permana@apps.ipb.ac.id

Sheet BACKUP
D2: FORSUM for Ruminant ver 4.0++
D3: (c) 2019 Department of Nutrition and Feed Technology - IPB University | P3: Nama Ransum | Q3: : | R3: Konsentrat Sapi Perah
P4: Formulator | Q4: : | R4: Idat G. Permana
B5: Tabel 1. Komposisi Ransum (Least Cost Ration) | P5: Tabel 2. Kandungan Nutrien Ransum (% DM) | AA5: Tabel 3. Perhitungan Ransum (Jangan Dihapus)
B6: No | D6: Bahan Pakan | F6: Harga | H6: Min | J6: %BK | L6: %AsFeed | N6: Max | P6: Nutrien | R6: Unit | T6: Min | V6: Nutrien | X6: Max | AA6: No | AB6: Ingredient | AC6: Harga BK | AD6: KA | AE6: Abu | AF6: PK | AG6: LK | AH6: SK | AI6: BETN | AJ6: NDF | AK6: ADF | AL6: GE | AM6: DE | AN6: TDN | AO6: Ca | AP6: P | AQ6: K | AR6: Na | AS6: BK | AT6: Bahan Pakan | AU6: Min | AV6: Komposisi Ransum | AW6: Max | AX6: Nutrien | AY6: Min | AZ6: Nutrient | BA6: Max | BB6: %AsFeed | BC6: %AsFeed
B8: 1 | D8: Jagung | F8: =_xlfn.IFNA(VLOOKUP($D8,'BAHAN PAKAN'!$D$7:$Y$106,4,FALSE),0) -> 4500 | H8: 5 | J8: 5 | L8: =BB8/($BB$24/100) -> 4.995295317 | P8: Kadar Air | R8: % | V8: =AZ8 -> 13.39344277 | AA8: 1 | AB8: =_xlfn.IFNA(VLOOKUP(D8,'BAHAN PAKAN'!$D$7:$Y$106,1,FALSE),0) -> Jagung | AC8: =IF(F8>0,F8*100/AS8,99999999) -> 5214.368482 | AD8: =_xlfn.IFNA(VLOOKUP(D8,'BAHAN PAKAN'!$D$7:$Y$106,6,FALSE),0) -> 13.7 | AE8: =_xlfn.IFNA(VLOOKUP(D8,'BAHAN PAKAN'!$D$7:$Y$106,8,FALSE),0) -> 1.4 | AF8: =_xlfn.IFNA(VLOOKUP(D8,'BAHAN PAKAN'!$D$7:$Y$106,9,FALSE),0) -> 9.4 | AG8: =_xlfn.IFNA(VLOOKUP(D8,'BAHAN PAKAN'!$D$7:$Y$106,10,FALSE),0) -> 4.3 | AH8: =_xlfn.IFNA(VLOOKUP(D8,'BAHAN PAKAN'!$D$7:$Y$106,11,FALSE),0) -> 2.5 | AI8: =_xlfn.IFNA(VLOOKUP(D8,'BAHAN PAKAN'!$D$7:$Y$106,12,FALSE),0) -> 82.4 | AJ8: =_xlfn.IFNA(VLOOKUP(D8,'BAHAN PAKAN'!$D$7:$Y$106,13,FALSE),0) -> 12.2 | AK8: =_xlfn.IFNA(VLOOKUP(D8,'BAHAN PAKAN'!$D$7:$Y$106,14,FALSE),0) -> 3 | AL8: =_xlfn.IFNA(VLOOKUP(D8,'BAHAN PAKAN'!$D$7:$Y$106,15,FALSE),0) -> 18.7 | AM8: =_xlfn.IFNA(VLOOKUP(D8,'BAHAN PAKAN'!$D$7:$Y$106,16,FALSE),0) -> 12 | AN8: =_xlfn.IFNA(VLOOKUP(D8,'BAHAN PAKAN'!$D$7:$Y$106,17,FALSE),0) -> 80.8 | AO8: =_xlfn.IFNA(VLOOKUP(D8,'BAHAN PAKAN'!$D$7:$Y$106,18,FALSE),0) -> 0.05 | AP8: =_xlfn.IFNA(VLOOKUP(D8,'BAHAN PAKAN'!$D$7:$Y$106,19,FALSE),0) -> 0.3 | AQ8: =_xlfn.IFNA(VLOOKUP(D8,'BAHAN PAKAN'!$D$7:$Y$106,20,FALSE),0) -> 0.39 | AR8: =_xlfn.IFNA(VLOOKUP(D8,'BAHAN PAKAN'!$D$7:$Y$106,21,FALSE),0) -> 0 | AS8: =_xlfn.IFNA(VLOOKUP(D8,'BAHAN PAKAN'!$D$7:$Y$106,22,FALSE),0) -> 86.3 | AT8: =AB8 -> Jagung | AU8: =IF(H8>0,H8,0) -> 5 | AV8: =J8 -> 5 | AW8: =IF(N8>0,N8,100) -> 100 | AX8: =P8 -> Kadar Air | AY8: =IF(T8>0,T8,0) -> 0 | AZ8: =SUMPRODUCT(KadarAir,KomposisiRansum)/100 -> 13.39344277 | BA8: =IF(X8>0,X8,100) -> 100 | BB8: =IFERROR(BC8,0) -> 5.793742758 | BC8: =100/AS8*J8 -> 5.793742758
B9: 2 | D9: Dedak padi | F9: =_xlfn.IFNA(VLOOKUP($D9,'BAHAN PAKAN'!$D$7:$Y$106,4,FALSE),0) -> 2800 | J9: 15 | L9: =BB9/($BB$24/100) -> 14.33793745 | N9: 15 | P9: Abu | R9: % | V9: =AZ9 -> 9.538012207 | X9: 12 | AA9: 2 | AB9: =_xlfn.IFNA(VLOOKUP(D9,'BAHAN PAKAN'!$D$7:$Y$106,1,FALSE),0) -> Dedak padi | AC9: =IF(F9>0,F9*100/AS9,99999999) -> 3104.21286 | AD9: =_xlfn.IFNA(VLOOKUP(D9,'BAHAN PAKAN'!$D$7:$Y$106,6,FALSE),0) -> 9.8 | AE9: =_xlfn.IFNA(VLOOKUP(D9,'BAHAN PAKAN'!$D$7:$Y$106,8,FALSE),0) -> 12.4 | AF9: =_xlfn.IFNA(VLOOKUP(D9,'BAHAN PAKAN'!$D$7:$Y$106,9,FALSE),0) -> 10 | AG9: =_xlfn.IFNA(VLOOKUP(D9,'BAHAN PAKAN'!$D$7:$Y$106,10,FALSE),0) -> 14.4 | AH9: =_xlfn.IFNA(VLOOKUP(D9,'BAHAN PAKAN'!$D$7:$Y$106,11,FALSE),0) -> 16.3 | AI9: =_xlfn.IFNA(VLOOKUP(D9,'BAHAN PAKAN'!$D$7:$Y$106,12,FALSE),0) -> 44.2 | AJ9: =_xlfn.IFNA(VLOOKUP(D9,'BAHAN PAKAN'!$D$7:$Y$106,13,FALSE),0) -> 34.4 | AK9: =_xlfn.IFNA(VLOOKUP(D9,'BAHAN PAKAN'!$D$7:$Y$106,14,FALSE),0) -> 19.6 | AL9: =_xlfn.IFNA(VLOOKUP(D9,'BAHAN PAKAN'!$D$7:$Y$106,15,FALSE),0) -> 20.2 | AM9: =_xlfn.IFNA(VLOOKUP(D9,'BAHAN PAKAN'!$D$7:$Y$106,16,FALSE),0) -> 10 | AN9: =_xlfn.IFNA(VLOOKUP(D9,'BAHAN PAKAN'!$D$7:$Y$106,17,FALSE),0) -> 67.9 | AO9: =_xlfn.IFNA(VLOOKUP(D9,'BAHAN PAKAN'!$D$7:$Y$106,18,FALSE),0) -> 0.07 | AP9: =_xlfn.IFNA(VLOOKUP(D9,'BAHAN PAKAN'!$D$7:$Y$106,19,FALSE),0) -> 1.38 | AQ9: =_xlfn.IFNA(VLOOKUP(D9,'BAHAN PAKAN'!$D$7:$Y$106,20,FALSE),0) -> 1.23 | AR9: =_xlfn.IFNA(VLOOKUP(D9,'BAHAN PAKAN'!$D$7:$Y$106,21,FALSE),0) -> 0.02 | AS9: =_xlfn.IFNA(VLOOKUP(D9,'BAHAN PAKAN'!$D$7:$Y$106,22,FALSE),0) -> 90.2 | AT9: Dedak padi | AU9: =IF(H9>0,H9,0) -> 0 | AV9: =J9 -> 15 | AW9: =IF(N9>0,N9,100) -> 15 | AX9: =P9 -> Abu | AY9: =IF(T9>0,T9,0) -> 0 | AZ9: =SUMPRODUCT(Abu,KomposisiRansum)/100 -> 9.538012207 | BA9: =IF(X9>0,X9,100) -> 12 | BB9: =IFERROR(BC9,0) -> 16.62971175 | BC9: =100/AS9*J9 -> 16.62971175
B10: 3 | D10: Pollard | F10: =_xlfn.IFNA(VLOOKUP($D10,'BAHAN PAKAN'!$D$7:$Y$106,4,FALSE),0) -> 3600 | J10: 24.77221886 | L10: 24.54978061 | P10: Protein Kasar | R10: % | T10: 13 | V10: 13 | AA10: 3 | AB10: =_xlfn.IFNA(VLOOKUP(D10,'BAHAN PAKAN'!$D$7:$Y$106,1,FALSE),0) -> Pollard | AC10: 4137.931034 | AD10: =_xlfn.IFNA(VLOOKUP(D10,'BAHAN PAKAN'!$D$7:$Y$106,6,FALSE),0) -> 13 | AE10: =_xlfn.IFNA(VLOOKUP(D10,'BAHAN PAKAN'!$D$7:$Y$106,8,FALSE),0) -> 5.6 | AF10: =_xlfn.IFNA(VLOOKUP(D10,'BAHAN PAKAN'!$D$7:$Y$106,9,FALSE),0) -> 17.3 | AG10: =_xlfn.IFNA(VLOOKUP(D10,'BAHAN PAKAN'!$D$7:$Y$106,10,FALSE),0) -> 3.9 | AH10: =_xlfn.IFNA(VLOOKUP(D10,'BAHAN PAKAN'!$D$7:$Y$106,11,FALSE),0) -> 10.4 | AI10: =_xlfn.IFNA(VLOOKUP(D10,'BAHAN PAKAN'!$D$7:$Y$106,12,FALSE),0) -> 62.8 | AJ10: =_xlfn.IFNA(VLOOKUP(D10,'BAHAN PAKAN'!$D$7:$Y$106,13,FALSE),0) -> 45.2 | AK10: =_xlfn.IFNA(VLOOKUP(D10,'BAHAN PAKAN'!$D$7:$Y$106,14,FALSE),0) -> 13.4 | AL10: =_xlfn.IFNA(VLOOKUP(D10,'BAHAN PAKAN'!$D$7:$Y$106,15,FALSE),0) -> 18.9 | AM10: =_xlfn.IFNA(VLOOKUP(D10,'BAHAN PAKAN'!$D$7:$Y$106,16,FALSE),0) -> 11 | AN10: =_xlfn.IFNA(VLOOKUP(D10,'BAHAN PAKAN'!$D$7:$Y$106,17,FALSE),0) -> 69.2 | AO10: =_xlfn.IFNA(VLOOKUP(D10,'BAHAN PAKAN'!$D$7:$Y$106,18,FALSE),0) -> 0.14 | AP10: =_xlfn.IFNA(VLOOKUP(D10,'BAHAN PAKAN'!$D$7:$Y$106,19,FALSE),0) -> 1.11 | AQ10: =_xlfn.IFNA(VLOOKUP(D10,'BAHAN PAKAN'!$D$7:$Y$106,20,FALSE),0) -> 1.37 | AR10: =_xlfn.IFNA(VLOOKUP(D10,'BAHAN PAKAN'!$D$7:$Y$106,21,FALSE),0) -> 0.01 | AS10: =_xlfn.IFNA(VLOOKUP(D10,'BAHAN PAKAN'!$D$7:$Y$106,22,FALSE),0) -> 87 | AT10: Pollard | AU10: 0 | AV10: 24.77221886 | AW10: 100 | AX10: Protein Kasar | AY10: 13 | AZ10: =SUMPRODUCT(PK,KomposisiRansum)/100 -> 13 | BA10: 100 | BB10: 28.47381478 | BC10: 28.47381478
B11: 4 | D11: Onggok kering | F11: =_xlfn.IFNA(VLOOKUP($D11,'BAHAN PAKAN'!$D$7:$Y$106,4,FALSE),0) -> 2400 | J11: 17.13409307 | L11: 18.51229192 | P11: Lemak Kasar | R11: % | V11: 4.286446295 | X11: 7 | AA11: 4 | AB11: =_xlfn.IFNA(VLOOKUP(D11,'BAHAN PAKAN'!$D$7:$Y$106,1,FALSE),0) -> Onggok kering | AC11: 3007.518797 | AD11: =_xlfn.IFNA(VLOOKUP(D11,'BAHAN PAKAN'!$D$7:$Y$106,6,FALSE),0) -> 20.2 | AE11: =_xlfn.IFNA(VLOOKUP(D11,'BAHAN PAKAN'!$D$7:$Y$106,8,FALSE),0) -> 2.4 | AF11: =_xlfn.IFNA(VLOOKUP(D11,'BAHAN PAKAN'!$D$7:$Y$106,9,FALSE),0) -> 1.87 | AG11: =_xlfn.IFNA(VLOOKUP(D11,'BAHAN PAKAN'!$D$7:$Y$106,10,FALSE),0) -> 0.324 | AH11: =_xlfn.IFNA(VLOOKUP(D11,'BAHAN PAKAN'!$D$7:$Y$106,11,FALSE),0) -> 8.9 | AI11: =_xlfn.IFNA(VLOOKUP(D11,'BAHAN PAKAN'!$D$7:$Y$106,12,FALSE),0) -> 85.5 | AJ11: =_xlfn.IFNA(VLOOKUP(D11,'BAHAN PAKAN'!$D$7:$Y$106,13,FALSE),0) -> 0 | AK11: =_xlfn.IFNA(VLOOKUP(D11,'BAHAN PAKAN'!$D$7:$Y$106,14,FALSE),0) -> 0 | AL11: =_xlfn.IFNA(VLOOKUP(D11,'BAHAN PAKAN'!$D$7:$Y$106,15,FALSE),0) -> 0 | AM11: =_xlfn.IFNA(VLOOKUP(D11,'BAHAN PAKAN'!$D$7:$Y$106,16,FALSE),0) -> 0 | AN11: =_xlfn.IFNA(VLOOKUP(D11,'BAHAN PAKAN'!$D$7:$Y$106,17,FALSE),0) -> 78.3 | AO11: =_xlfn.IFNA(VLOOKUP(D11,'BAHAN PAKAN'!$D$7:$Y$106,18,FALSE),0) -> 0.2 | AP11: =_xlfn.IFNA(VLOOKUP(D11,'BAHAN PAKAN'!$D$7:$Y$106,19,FALSE),0) -> 0.1 | AQ11: =_xlfn.IFNA(VLOOKUP(D11,'BAHAN PAKAN'!$D$7:$Y$106,20,FALSE),0) -> 0 | AR11: =_xlfn.IFNA(VLOOKUP(D11,'BAHAN PAKAN'!$D$7:$Y$106,21,FALSE),0) -> 0 | AS11: =_xlfn.IFNA(VLOOKUP(D11,'BAHAN PAKAN'!$D$7:$Y$106,22,FALSE),0) -> 79.8 | AT11: Onggok kering | AU11: 0 | AV11: 17.13409307 | AW11: 100 | AX11: Lemak Kasar | AY11: 0 | AZ11: =SUMPRODUCT(LK,KomposisiRansum)/100 -> 4.286446295 | BA11: 7 | BB11: 21.47129457 | BC11: 21.47129457
B12: 5 | D12: Bungkil kelapa | F12: =_xlfn.IFNA(VLOOKUP($D12,'BAHAN PAKAN'!$D$7:$Y$106,4,FALSE),0) -> 3100 | J12: 20 | L12: 19.20240471 | N12: 20 | P12: Serat Kasar | R12: % | V12: 15.18209112 | AA12: 5 | AB12: =_xlfn.IFNA(VLOOKUP(D12,'BAHAN PAKAN'!$D$7:$Y$106,1,FALSE),0) -> Bungkil kelapa | AC12: 3452.115813 | AD12: =_xlfn.IFNA(VLOOKUP(D12,'BAHAN PAKAN'!$D$7:$Y$106,6,FALSE),0) -> 10.2 | AE12: =_xlfn.IFNA(VLOOKUP(D12,'BAHAN PAKAN'!$D$7:$Y$106,8,FALSE),0) -> 7 | AF12: =_xlfn.IFNA(VLOOKUP(D12,'BAHAN PAKAN'!$D$7:$Y$106,9,FALSE),0) -> 23.5 | AG12: =_xlfn.IFNA(VLOOKUP(D12,'BAHAN PAKAN'!$D$7:$Y$106,10,FALSE),0) -> 2.8 | AH12: =_xlfn.IFNA(VLOOKUP(D12,'BAHAN PAKAN'!$D$7:$Y$106,11,FALSE),0) -> 16.8 | AI12: =_xlfn.IFNA(VLOOKUP(D12,'BAHAN PAKAN'!$D$7:$Y$106,12,FALSE),0) -> 49.9 | AJ12: =_xlfn.IFNA(VLOOKUP(D12,'BAHAN PAKAN'!$D$7:$Y$106,13,FALSE),0) -> 56.4 | AK12: =_xlfn.IFNA(VLOOKUP(D12,'BAHAN PAKAN'!$D$7:$Y$106,14,FALSE),0) -> 30.7 | AL12: =_xlfn.IFNA(VLOOKUP(D12,'BAHAN PAKAN'!$D$7:$Y$106,15,FALSE),0) -> 18.7 | AM12: =_xlfn.IFNA(VLOOKUP(D12,'BAHAN PAKAN'!$D$7:$Y$106,16,FALSE),0) -> 14.5 | AN12: =_xlfn.IFNA(VLOOKUP(D12,'BAHAN PAKAN'!$D$7:$Y$106,17,FALSE),0) -> 78.7 | AO12: =_xlfn.IFNA(VLOOKUP(D12,'BAHAN PAKAN'!$D$7:$Y$106,18,FALSE),0) -> 0.07 | AP12: =_xlfn.IFNA(VLOOKUP(D12,'BAHAN PAKAN'!$D$7:$Y$106,19,FALSE),0) -> 0.65 | AQ12: =_xlfn.IFNA(VLOOKUP(D12,'BAHAN PAKAN'!$D$7:$Y$106,20,FALSE),0) -> 2.28 | AR12: =_xlfn.IFNA(VLOOKUP(D12,'BAHAN PAKAN'!$D$7:$Y$106,21,FALSE),0) -> 0.06 | AS12: =_xlfn.IFNA(VLOOKUP(D12,'BAHAN PAKAN'!$D$7:$Y$106,22,FALSE),0) -> 89.8 | AT12: Bungkil kelapa | AU12: 0 | AV12: 20 | AW12: 20 | AX12: Serat Kasar | AY12: 0 | AZ12: =SUMPRODUCT(SK,KomposisiRansum)/100 -> 15.18209112 | BA12: 100 | BB12: 22.27171492 | BC12: 22.27171492
B13: 6 | D13: Bungkil inti sawit | F13: =_xlfn.IFNA(VLOOKUP($D13,'BAHAN PAKAN'!$D$7:$Y$106,4,FALSE),0) -> 2900 | J13: 4.689832073 | L13: 4.448313314 | N13: 20 | P13: BETN | R13: % | V13: 57.38004284 | AA13: 6 | AB13: =_xlfn.IFNA(VLOOKUP(D13,'BAHAN PAKAN'!$D$7:$Y$106,1,FALSE),0) -> Bungkil inti sawit | AC13: 3190.319032 | AD13: =_xlfn.IFNA(VLOOKUP(D13,'BAHAN PAKAN'!$D$7:$Y$106,6,FALSE),0) -> 9.1 | AE13: =_xlfn.IFNA(VLOOKUP(D13,'BAHAN PAKAN'!$D$7:$Y$106,8,FALSE),0) -> 4.6 | AF13: =_xlfn.IFNA(VLOOKUP(D13,'BAHAN PAKAN'!$D$7:$Y$106,9,FALSE),0) -> 18.7 | AG13: =_xlfn.IFNA(VLOOKUP(D13,'BAHAN PAKAN'!$D$7:$Y$106,10,FALSE),0) -> 2.8 | AH13: =_xlfn.IFNA(VLOOKUP(D13,'BAHAN PAKAN'!$D$7:$Y$106,11,FALSE),0) -> 20.2 | AI13: =_xlfn.IFNA(VLOOKUP(D13,'BAHAN PAKAN'!$D$7:$Y$106,12,FALSE),0) -> 53.7 | AJ13: =_xlfn.IFNA(VLOOKUP(D13,'BAHAN PAKAN'!$D$7:$Y$106,13,FALSE),0) -> 73.2 | AK13: =_xlfn.IFNA(VLOOKUP(D13,'BAHAN PAKAN'!$D$7:$Y$106,14,FALSE),0) -> 45 | AL13: =_xlfn.IFNA(VLOOKUP(D13,'BAHAN PAKAN'!$D$7:$Y$106,15,FALSE),0) -> 18.8 | AM13: =_xlfn.IFNA(VLOOKUP(D13,'BAHAN PAKAN'!$D$7:$Y$106,16,FALSE),0) -> 13.3 | AN13: =_xlfn.IFNA(VLOOKUP(D13,'BAHAN PAKAN'!$D$7:$Y$106,17,FALSE),0) -> 79 | AO13: =_xlfn.IFNA(VLOOKUP(D13,'BAHAN PAKAN'!$D$7:$Y$106,18,FALSE),0) -> 0.27 | AP13: =_xlfn.IFNA(VLOOKUP(D13,'BAHAN PAKAN'!$D$7:$Y$106,19,FALSE),0) -> 0.66 | AQ13: =_xlfn.IFNA(VLOOKUP(D13,'BAHAN PAKAN'!$D$7:$Y$106,20,FALSE),0) -> 0.74 | AR13: =_xlfn.IFNA(VLOOKUP(D13,'BAHAN PAKAN'!$D$7:$Y$106,21,FALSE),0) -> 0 | AS13: =_xlfn.IFNA(VLOOKUP(D13,'BAHAN PAKAN'!$D$7:$Y$106,22,FALSE),0) -> 90.9 | AT13: Bungkil inti sawit | AU13: 0 | AV13: 4.689832073 | AW13: 20 | AX13: BETN | AY13: 0 | AZ13: =SUMPRODUCT(BETN,KomposisiRansum)/100 -> 57.38004284 | BA13: 100 | BB13: 5.159331213 | BC13: 5.159331213
B14: 7 | D14: Ampas kecap | F14: =_xlfn.IFNA(VLOOKUP($D14,'BAHAN PAKAN'!$D$7:$Y$106,4,FALSE),0) -> 2500 | J14: -2.220446049e-16 | L14: -7.197149908e-16 | P14: NDF | R14: % | V14: 35 | X14: 35 | AA14: 7 | AB14: =_xlfn.IFNA(VLOOKUP(D14,'BAHAN PAKAN'!$D$7:$Y$106,1,FALSE),0) -> Ampas kecap | AC14: 9398.496241 | AD14: =_xlfn.IFNA(VLOOKUP(D14,'BAHAN PAKAN'!$D$7:$Y$106,6,FALSE),0) -> 73.4 | AE14: =_xlfn.IFNA(VLOOKUP(D14,'BAHAN PAKAN'!$D$7:$Y$106,8,FALSE),0) -> 14.2 | AF14: =_xlfn.IFNA(VLOOKUP(D14,'BAHAN PAKAN'!$D$7:$Y$106,9,FALSE),0) -> 23.5 | AG14: =_xlfn.IFNA(VLOOKUP(D14,'BAHAN PAKAN'!$D$7:$Y$106,10,FALSE),0) -> 24.2 | AH14: =_xlfn.IFNA(VLOOKUP(D14,'BAHAN PAKAN'!$D$7:$Y$106,11,FALSE),0) -> 16 | AI14: =_xlfn.IFNA(VLOOKUP(D14,'BAHAN PAKAN'!$D$7:$Y$106,12,FALSE),0) -> 22.1 | AJ14: =_xlfn.IFNA(VLOOKUP(D14,'BAHAN PAKAN'!$D$7:$Y$106,13,FALSE),0) -> 0 | AK14: =_xlfn.IFNA(VLOOKUP(D14,'BAHAN PAKAN'!$D$7:$Y$106,14,FALSE),0) -> 0 | AL14: =_xlfn.IFNA(VLOOKUP(D14,'BAHAN PAKAN'!$D$7:$Y$106,15,FALSE),0) -> 0 | AM14: =_xlfn.IFNA(VLOOKUP(D14,'BAHAN PAKAN'!$D$7:$Y$106,16,FALSE),0) -> 0 | AN14: =_xlfn.IFNA(VLOOKUP(D14,'BAHAN PAKAN'!$D$7:$Y$106,17,FALSE),0) -> 87.2 | AO14: =_xlfn.IFNA(VLOOKUP(D14,'BAHAN PAKAN'!$D$7:$Y$106,18,FALSE),0) -> 0.882 | AP14: =_xlfn.IFNA(VLOOKUP(D14,'BAHAN PAKAN'!$D$7:$Y$106,19,FALSE),0) -> 0.141 | AQ14: =_xlfn.IFNA(VLOOKUP(D14,'BAHAN PAKAN'!$D$7:$Y$106,20,FALSE),0) -> 0 | AR14: =_xlfn.IFNA(VLOOKUP(D14,'BAHAN PAKAN'!$D$7:$Y$106,21,FALSE),0) -> 0 | AS14: =_xlfn.IFNA(VLOOKUP(D14,'BAHAN PAKAN'!$D$7:$Y$106,22,FALSE),0) -> 26.6 | AT14: Ampas kecap | AU14: 0 | AV14: -2.220446049e-16 | AW14: 100 | AX14: NDF | AY14: 0 | AZ14: =SUMPRODUCT(NDF,KomposisiRansum)/100 -> 35 | BA14: 35 | BB14: -8.347541539e-16 | BC14: -8.347541539e-16
B15: 8 | D15: Kulit kopi | F15: =_xlfn.IFNA(VLOOKUP($D15,'BAHAN PAKAN'!$D$7:$Y$106,4,FALSE),0) -> 1200 | J15: 5 | L15: 6.158485512 | N15: 5 | P15: ADF | R15: % | V15: 17.47990176 | AA15: 8 | AB15: =_xlfn.IFNA(VLOOKUP(D15,'BAHAN PAKAN'!$D$7:$Y$106,1,FALSE),0) -> Kulit kopi | AC15: 1714.285714 | AD15: =_xlfn.IFNA(VLOOKUP(D15,'BAHAN PAKAN'!$D$7:$Y$106,6,FALSE),0) -> 30 | AE15: =_xlfn.IFNA(VLOOKUP(D15,'BAHAN PAKAN'!$D$7:$Y$106,8,FALSE),0) -> 11.28 | AF15: =_xlfn.IFNA(VLOOKUP(D15,'BAHAN PAKAN'!$D$7:$Y$106,9,FALSE),0) -> 9.94 | AG15: =_xlfn.IFNA(VLOOKUP(D15,'BAHAN PAKAN'!$D$7:$Y$106,10,FALSE),0) -> 1.97 | AH15: =_xlfn.IFNA(VLOOKUP(D15,'BAHAN PAKAN'!$D$7:$Y$106,11,FALSE),0) -> 18.17 | AI15: =_xlfn.IFNA(VLOOKUP(D15,'BAHAN PAKAN'!$D$7:$Y$106,12,FALSE),0) -> 58.6 | AJ15: =_xlfn.IFNA(VLOOKUP(D15,'BAHAN PAKAN'!$D$7:$Y$106,13,FALSE),0) -> 0 | AK15: =_xlfn.IFNA(VLOOKUP(D15,'BAHAN PAKAN'!$D$7:$Y$106,14,FALSE),0) -> 0 | AL15: =_xlfn.IFNA(VLOOKUP(D15,'BAHAN PAKAN'!$D$7:$Y$106,15,FALSE),0) -> 0 | AM15: =_xlfn.IFNA(VLOOKUP(D15,'BAHAN PAKAN'!$D$7:$Y$106,16,FALSE),0) -> 0 | AN15: =_xlfn.IFNA(VLOOKUP(D15,'BAHAN PAKAN'!$D$7:$Y$106,17,FALSE),0) -> 50.6 | AO15: =_xlfn.IFNA(VLOOKUP(D15,'BAHAN PAKAN'!$D$7:$Y$106,18,FALSE),0) -> 0.68 | AP15: =_xlfn.IFNA(VLOOKUP(D15,'BAHAN PAKAN'!$D$7:$Y$106,19,FALSE),0) -> 0.2 | AQ15: =_xlfn.IFNA(VLOOKUP(D15,'BAHAN PAKAN'!$D$7:$Y$106,20,FALSE),0) -> 0 | AR15: =_xlfn.IFNA(VLOOKUP(D15,'BAHAN PAKAN'!$D$7:$Y$106,21,FALSE),0) -> 0 | AS15: =_xlfn.IFNA(VLOOKUP(D15,'BAHAN PAKAN'!$D$7:$Y$106,22,FALSE),0) -> 70 | AT15: Kulit kopi | AU15: 0 | AV15: 5 | AW15: 5 | AX15: ADF | AY15: 0 | AZ15: =SUMPRODUCT(ADF,KomposisiRansum)/100 -> 17.47990176 | BA15: 100 | BB15: 7.142857143 | BC15: 7.142857143
B16: 9 | D16: Kulit kacang | F16: =_xlfn.IFNA(VLOOKUP($D16,'BAHAN PAKAN'!$D$7:$Y$106,4,FALSE),0) -> 350 | J16: 5 | L16: 4.706266221 | N16: 5 | P16: GE | R16: MJ/kg | V16: 14.25863779 | AA16: 9 | AB16: =_xlfn.IFNA(VLOOKUP(D16,'BAHAN PAKAN'!$D$7:$Y$106,1,FALSE),0) -> Kulit kacang | AC16: 382.0960699 | AD16: =_xlfn.IFNA(VLOOKUP(D16,'BAHAN PAKAN'!$D$7:$Y$106,6,FALSE),0) -> 8.4 | AE16: =_xlfn.IFNA(VLOOKUP(D16,'BAHAN PAKAN'!$D$7:$Y$106,8,FALSE),0) -> 5.2 | AF16: =_xlfn.IFNA(VLOOKUP(D16,'BAHAN PAKAN'!$D$7:$Y$106,9,FALSE),0) -> 7 | AG16: =_xlfn.IFNA(VLOOKUP(D16,'BAHAN PAKAN'!$D$7:$Y$106,10,FALSE),0) -> 2 | AH16: =_xlfn.IFNA(VLOOKUP(D16,'BAHAN PAKAN'!$D$7:$Y$106,11,FALSE),0) -> 65.9 | AI16: =_xlfn.IFNA(VLOOKUP(D16,'BAHAN PAKAN'!$D$7:$Y$106,12,FALSE),0) -> 19.9 | AJ16: =_xlfn.IFNA(VLOOKUP(D16,'BAHAN PAKAN'!$D$7:$Y$106,13,FALSE),0) -> 66.4 | AK16: =_xlfn.IFNA(VLOOKUP(D16,'BAHAN PAKAN'!$D$7:$Y$106,14,FALSE),0) -> 56.4 | AL16: =_xlfn.IFNA(VLOOKUP(D16,'BAHAN PAKAN'!$D$7:$Y$106,15,FALSE),0) -> 19.8 | AM16: =_xlfn.IFNA(VLOOKUP(D16,'BAHAN PAKAN'!$D$7:$Y$106,16,FALSE),0) -> 3.4 | AN16: =_xlfn.IFNA(VLOOKUP(D16,'BAHAN PAKAN'!$D$7:$Y$106,17,FALSE),0) -> 48 | AO16: =_xlfn.IFNA(VLOOKUP(D16,'BAHAN PAKAN'!$D$7:$Y$106,18,FALSE),0) -> 0.24 | AP16: =_xlfn.IFNA(VLOOKUP(D16,'BAHAN PAKAN'!$D$7:$Y$106,19,FALSE),0) -> 0.07 | AQ16: =_xlfn.IFNA(VLOOKUP(D16,'BAHAN PAKAN'!$D$7:$Y$106,20,FALSE),0) -> 0.69 | AR16: =_xlfn.IFNA(VLOOKUP(D16,'BAHAN PAKAN'!$D$7:$Y$106,21,FALSE),0) -> 0.01 | AS16: =_xlfn.IFNA(VLOOKUP(D16,'BAHAN PAKAN'!$D$7:$Y$106,22,FALSE),0) -> 91.6 | AT16: Kulit kacang | AU16: 0 | AV16: 5 | AW16: 5 | AX16: GE | AY16: 0 | AZ16: =SUMPRODUCT(GE,KomposisiRansum)/100 -> 14.25863779 | BA16: 100 | BB16: 5.458515284 | BC16: 5.458515284
B17: 10 | D17: Molases | F17: =_xlfn.IFNA(VLOOKUP($D17,'BAHAN PAKAN'!$D$7:$Y$106,4,FALSE),0) -> 3500 | J17: 0 | L17: 0 | P17: DE | R17: MJ/kg | V17: 8.51869174 | AA17: 10 | AB17: =_xlfn.IFNA(VLOOKUP(D17,'BAHAN PAKAN'!$D$7:$Y$106,1,FALSE),0) -> Molases | AC17: 4794.520548 | AD17: =_xlfn.IFNA(VLOOKUP(D17,'BAHAN PAKAN'!$D$7:$Y$106,6,FALSE),0) -> 27 | AE17: =_xlfn.IFNA(VLOOKUP(D17,'BAHAN PAKAN'!$D$7:$Y$106,8,FALSE),0) -> 14.6 | AF17: =_xlfn.IFNA(VLOOKUP(D17,'BAHAN PAKAN'!$D$7:$Y$106,9,FALSE),0) -> 5.5 | AG17: =_xlfn.IFNA(VLOOKUP(D17,'BAHAN PAKAN'!$D$7:$Y$106,10,FALSE),0) -> 1 | AH17: =_xlfn.IFNA(VLOOKUP(D17,'BAHAN PAKAN'!$D$7:$Y$106,11,FALSE),0) -> 0.1 | AI17: =_xlfn.IFNA(VLOOKUP(D17,'BAHAN PAKAN'!$D$7:$Y$106,12,FALSE),0) -> 78.8 | AJ17: =_xlfn.IFNA(VLOOKUP(D17,'BAHAN PAKAN'!$D$7:$Y$106,13,FALSE),0) -> 0.8 | AK17: =_xlfn.IFNA(VLOOKUP(D17,'BAHAN PAKAN'!$D$7:$Y$106,14,FALSE),0) -> 0.5 | AL17: =_xlfn.IFNA(VLOOKUP(D17,'BAHAN PAKAN'!$D$7:$Y$106,15,FALSE),0) -> 14.7 | AM17: =_xlfn.IFNA(VLOOKUP(D17,'BAHAN PAKAN'!$D$7:$Y$106,16,FALSE),0) -> 11.3 | AN17: =_xlfn.IFNA(VLOOKUP(D17,'BAHAN PAKAN'!$D$7:$Y$106,17,FALSE),0) -> 70.7 | AO17: =_xlfn.IFNA(VLOOKUP(D17,'BAHAN PAKAN'!$D$7:$Y$106,18,FALSE),0) -> 0.92 | AP17: =_xlfn.IFNA(VLOOKUP(D17,'BAHAN PAKAN'!$D$7:$Y$106,19,FALSE),0) -> 0.07 | AQ17: =_xlfn.IFNA(VLOOKUP(D17,'BAHAN PAKAN'!$D$7:$Y$106,20,FALSE),0) -> 5.1 | AR17: =_xlfn.IFNA(VLOOKUP(D17,'BAHAN PAKAN'!$D$7:$Y$106,21,FALSE),0) -> 0.24 | AS17: =_xlfn.IFNA(VLOOKUP(D17,'BAHAN PAKAN'!$D$7:$Y$106,22,FALSE),0) -> 73 | AT17: Molases | AU17: 0 | AV17: 0 | AW17: 100 | AX17: DE | AY17: 0 | AZ17: =SUMPRODUCT(DE,KomposisiRansum)/100 -> 8.51869174 | BA17: 100 | BB17: 0 | BC17: 0
B18: 11 | D18: Garam | F18: =_xlfn.IFNA(VLOOKUP($D18,'BAHAN PAKAN'!$D$7:$Y$106,4,FALSE),0) -> 2000 | H18: 0.5 | J18: 0.5 | L18: 0.453783143 | N18: 0.5 | P18: TDN | R18: % | T18: 68 | V18: 69.15833766 | AA18: 11 | AB18: =_xlfn.IFNA(VLOOKUP(D18,'BAHAN PAKAN'!$D$7:$Y$106,1,FALSE),0) -> Garam | AC18: 2105.263158 | AD18: =_xlfn.IFNA(VLOOKUP(D18,'BAHAN PAKAN'!$D$7:$Y$106,6,FALSE),0) -> 5 | AE18: =_xlfn.IFNA(VLOOKUP(D18,'BAHAN PAKAN'!$D$7:$Y$106,8,FALSE),0) -> 99 | AF18: =_xlfn.IFNA(VLOOKUP(D18,'BAHAN PAKAN'!$D$7:$Y$106,9,FALSE),0) -> 0 | AG18: =_xlfn.IFNA(VLOOKUP(D18,'BAHAN PAKAN'!$D$7:$Y$106,10,FALSE),0) -> 0 | AH18: =_xlfn.IFNA(VLOOKUP(D18,'BAHAN PAKAN'!$D$7:$Y$106,11,FALSE),0) -> 0 | AI18: =_xlfn.IFNA(VLOOKUP(D18,'BAHAN PAKAN'!$D$7:$Y$106,12,FALSE),0) -> 0 | AJ18: =_xlfn.IFNA(VLOOKUP(D18,'BAHAN PAKAN'!$D$7:$Y$106,13,FALSE),0) -> 0 | AK18: =_xlfn.IFNA(VLOOKUP(D18,'BAHAN PAKAN'!$D$7:$Y$106,14,FALSE),0) -> 0 | AL18: =_xlfn.IFNA(VLOOKUP(D18,'BAHAN PAKAN'!$D$7:$Y$106,15,FALSE),0) -> 0 | AM18: =_xlfn.IFNA(VLOOKUP(D18,'BAHAN PAKAN'!$D$7:$Y$106,16,FALSE),0) -> 0 | AN18: =_xlfn.IFNA(VLOOKUP(D18,'BAHAN PAKAN'!$D$7:$Y$106,17,FALSE),0) -> 0 | AO18: =_xlfn.IFNA(VLOOKUP(D18,'BAHAN PAKAN'!$D$7:$Y$106,18,FALSE),0) -> 0 | AP18: =_xlfn.IFNA(VLOOKUP(D18,'BAHAN PAKAN'!$D$7:$Y$106,19,FALSE),0) -> 0 | AQ18: =_xlfn.IFNA(VLOOKUP(D18,'BAHAN PAKAN'!$D$7:$Y$106,20,FALSE),0) -> 60.6 | AR18: =_xlfn.IFNA(VLOOKUP(D18,'BAHAN PAKAN'!$D$7:$Y$106,21,FALSE),0) -> 39.4 | AS18: =_xlfn.IFNA(VLOOKUP(D18,'BAHAN PAKAN'!$D$7:$Y$106,22,FALSE),0) -> 95 | AT18: Garam | AU18: 0.5 | AV18: 0.5 | AW18: 0.5 | AX18: TDN | AY18: 68 | AZ18: =SUMPRODUCT(TDN,KomposisiRansum)/100 -> 69.15833766 | BA18: 100 | BB18: 0.5263157895 | BC18: 0.5263157895
B19: 12 | D19: Kapur | F19: =_xlfn.IFNA(VLOOKUP($D19,'BAHAN PAKAN'!$D$7:$Y$106,4,FALSE),0) -> 1500 | J19: 2.903856002 | L19: 2.635441807 | P19: Kalsium | R19: % | T19: 0.6 | V19: 1.2 | X19: 1.2 | AA19: 12 | AB19: =_xlfn.IFNA(VLOOKUP(D19,'BAHAN PAKAN'!$D$7:$Y$106,1,FALSE),0) -> Kapur | AC19: 1578.947368 | AD19: =_xlfn.IFNA(VLOOKUP(D19,'BAHAN PAKAN'!$D$7:$Y$106,6,FALSE),0) -> 5 | AE19: =_xlfn.IFNA(VLOOKUP(D19,'BAHAN PAKAN'!$D$7:$Y$106,8,FALSE),0) -> 99 | AF19: =_xlfn.IFNA(VLOOKUP(D19,'BAHAN PAKAN'!$D$7:$Y$106,9,FALSE),0) -> 0 | AG19: =_xlfn.IFNA(VLOOKUP(D19,'BAHAN PAKAN'!$D$7:$Y$106,10,FALSE),0) -> 0 | AH19: =_xlfn.IFNA(VLOOKUP(D19,'BAHAN PAKAN'!$D$7:$Y$106,11,FALSE),0) -> 0 | AI19: =_xlfn.IFNA(VLOOKUP(D19,'BAHAN PAKAN'!$D$7:$Y$106,12,FALSE),0) -> 0 | AJ19: =_xlfn.IFNA(VLOOKUP(D19,'BAHAN PAKAN'!$D$7:$Y$106,13,FALSE),0) -> 0 | AK19: =_xlfn.IFNA(VLOOKUP(D19,'BAHAN PAKAN'!$D$7:$Y$106,14,FALSE),0) -> 0 | AL19: =_xlfn.IFNA(VLOOKUP(D19,'BAHAN PAKAN'!$D$7:$Y$106,15,FALSE),0) -> 0 | AM19: =_xlfn.IFNA(VLOOKUP(D19,'BAHAN PAKAN'!$D$7:$Y$106,16,FALSE),0) -> 0 | AN19: =_xlfn.IFNA(VLOOKUP(D19,'BAHAN PAKAN'!$D$7:$Y$106,17,FALSE),0) -> 0 | AO19: =_xlfn.IFNA(VLOOKUP(D19,'BAHAN PAKAN'!$D$7:$Y$106,18,FALSE),0) -> 36 | AP19: =_xlfn.IFNA(VLOOKUP(D19,'BAHAN PAKAN'!$D$7:$Y$106,19,FALSE),0) -> 0 | AQ19: =_xlfn.IFNA(VLOOKUP(D19,'BAHAN PAKAN'!$D$7:$Y$106,20,FALSE),0) -> 0 | AR19: =_xlfn.IFNA(VLOOKUP(D19,'BAHAN PAKAN'!$D$7:$Y$106,21,FALSE),0) -> 0 | AS19: =_xlfn.IFNA(VLOOKUP(D19,'BAHAN PAKAN'!$D$7:$Y$106,22,FALSE),0) -> 95 | AT19: Kapur | AU19: 0 | AV19: 2.903856002 | AW19: 100 | AX19: Kalsium | AY19: 0.6 | AZ19: =SUMPRODUCT(Ca,KomposisiRansum)/100 -> 1.2 | BA19: 1.2 | BB19: 3.056690529 | BC19: 3.056690529
B20: 13 | D20: DCP | F20: =_xlfn.IFNA(VLOOKUP($D20,'BAHAN PAKAN'!$D$7:$Y$106,4,FALSE),0) -> 10000 | J20: -1.734723476e-18 | L20: -1.574376542e-18 | P20: Phosphor | R20: % | T20: 0.4 | V20: 0.688558614 | X20: 0.8 | AA20: 13 | AB20: =_xlfn.IFNA(VLOOKUP(D20,'BAHAN PAKAN'!$D$7:$Y$106,1,FALSE),0) -> DCP | AC20: 10526.31579 | AD20: =_xlfn.IFNA(VLOOKUP(D20,'BAHAN PAKAN'!$D$7:$Y$106,6,FALSE),0) -> 5 | AE20: =_xlfn.IFNA(VLOOKUP(D20,'BAHAN PAKAN'!$D$7:$Y$106,8,FALSE),0) -> 99 | AF20: =_xlfn.IFNA(VLOOKUP(D20,'BAHAN PAKAN'!$D$7:$Y$106,9,FALSE),0) -> 0 | AG20: =_xlfn.IFNA(VLOOKUP(D20,'BAHAN PAKAN'!$D$7:$Y$106,10,FALSE),0) -> 0 | AH20: =_xlfn.IFNA(VLOOKUP(D20,'BAHAN PAKAN'!$D$7:$Y$106,11,FALSE),0) -> 0 | AI20: =_xlfn.IFNA(VLOOKUP(D20,'BAHAN PAKAN'!$D$7:$Y$106,12,FALSE),0) -> 0 | AJ20: =_xlfn.IFNA(VLOOKUP(D20,'BAHAN PAKAN'!$D$7:$Y$106,13,FALSE),0) -> 0 | AK20: =_xlfn.IFNA(VLOOKUP(D20,'BAHAN PAKAN'!$D$7:$Y$106,14,FALSE),0) -> 0 | AL20: =_xlfn.IFNA(VLOOKUP(D20,'BAHAN PAKAN'!$D$7:$Y$106,15,FALSE),0) -> 0 | AM20: =_xlfn.IFNA(VLOOKUP(D20,'BAHAN PAKAN'!$D$7:$Y$106,16,FALSE),0) -> 0 | AN20: =_xlfn.IFNA(VLOOKUP(D20,'BAHAN PAKAN'!$D$7:$Y$106,17,FALSE),0) -> 0 | AO20: =_xlfn.IFNA(VLOOKUP(D20,'BAHAN PAKAN'!$D$7:$Y$106,18,FALSE),0) -> 23 | AP20: =_xlfn.IFNA(VLOOKUP(D20,'BAHAN PAKAN'!$D$7:$Y$106,19,FALSE),0) -> 17 | AQ20: =_xlfn.IFNA(VLOOKUP(D20,'BAHAN PAKAN'!$D$7:$Y$106,20,FALSE),0) -> 0 | AR20: =_xlfn.IFNA(VLOOKUP(D20,'BAHAN PAKAN'!$D$7:$Y$106,21,FALSE),0) -> 0 | AS20: =_xlfn.IFNA(VLOOKUP(D20,'BAHAN PAKAN'!$D$7:$Y$106,22,FALSE),0) -> 95 | AT20: DCP | AU20: 0 | AV20: -1.734723476e-18 | AW20: 100 | AX20: Phosphor | AY20: 0.4 | AZ20: =SUMPRODUCT(P,KomposisiRansum)/100 -> 0.688558614 | BA20: 0.8 | BB20: -1.826024712e-18 | BC20: -1.826024712e-18
B21: 14 | D21: - | F21: =_xlfn.IFNA(VLOOKUP($D21,'BAHAN PAKAN'!$D$7:$Y$106,4,FALSE),0) -> 9999999999 | J21: 0 | L21: 0 | P21: Kalium | R21: % | V21: 1.371584156 | AA21: 14 | AB21: =_xlfn.IFNA(VLOOKUP(D21,'BAHAN PAKAN'!$D$7:$Y$106,1,FALSE),0) -> - | AC21: 9999999999 | AD21: =_xlfn.IFNA(VLOOKUP(D21,'BAHAN PAKAN'!$D$7:$Y$106,6,FALSE),0) -> 0 | AE21: =_xlfn.IFNA(VLOOKUP(D21,'BAHAN PAKAN'!$D$7:$Y$106,8,FALSE),0) -> 0 | AF21: =_xlfn.IFNA(VLOOKUP(D21,'BAHAN PAKAN'!$D$7:$Y$106,9,FALSE),0) -> 0 | AG21: =_xlfn.IFNA(VLOOKUP(D21,'BAHAN PAKAN'!$D$7:$Y$106,10,FALSE),0) -> 0 | AH21: =_xlfn.IFNA(VLOOKUP(D21,'BAHAN PAKAN'!$D$7:$Y$106,11,FALSE),0) -> 0 | AI21: =_xlfn.IFNA(VLOOKUP(D21,'BAHAN PAKAN'!$D$7:$Y$106,12,FALSE),0) -> 0 | AJ21: =_xlfn.IFNA(VLOOKUP(D21,'BAHAN PAKAN'!$D$7:$Y$106,13,FALSE),0) -> 0 | AK21: =_xlfn.IFNA(VLOOKUP(D21,'BAHAN PAKAN'!$D$7:$Y$106,14,FALSE),0) -> 0 | AL21: =_xlfn.IFNA(VLOOKUP(D21,'BAHAN PAKAN'!$D$7:$Y$106,15,FALSE),0) -> 0 | AM21: =_xlfn.IFNA(VLOOKUP(D21,'BAHAN PAKAN'!$D$7:$Y$106,16,FALSE),0) -> 0 | AN21: =_xlfn.IFNA(VLOOKUP(D21,'BAHAN PAKAN'!$D$7:$Y$106,17,FALSE),0) -> 0 | AO21: =_xlfn.IFNA(VLOOKUP(D21,'BAHAN PAKAN'!$D$7:$Y$106,18,FALSE),0) -> 0 | AP21: =_xlfn.IFNA(VLOOKUP(D21,'BAHAN PAKAN'!$D$7:$Y$106,19,FALSE),0) -> 0 | AQ21: =_xlfn.IFNA(VLOOKUP(D21,'BAHAN PAKAN'!$D$7:$Y$106,20,FALSE),0) -> 0 | AR21: =_xlfn.IFNA(VLOOKUP(D21,'BAHAN PAKAN'!$D$7:$Y$106,21,FALSE),0) -> 0 | AS21: =_xlfn.IFNA(VLOOKUP(D21,'BAHAN PAKAN'!$D$7:$Y$106,22,FALSE),0) -> 100 | AT21: - | AU21: 0 | AV21: 0 | AW21: 100 | AX21: Kalium | AY21: 0 | AZ21: =SUMPRODUCT(K,KomposisiRansum)/100 -> 1.371584156 | BA21: 100 | BB21: 0 | BC21: 0
B22: 15 | D22: - | F22: =_xlfn.IFNA(VLOOKUP($D22,'BAHAN PAKAN'!$D$7:$Y$106,4,FALSE),0) -> 9999999999 | J22: 0 | L22: 0 | P22: Natrium | R22: % | V22: 0.2149772219 | AA22: 15 | AB22: =_xlfn.IFNA(VLOOKUP(D22,'BAHAN PAKAN'!$D$7:$Y$106,1,FALSE),0) -> - | AC22: 9999999999 | AD22: =_xlfn.IFNA(VLOOKUP(D22,'BAHAN PAKAN'!$D$7:$Y$106,6,FALSE),0) -> 0 | AE22: =_xlfn.IFNA(VLOOKUP(D22,'BAHAN PAKAN'!$D$7:$Y$106,8,FALSE),0) -> 0 | AF22: =_xlfn.IFNA(VLOOKUP(D22,'BAHAN PAKAN'!$D$7:$Y$106,9,FALSE),0) -> 0 | AG22: =_xlfn.IFNA(VLOOKUP(D22,'BAHAN PAKAN'!$D$7:$Y$106,10,FALSE),0) -> 0 | AH22: =_xlfn.IFNA(VLOOKUP(D22,'BAHAN PAKAN'!$D$7:$Y$106,11,FALSE),0) -> 0 | AI22: =_xlfn.IFNA(VLOOKUP(D22,'BAHAN PAKAN'!$D$7:$Y$106,12,FALSE),0) -> 0 | AJ22: =_xlfn.IFNA(VLOOKUP(D22,'BAHAN PAKAN'!$D$7:$Y$106,13,FALSE),0) -> 0 | AK22: =_xlfn.IFNA(VLOOKUP(D22,'BAHAN PAKAN'!$D$7:$Y$106,14,FALSE),0) -> 0 | AL22: =_xlfn.IFNA(VLOOKUP(D22,'BAHAN PAKAN'!$D$7:$Y$106,15,FALSE),0) -> 0 | AM22: =_xlfn.IFNA(VLOOKUP(D22,'BAHAN PAKAN'!$D$7:$Y$106,16,FALSE),0) -> 0 | AN22: =_xlfn.IFNA(VLOOKUP(D22,'BAHAN PAKAN'!$D$7:$Y$106,17,FALSE),0) -> 0 | AO22: =_xlfn.IFNA(VLOOKUP(D22,'BAHAN PAKAN'!$D$7:$Y$106,18,FALSE),0) -> 0 | AP22: =_xlfn.IFNA(VLOOKUP(D22,'BAHAN PAKAN'!$D$7:$Y$106,19,FALSE),0) -> 0 | AQ22: =_xlfn.IFNA(VLOOKUP(D22,'BAHAN PAKAN'!$D$7:$Y$106,20,FALSE),0) -> 0 | AR22: =_xlfn.IFNA(VLOOKUP(D22,'BAHAN PAKAN'!$D$7:$Y$106,21,FALSE),0) -> 0 | AS22: =_xlfn.IFNA(VLOOKUP(D22,'BAHAN PAKAN'!$D$7:$Y$106,22,FALSE),0) -> 100 | AT22: - | AU22: 0 | AV22: 0 | AW22: 100 | AX22: Natrium | AY22: 0 | AZ22: =SUMPRODUCT(Na,KomposisiRansum)/100 -> 0.2149772219 | BA22: 100 | BB22: 0 | BC22: 0
D24: Harga Ransum (Rp/kg BK) | F24: =IF(HargaRansum<10000,HargaRansum,"Ërror") -> 3267.958286 | J24: =SUM(KomposisiRansum) -> 100 | L24: =(SUM(L8:L22)) -> 100 | P24: Click to formulate >> | AC24: =SUMPRODUCT(KomposisiRansum*Harga)/100 -> 3267.958286 | BB24: =(SUM(BB8:BB22)) -> 115.9839887 | BC24: =(SUM(BC8:BC22)) -> 115.9839887
D25: Harga Ransum (Rp/kg segar) | F25: =SUMPRODUCT(L8:L22,F8:F22)/100 -> 2817.594326 | V25: =NOW() -> 2019-09-03T19:07:03.740
B26: (c) 2019 Department of Nutrition and Feed Technology - IPB University
